Organisation Name,Effective Date,Purch Date,Service Area,Expense Area,Beneficiary,Net amount,    Tax,    Gross,G/L Acct Long Text,MCC Description
Buckinghamshire Council,30.04.2022,30.04.2022,Children's Services,Education & Childrens Services - CS Dir,ODEON CINEMAS,27,0,27,Activities & General Recreation,Cinemas
Buckinghamshire Council,30.04.2022,30.04.2022,Communities,Climate Change & Environment - Community,TWITTER ONLINE ADS,20,0,20,Waste Prevention costs,Advertising services
Buckinghamshire Council,30.04.2022,30.04.2022,Children's Services,Education & Childrens Services - CS Dir,EMPIRE CINEMAS,16.64,0,16.64,Activities & General Recreation,Theatres and ticket agencies
Buckinghamshire Council,30.04.2022,30.04.2022,Resources,"Finance, Resources, Property & Asset Res",BOOKWHEN- SOFTWARE SUB,22.8,0,22.8,Computer Consumables,Computer software stores
Buckinghamshire Council,30.04.2022,30.04.2022,Adults and Health,Health & Wellbeing - Adults & Health Dir,TESCO STORE 2668,4,0,4,Awaiting Coding,Grocery stores
Buckinghamshire Council,30.04.2022,30.04.2022,Adults and Health,Health & Wellbeing - Adults & Health Dir,AMZ*AMAZON.CO.UK,-106.14,0,-106.14,Stationery & Office Supplies,Miscellaneous retail
Buckinghamshire Council,30.04.2022,29.04.2022,"Planning, Growth & Sustainability",Housing & Homelessness & Regulatory PGS,AMZNMktplace,56.97,0,56.97,Awaiting Coding,Miscellaneous retail
Buckinghamshire Council,30.04.2022,29.04.2022,Communities,Partnerships - Communities,DISPUTE REFUND REVERSAL,89.6,0,89.6,Subsistence,Restaurants
Buckinghamshire Council,30.04.2022,29.04.2022,Adults and Health,Health & Wellbeing - Adults & Health Dir,MILK AND MORE (RECUR,9.95,0,9.95,General Provisions (Food),Dairy produce stores
Buckinghamshire Council,30.04.2022,29.04.2022,Children's Services,Education & Childrens Services - CS Dir,AMZNMktplace,422.45,0,422.45,Awaiting Coding,Miscellaneous retail
Buckinghamshire Council,30.04.2022,29.04.2022,Communities,Culture & Leisure - Communities Dir,AMAZON.CO.UK,19.5,0,19.5,"Books, Records, Films & Oth Publications",Direct sales companies
Buckinghamshire Council,30.04.2022,29.04.2022,Communities,Culture & Leisure - Communities Dir,CARROLS IRONMONG,18.2,0,18.2,Stationery & Office Supplies,Hardware Equipment & Suppliers
Buckinghamshire Council,30.04.2022,29.04.2022,Children's Services,Education & Childrens Services - CS Dir,GEN REGISTER OFFICE,28,0,28,Sec 20/31: Specialist Services,Government services
Buckinghamshire Council,30.04.2022,29.04.2022,Deputy Chief Executive,Communities - DCE,AO RETAIL LIMITED,299,0,299,Awaiting Coding,Household appliance stores
Buckinghamshire Council,30.04.2022,29.04.2022,Children's Services,Education & Childrens Services - CS Dir,WWW.BUCKINGHAMSHIRE.GOV,132.78,0,132.78,Leaving Care  - Financial Assistance,Government services
Buckinghamshire Council,30.04.2022,29.04.2022,Adults and Health,Health & Wellbeing - Adults & Health Dir,AMZNMKTPLACE,5.24,0,5.24,Activities & General Recreation,Miscellaneous retail
Buckinghamshire Council,30.04.2022,29.04.2022,Adults and Health,Health & Wellbeing - Adults & Health Dir,AMZNMKTPLACE,4.95,0,4.95,Activities & General Recreation,Miscellaneous retail
Buckinghamshire Council,30.04.2022,29.04.2022,Adults and Health,Health & Wellbeing - Adults & Health Dir,AMZNMKTPLACE,2.99,0,2.99,Activities & General Recreation,Miscellaneous retail
Buckinghamshire Council,30.04.2022,29.04.2022,Adults and Health,Health & Wellbeing - Adults & Health Dir,AMZNMKTPLACE,6.95,0,6.95,Activities & General Recreation,Miscellaneous retail
Buckinghamshire Council,30.04.2022,29.04.2022,"Planning, Growth & Sustainability","Finance, Resources, Property & Asset PGS",HALFORDS 0529,120,0,120,Awaiting Coding,"Bicycle shops, sales & service"
Buckinghamshire Council,30.04.2022,29.04.2022,Resources,"Finance, Resources, Property & Asset Res",YELLOW CARS HW LTD,153.6,0,153.6,Staff Travelling Expenses,Taxicabs & limousines
Buckinghamshire Council,30.04.2022,29.04.2022,Children's Services,Education & Childrens Services - CS Dir,TAXIPAY,150,0,150,Court Orders Sec 31: Miscellaneous,Taxicabs & limousines
Buckinghamshire Council,30.04.2022,29.04.2022,Children's Services,Education & Childrens Services - CS Dir,TAXIPAY,150,0,150,Court Orders Sec 31: Miscellaneous,Taxicabs & limousines
Buckinghamshire Council,30.04.2022,29.04.2022,Children's Services,Education & Childrens Services - CS Dir,TAXIPAY,150,0,150,Court Orders Sec 31: Miscellaneous,Taxicabs & limousines
Buckinghamshire Council,30.04.2022,29.04.2022,Children's Services,Education & Childrens Services - CS Dir,TAXIPAY,60,0,60,Court Orders Sec 31: Miscellaneous,Taxicabs & limousines
Buckinghamshire Council,30.04.2022,29.04.2022,Children's Services,Education & Childrens Services - CS Dir,TRAINLINE,51.5,0,51.5,Court Orders Sec 31: Miscellaneous,Passenger railways
Buckinghamshire Council,30.04.2022,29.04.2022,Communities,Culture & Leisure - Communities Dir,WWW.WMSPLC.CO.UK,54.85,0,54.85,Medical Supplies & Services inc Vet'nary,"Laboratory, medical & hospital equipment"
Buckinghamshire Council,30.04.2022,29.04.2022,Adults and Health,Health & Wellbeing - Adults & Health Dir,TESCO STORE 2162,33.64,0,33.64,General Provisions (Food),Grocery stores
Buckinghamshire Council,30.04.2022,29.04.2022,Communities,Housing & Homelessness & Regulatory Comm,AMZNMktplace,29.99,0,29.99,Awaiting Coding,Miscellaneous retail
Buckinghamshire Council,30.04.2022,29.04.2022,Communities,Housing & Homelessness & Regulatory Comm,WWW.SCREWFIX.COM,1.71,0,1.71,General Repairs & Maintenance,Timber & building supplies
Buckinghamshire Council,30.04.2022,29.04.2022,Communities,Housing & Homelessness & Regulatory Comm,AMZNMktplace,74.95,0,74.95,Awaiting Coding,Miscellaneous retail
Buckinghamshire Council,30.04.2022,29.04.2022,Communities,Housing & Homelessness & Regulatory Comm,AMZNMktplace,7.59,0,7.59,Awaiting Coding,Miscellaneous retail
Buckinghamshire Council,30.04.2022,29.04.2022,"Planning, Growth & Sustainability","Finance, Resources, Property & Asset PGS",AMZNMKTPLACE,27.36,0,27.36,Administrative Equipment & Tools,Miscellaneous retail
Buckinghamshire Council,30.04.2022,29.04.2022,Children's Services,Education & Childrens Services - CS Dir,AMZ*AWEYKA-UK,-20.82,-4.17,-24.99,Educational Equipment,Miscellaneous retail
Buckinghamshire Council,30.04.2022,29.04.2022,Children's Services,Education & Childrens Services - CS Dir,AMZNMKTPLACE,18.7,0,18.7,Miscellaneous (Other)  Expenses,Miscellaneous retail
Buckinghamshire Council,30.04.2022,29.04.2022,Communities,Culture & Leisure - Communities Dir,CO-OP GROUP FOOD,6.04,0,6.04,Awaiting Coding,Grocery stores
Buckinghamshire Council,30.04.2022,29.04.2022,Children's Services,Education & Childrens Services - CS Dir,PARTICIPANT UK LTD,25,0,25,Activities & General Recreation,Computer network information services
Buckinghamshire Council,30.04.2022,29.04.2022,Children's Services,Education & Childrens Services - CS Dir,ISTOCK.COM,8.4,0,8.4,Advertising - Other,"Commercial photo, art & graphic"
Buckinghamshire Council,30.04.2022,29.04.2022,"Planning, Growth & Sustainability","Finance, Resources, Property & Asset PGS",TOOLSTATION UK,189.8,0,189.8,Awaiting Coding,Hardware stores
Buckinghamshire Council,30.04.2022,29.04.2022,Children's Services,Education & Childrens Services - CS Dir,TESCO STORES 5927,3.4,0,3.4,General Provisions (Food),Grocery stores
Buckinghamshire Council,30.04.2022,29.04.2022,Resources,"Finance, Resources, Property & Asset Res",LINKEDIN 7575975713,96.49,0,96.49,Advertising,Advertising services
Buckinghamshire Council,30.04.2022,29.04.2022,Resources,"Finance, Resources, Property & Asset Res",FACEBK *7S62ZB7742,175.29,0,175.29,Advertising,Advertising services
Buckinghamshire Council,30.04.2022,29.04.2022,Communities,Culture & Leisure - Communities Dir,AMZNMKTPLACE,51.98,0,51.98,Events Expenditure,Miscellaneous retail
Buckinghamshire Council,30.04.2022,29.04.2022,Communities,Culture & Leisure - Communities Dir,AMZNMKTPLACE,15.98,0,15.98,Events Expenditure,Miscellaneous retail
Buckinghamshire Council,30.04.2022,29.04.2022,Children's Services,Education & Childrens Services - CS Dir,AMAZON.CO.UK,40,0,40,Stationery & Office Supplies,Direct sales companies
Buckinghamshire Council,30.04.2022,29.04.2022,Resources,"Finance, Resources, Property & Asset Res",ANDREW CRACE - ALI,146.75,0,146.75,Seeds & Plants,Lawn & garden supply/nursery
Buckinghamshire Council,30.04.2022,29.04.2022,Adults and Health,Health & Wellbeing - Adults & Health Dir,ICELAND,20.65,0,20.65,Activities & General Recreation,Grocery stores
Buckinghamshire Council,30.04.2022,29.04.2022,Adults and Health,Health & Wellbeing - Adults & Health Dir,AMZNMktplace,-44.94,0,-44.94,Awaiting Coding,Miscellaneous retail
Buckinghamshire Council,30.04.2022,29.04.2022,Children's Services,Education & Childrens Services - CS Dir,ARGOS LTD,49.95,0,49.95,Court Orders Sec 31: Miscellaneous,Discount stores
Buckinghamshire Council,30.04.2022,29.04.2022,Communities,Culture & Leisure - Communities Dir,TEST METER GROUP LTD.,105.42,0,105.42,Administrative Equipment & Tools,Misc commercial machines equipment
Buckinghamshire Council,30.04.2022,29.04.2022,Adults and Health,Health & Wellbeing - Adults & Health Dir,ALDI STORES,5.33,0,5.33,Awaiting Coding,Grocery stores
Buckinghamshire Council,30.04.2022,28.04.2022,Communities,Culture & Leisure - Communities Dir,AMZNMKTPLACE,117.79,0,117.79,Events Expenditure,Miscellaneous retail
Buckinghamshire Council,30.04.2022,28.04.2022,Adults and Health,Health & Wellbeing - Adults & Health Dir,TESCO SUBSCRIPTION,6.99,0,6.99,Stationery & Office Supplies,Continuous subscriptions
Buckinghamshire Council,30.04.2022,28.04.2022,Communities,Culture & Leisure - Communities Dir,AMAZON.CO.UK,7.99,0,7.99,"Books, Records, Films & Oth Publications",Direct sales companies
Buckinghamshire Council,30.04.2022,28.04.2022,Children's Services,Education & Childrens Services - CS Dir,ENTERPRISE SKIP HIRE,270,0,270,Sec 17: Financial Assistance One Off,Utilities
Buckinghamshire Council,30.04.2022,28.04.2022,Children's Services,Education & Childrens Services - CS Dir,BUCKINGHAMSHIRE CNCL,35,0,35,Sec 20/31: Specialist Services,Government services
Buckinghamshire Council,30.04.2022,28.04.2022,Children's Services,Education & Childrens Services - CS Dir,BUCKINGHAMSHIRE CNCL,22,0,22,Sec 20/31: Specialist Services,Government services
Buckinghamshire Council,30.04.2022,28.04.2022,Children's Services,Education & Childrens Services - CS Dir,BUCKINGHAMSHIRE CNCL,-11,0,-11,Sec 20/31: Specialist Services,Government services
Buckinghamshire Council,30.04.2022,28.04.2022,Resources,"Finance, Resources, Property & Asset Res",SLOUGH BOROUGH COUNCIL,11,0,11,Awaiting Coding,Government services
Buckinghamshire Council,30.04.2022,28.04.2022,CC Obsolete Cost Centres,Obsolete Cost Centres,HM LAND REGISTRY - ONLINE,3,0,3,Awaiting Coding,Government services
Buckinghamshire Council,30.04.2022,28.04.2022,CC Obsolete Cost Centres,Obsolete Cost Centres,HM LAND REGISTRY - ONLINE,3,0,3,Awaiting Coding,Government services
Buckinghamshire Council,30.04.2022,28.04.2022,CC Obsolete Cost Centres,Obsolete Cost Centres,HM LAND REGISTRY - ONLINE,3,0,3,Awaiting Coding,Government services
Buckinghamshire Council,30.04.2022,28.04.2022,Children's Services,Education & Childrens Services - CS Dir,AMZNMKTPLACE,99.99,0,99.99,Other Personal Needs,Miscellaneous retail
Buckinghamshire Council,30.04.2022,28.04.2022,"Planning, Growth & Sustainability",Housing & Homelessness & Regulatory PGS,SAINSBURY S S/MKTS,3.5,0,3.5,Awaiting Coding,Grocery stores
Buckinghamshire Council,30.04.2022,28.04.2022,"Planning, Growth & Sustainability",Housing & Homelessness & Regulatory PGS,CURRYS ONLINE,79.98,0,79.98,Awaiting Coding,Electronics shops
Buckinghamshire Council,30.04.2022,28.04.2022,"Planning, Growth & Sustainability",Housing & Homelessness & Regulatory PGS,SAINSBURY S S/MKTS,-3.5,0,-3.5,Awaiting Coding,Grocery stores
Buckinghamshire Council,30.04.2022,28.04.2022,Deputy Chief Executive,Communities - DCE,ARGOS LTD,252.95,0,252.95,Awaiting Coding,Discount stores
Buckinghamshire Council,30.04.2022,28.04.2022,Deputy Chief Executive,Communities - DCE,AO RETAIL LIMITED,394,0,394,Awaiting Coding,Household appliance stores
Buckinghamshire Council,30.04.2022,28.04.2022,Deputy Chief Executive,Communities - DCE,ARGOS LTD,81.95,0,81.95,Awaiting Coding,Discount stores
Buckinghamshire Council,30.04.2022,28.04.2022,Deputy Chief Executive,Communities - DCE,AO RETAIL LIMITED,259,0,259,Awaiting Coding,Household appliance stores
Buckinghamshire Council,30.04.2022,28.04.2022,Deputy Chief Executive,Communities - DCE,AO RETAIL LIMITED,887,0,887,Awaiting Coding,Household appliance stores
Buckinghamshire Council,30.04.2022,28.04.2022,Children's Services,Education & Childrens Services - CS Dir,WWW.BUCKINGHAMSHIRE.GOV,"1,001.87",0,"1,001.87",Leaving Care  - Financial Assistance,Government services
Buckinghamshire Council,30.04.2022,28.04.2022,Communities,Climate Change & Environment - Community,George Browns Ltd Leighto,49.8,0,49.8,Seeds & Plants,Lawn & garden supply/nursery
Buckinghamshire Council,30.04.2022,28.04.2022,"Planning, Growth & Sustainability",Planning & Regeneration - PGS,CHARTERED ASSOCIATION,570,0,570,Course Fees & Post Entry Training,Colleges & universities
Buckinghamshire Council,30.04.2022,28.04.2022,"Planning, Growth & Sustainability",Planning & Regeneration - PGS,CHARTERED ASSOCIATION,700,0,700,Course Fees & Post Entry Training,Colleges & universities
Buckinghamshire Council,30.04.2022,28.04.2022,Adults and Health,Health & Wellbeing - Adults & Health Dir,WESTMINSTER FORUM PROJ,252,0,252,"Courses, Conference and Seminar Fees",Consultants & public relation services
Buckinghamshire Council,30.04.2022,28.04.2022,"Planning, Growth & Sustainability","Finance, Resources, Property & Asset PGS",WWW.SCREWFIX.COM,53.97,0,53.97,General Repairs & Maintenance,Timber & building supplies
Buckinghamshire Council,30.04.2022,28.04.2022,Deputy Chief Executive,Communities - DCE,AO RETAIL LIMITED,508,0,508,Other Personal Needs,Household appliance stores
Buckinghamshire Council,30.04.2022,28.04.2022,"Planning, Growth & Sustainability",Housing & Homelessness & Regulatory PGS,"BOOTS,AYLESBURY",58.8,0,58.8,Other General Office Expenses,Chemists & pharmacies
Buckinghamshire Council,30.04.2022,28.04.2022,"Planning, Growth & Sustainability",Housing & Homelessness & Regulatory PGS,AMZNMKTPLACE,24.96,0,24.96,Stationery & Office Supplies,Miscellaneous retail
Buckinghamshire Council,30.04.2022,28.04.2022,Adults and Health,Health & Wellbeing - Adults & Health Dir,BOOKER LIMITED HIGH WYCOM,106.76,0,106.76,General Provisions (Food),Caterers
Buckinghamshire Council,30.04.2022,28.04.2022,Children's Services,Education & Childrens Services - CS Dir,VOUCHER EXPRESS,155.75,0,155.75,Other Employees Expenses,Misc business services
Buckinghamshire Council,30.04.2022,28.04.2022,"Planning, Growth & Sustainability","Finance, Resources, Property & Asset PGS",SCREWFIX DIR LTD,5.99,0,5.99,General Repairs & Maintenance,Timber & building supplies
Buckinghamshire Council,30.04.2022,28.04.2022,"Planning, Growth & Sustainability","Finance, Resources, Property & Asset PGS",B & Q 1305,15.95,0,15.95,General Repairs & Maintenance,Home supply warehouse stores
Buckinghamshire Council,30.04.2022,28.04.2022,Children's Services,Education & Childrens Services - CS Dir,AMZNMKTPLACE,30.28,0,30.28,Miscellaneous (Other)  Expenses,Miscellaneous retail
Buckinghamshire Council,30.04.2022,28.04.2022,Resources,"Finance, Resources, Property & Asset Res",ABRATAX - MTD,12,0,12,Computer Consumables,Computer software stores
Buckinghamshire Council,30.04.2022,28.04.2022,Communities,Climate Change & Environment - Community,MUD DOCK LTD,47.35,0,47.35,Awaiting Coding,"Bicycle shops, sales & service"
Buckinghamshire Council,30.04.2022,28.04.2022,Communities,Climate Change & Environment - Community,AMZNMktplace,449.97,0,449.97,Awaiting Coding,Miscellaneous retail
Buckinghamshire Council,30.04.2022,28.04.2022,Communities,Climate Change & Environment - Community,AMAZON.CO.UK,19.42,0,19.42,Stationery & Office Supplies,Direct sales companies
Buckinghamshire Council,30.04.2022,28.04.2022,CC Obsolete Cost Centres,Obsolete Cost Centres,TRAVELODGE GB0000,131.55,0,131.55,"Rents, Wayleaves & Hire of Premises",Travelodge
Buckinghamshire Council,30.04.2022,28.04.2022,CC Obsolete Cost Centres,Obsolete Cost Centres,CHARTERED INSTITUTE OF,203,0,203,Subscriptions to National Bodies,Accountants & auditors
Buckinghamshire Council,30.04.2022,28.04.2022,CC Obsolete Cost Centres,Obsolete Cost Centres,AMZNMKTPLACE,10.98,0,10.98,Stationery & Office Supplies,Miscellaneous retail
Buckinghamshire Council,30.04.2022,28.04.2022,Children's Services,Education & Childrens Services - CS Dir,BUCKINGHAMSHIRE CNCL,22,0,22,Sec 17: Financial Assistance One Off,Government services
Buckinghamshire Council,30.04.2022,28.04.2022,Children's Services,Education & Childrens Services - CS Dir,BUCKINGHAMSHIRE CNCL,44,0,44,Sec 17: Financial Assistance One Off,Government services
Buckinghamshire Council,30.04.2022,28.04.2022,Resources,"Finance, Resources, Property & Asset Res",AMZNMKTPLACE,260.61,0,260.61,IT Equipment Purchase,Miscellaneous retail
Buckinghamshire Council,30.04.2022,28.04.2022,Children's Services,Education & Childrens Services - CS Dir,TRAVELODGE GB0000,555.75,0,555.75,Sec 17: Financial Assistance,Travelodge
Buckinghamshire Council,30.04.2022,28.04.2022,Communities,Partnerships - Communities,EB *CITY BREAKFAST CLU,24.3,0,24.3,Awaiting Coding,Misc business services
Buckinghamshire Council,30.04.2022,28.04.2022,Communities,Culture & Leisure - Communities Dir,SCREWFIX DIR LTD,3.24,0,3.24,General Repairs & Maintenance,Timber & building supplies
Buckinghamshire Council,30.04.2022,28.04.2022,Children's Services,Education & Childrens Services - CS Dir,KCL FEEPAY ONLINE,"2,366.00",0,"2,366.00",Leaving Care - Higher Education Supp,Colleges & universities
Buckinghamshire Council,30.04.2022,28.04.2022,Children's Services,Education & Childrens Services - CS Dir,AMZNMKTPLACE,13.97,0,13.97,Leaving Care  - Financial Assistance,Miscellaneous retail
Buckinghamshire Council,30.04.2022,28.04.2022,Children's Services,Education & Childrens Services - CS Dir,AMZNMKTPLACE,54.99,0,54.99,Leaving Care - Grants for Care Leavers,Miscellaneous retail
Buckinghamshire Council,30.04.2022,28.04.2022,Communities,Communities - Trust Accounts,COSTCO WHOLESALE #102,43.17,0,43.17,Stationery & Office Supplies,Buying & shopping services/clubs
Buckinghamshire Council,30.04.2022,28.04.2022,"Planning, Growth & Sustainability",Planning & Regeneration - PGS,COLYER REPROPOINT,329.02,0,329.02,Awaiting Coding,Misc commercial machines equipment
Buckinghamshire Council,30.04.2022,28.04.2022,Children's Services,Education & Childrens Services - CS Dir,AMZNMktplace,10.89,0,10.89,Awaiting Coding,Miscellaneous retail
Buckinghamshire Council,30.04.2022,28.04.2022,"Planning, Growth & Sustainability",Climate Change & Environment - PGS,HM LAND REGISTRY - ONLINE,6,0,6,Software Support,Government services
Buckinghamshire Council,30.04.2022,28.04.2022,"Planning, Growth & Sustainability",Climate Change & Environment - PGS,HM LAND REGISTRY - ONLINE,3,0,3,Software Support,Government services
Buckinghamshire Council,30.04.2022,28.04.2022,"Planning, Growth & Sustainability",Climate Change & Environment - PGS,ZOOM.US 888-799-9666,64,0,64,Software Support,Phone services
Buckinghamshire Council,30.04.2022,28.04.2022,"Planning, Growth & Sustainability",Climate Change & Environment - PGS,HM LAND REGISTRY - ONLINE,6,0,6,Software Support,Government services
Buckinghamshire Council,30.04.2022,28.04.2022,"Planning, Growth & Sustainability",Climate Change & Environment - PGS,MAPMATE LTD,60,0,60,Software Support,Misc. personal services
Buckinghamshire Council,30.04.2022,28.04.2022,Adults and Health,Health & Wellbeing - Adults & Health Dir,TESCO STORES 4395,18.2,0,18.2,Activities & General Recreation,Grocery stores
Buckinghamshire Council,30.04.2022,28.04.2022,Children's Services,Education & Childrens Services - CS Dir,TAXIPAY,80,0,80,Sec 20/31: Financial Assistance,Taxicabs & limousines
Buckinghamshire Council,30.04.2022,28.04.2022,Adults and Health,Health & Wellbeing - Adults & Health Dir,WWW.BLUEWHALESPA.COM,42,0,42,Awaiting Coding,Furniture & home furnishing
Buckinghamshire Council,30.04.2022,28.04.2022,Adults and Health,Health & Wellbeing - Adults & Health Dir,SAINSBURYS S/MKTS,19.4,0,19.4,Awaiting Coding,Grocery stores
Buckinghamshire Council,30.04.2022,28.04.2022,Communities,Culture & Leisure - Communities Dir,AMAZON.CO.UK,57.14,0,57.14,"Books, Records, Films & Oth Publications",Direct sales companies
Buckinghamshire Council,30.04.2022,28.04.2022,Children's Services,Education & Childrens Services - CS Dir,PREMIER INN 44032310,60.5,0,60.5,Staff Travelling Expenses,Premier Inn
Buckinghamshire Council,30.04.2022,28.04.2022,Resources,"Finance, Resources, Property & Asset Res",FASTHOSTS,7.2,0,7.2,Computer Software Licences & Purchase,Computer network information services
Buckinghamshire Council,30.04.2022,28.04.2022,Children's Services,Education & Childrens Services - CS Dir,ARGOS LTD,252.94,0,252.94,Awaiting Coding,Discount stores
Buckinghamshire Council,30.04.2022,27.04.2022,Children's Services,Education & Childrens Services - CS Dir,WWW.BUCKINGHAMSHIRE.GOV,"1,343.19",0,"1,343.19",Leaving Care  - Financial Assistance,Government services
Buckinghamshire Council,30.04.2022,27.04.2022,"Planning, Growth & Sustainability",Planning & Regeneration - PGS,THANKBOX,4.99,0,4.99,Miscellaneous (Other)  Expenses,
Buckinghamshire Council,30.04.2022,27.04.2022,Children's Services,Education & Childrens Services - CS Dir,POST OFFICE COUNTER,7.65,0,7.65,General Postage,Postal services
Buckinghamshire Council,30.04.2022,27.04.2022,Resources,"Finance, Resources, Property & Asset Res",CLINTONS 1092,3.25,0,3.25,Miscellaneous (Other)  Expenses,"Gift, card & novelty shops"
Buckinghamshire Council,30.04.2022,27.04.2022,Deputy Chief Executive,"Finance, Resources, Property & Asset DCE",SAINSBURY S S/MKTS,3.5,0,3.5,General Provisions (Food),Grocery stores
Buckinghamshire Council,30.04.2022,27.04.2022,Deputy Chief Executive,Communities - DCE,ARGOS LTD,154.95,0,154.95,Other Personal Needs,Discount stores
Buckinghamshire Council,30.04.2022,27.04.2022,Deputy Chief Executive,Communities - DCE,AO RETAIL LIMITED,329,0,329,Other Personal Needs,Household appliance stores
Buckinghamshire Council,30.04.2022,27.04.2022,Deputy Chief Executive,Communities - DCE,AO RETAIL LIMITED,544,0,544,Other Personal Needs,Household appliance stores
Buckinghamshire Council,30.04.2022,27.04.2022,Deputy Chief Executive,Communities - DCE,AO RETAIL LIMITED,189,0,189,Other Personal Needs,Household appliance stores
Buckinghamshire Council,30.04.2022,27.04.2022,Deputy Chief Executive,Communities - DCE,AO RETAIL LIMITED,484,0,484,Other Personal Needs,Household appliance stores
Buckinghamshire Council,30.04.2022,27.04.2022,Deputy Chief Executive,Communities - DCE,AO RETAIL LIMITED,542,0,542,Other Personal Needs,Household appliance stores
Buckinghamshire Council,30.04.2022,27.04.2022,Children's Services,Education & Childrens Services - CS Dir,TRAINLINE,-23.2,0,-23.2,Court Orders Sec 31: Miscellaneous,Passenger railways
Buckinghamshire Council,30.04.2022,27.04.2022,Communities,Partnerships - Communities,GREGGS PLC,11.6,0,11.6,Subsistence,Restaurants
Buckinghamshire Council,30.04.2022,27.04.2022,Communities,Housing & Homelessness & Regulatory Comm,IZ *SHANTOCK NURSE,450,0,450,Maintenance of Grounds,Miscellaneous retail
Buckinghamshire Council,30.04.2022,27.04.2022,Communities,Housing & Homelessness & Regulatory Comm,SCREWFIX DIR LTD,30.28,0,30.28,Maintenance of Grounds,Timber & building supplies
Buckinghamshire Council,30.04.2022,27.04.2022,Communities,Housing & Homelessness & Regulatory Comm,ZTL*SHANTOCK NURSERIES,970,0,970,Maintenance of Grounds,Miscellaneous retail
Buckinghamshire Council,30.04.2022,27.04.2022,Adults and Health,Health & Wellbeing - Adults & Health Dir,AMAZON.CO.UK,69.98,0,69.98,Activities & General Recreation,Direct sales companies
Buckinghamshire Council,30.04.2022,27.04.2022,Communities,Climate Change & Environment - Community,ACER STORE CPYOU BV,499.99,0,499.99,Project Work and Project Management Costs,Electronics shops
Buckinghamshire Council,30.04.2022,27.04.2022,Children's Services,Education & Childrens Services - CS Dir,LANCASHIRE CC WEBSITE,11,0,11,Sec 20/31: Financial Assistance,Schools
Buckinghamshire Council,30.04.2022,27.04.2022,Communities,Culture & Leisure - Communities Dir,COSTA @ TESCO,2.1,0,2.1,Subsistence,Fast food restaurants
Buckinghamshire Council,30.04.2022,27.04.2022,Children's Services,Education & Childrens Services - CS Dir,AMAZON.CO.UK,7.99,0,7.99,Stationery & Office Supplies,Direct sales companies
Buckinghamshire Council,30.04.2022,27.04.2022,Children's Services,Education & Childrens Services - CS Dir,AMZNMKTPLACE,39.96,0,39.96,Other Personal Needs,Miscellaneous retail
Buckinghamshire Council,30.04.2022,27.04.2022,Adults and Health,Health & Wellbeing - Adults & Health Dir,TESCO STORES 5135,142.73,0,142.73,General Provisions (Food),Grocery stores
Buckinghamshire Council,30.04.2022,27.04.2022,Resources,"Finance, Resources, Property & Asset Res",THE BELMORE CENTRE,150,0,150,Computer Consumables,Computer software stores
Buckinghamshire Council,30.04.2022,27.04.2022,Resources,"Finance, Resources, Property & Asset Res",Amazon.co.uk,300,0,300,Stationery & Office Supplies,Direct sales companies
Buckinghamshire Council,30.04.2022,27.04.2022,Children's Services,Education & Childrens Services - CS Dir,STUDENT ROOST,748.43,0,748.43,Leaving Care - Higher Education Supp,Estate Agents & Property Management
Buckinghamshire Council,30.04.2022,27.04.2022,Children's Services,Education & Childrens Services - CS Dir,CINEWORLD,152.5,0,152.5,Leaving Care  - Financial Assistance,Cinemas
Buckinghamshire Council,30.04.2022,27.04.2022,"Planning, Growth & Sustainability","Finance, Resources, Property & Asset PGS",WWW.NEOPOST.CO.UK,"1,000.00",0,"1,000.00",General Postage,Stationery & office supplies
Buckinghamshire Council,30.04.2022,27.04.2022,Adults and Health,Health & Wellbeing - Adults & Health Dir,AMZNMktplace,21.59,0,21.59,Awaiting Coding,Miscellaneous retail
Buckinghamshire Council,30.04.2022,27.04.2022,Children's Services,Education & Childrens Services - CS Dir,AMAZON PRIME,7.99,0,7.99,Stationery & Office Supplies,Continuous subscriptions
Buckinghamshire Council,30.04.2022,27.04.2022,"Planning, Growth & Sustainability",Climate Change & Environment - PGS,NHBS LTD,29.98,0,29.98,Other Equipment and Materials,"Books, periodicals & newspapers"
Buckinghamshire Council,30.04.2022,27.04.2022,Communities,Culture & Leisure - Communities Dir,AMZNMKTPLACE,43.96,0,43.96,Administrative Equipment & Tools,Miscellaneous retail
Buckinghamshire Council,30.04.2022,27.04.2022,Communities,Culture & Leisure - Communities Dir,AMAZON.CO.UK,19,0,19,Events Expenditure,Direct sales companies
Buckinghamshire Council,30.04.2022,27.04.2022,"Planning, Growth & Sustainability",Housing & Homelessness & Regulatory PGS,SUPERDRUG STORES PLC,9.59,0,9.59,Other General Office Expenses,Chemists & pharmacies
Buckinghamshire Council,30.04.2022,27.04.2022,"Planning, Growth & Sustainability",Housing & Homelessness & Regulatory PGS,REPLACEMENT KEYS LTD,9.05,0,9.05,Other General Office Expenses,Misc. general merchandise
Buckinghamshire Council,30.04.2022,27.04.2022,Adults and Health,Health & Wellbeing - Adults & Health Dir,AMZNMktplace,100.03,0,100.03,Awaiting Coding,Miscellaneous retail
Buckinghamshire Council,30.04.2022,27.04.2022,Children's Services,Education & Childrens Services - CS Dir,ESQUIRES COFFEE HOUSE,6.2,0,6.2,Subsistence,Fast food restaurants
Buckinghamshire Council,30.04.2022,27.04.2022,Children's Services,Education & Childrens Services - CS Dir,Amazon.co.uk,15.25,0,15.25,Stationery & Office Supplies,Direct sales companies
Buckinghamshire Council,30.04.2022,27.04.2022,Deputy Chief Executive,"Finance, Resources, Property & Asset DCE",AMZNMKTPLACE,21.98,0,21.98,Stationery & Office Supplies,Miscellaneous retail
Buckinghamshire Council,30.04.2022,27.04.2022,Communities,Climate Change & Environment - Community,TRAINLINE.COM,273.73,0,273.73,Staff Travelling Expenses,Passenger railways
Buckinghamshire Council,30.04.2022,27.04.2022,Children's Services,Education & Childrens Services - CS Dir,AMAZON.CO.UK,22.99,0,22.99,General Repairs & Maintenance,Direct sales companies
Buckinghamshire Council,30.04.2022,27.04.2022,Children's Services,Education & Childrens Services - CS Dir,TESCO STORES 2038,71.1,0,71.1,Activities & General Recreation,Grocery stores
Buckinghamshire Council,30.04.2022,27.04.2022,Adults and Health,Health & Wellbeing - Adults & Health Dir,AMZNMKTPLACE,134.47,0,134.47,Stationery & Office Supplies,Miscellaneous retail
Buckinghamshire Council,30.04.2022,27.04.2022,Children's Services,Education & Childrens Services - CS Dir,AMZNMktplace,149.7,0,149.7,Awaiting Coding,Miscellaneous retail
Buckinghamshire Council,30.04.2022,27.04.2022,Children's Services,Education & Childrens Services - CS Dir,AMZNMKTPLACE,23.97,0,23.97,Printing & Stationery,Miscellaneous retail
Buckinghamshire Council,30.04.2022,27.04.2022,Resources,"Finance, Resources, Property & Asset Res",RADISSON BLU EDWARDIAN MA,994,0,994,"Courses, Conference and Seminar Fees","Hotels, motels & resorts"
Buckinghamshire Council,30.04.2022,27.04.2022,Communities,Partnerships - Communities,DNH*GO DADDY EUROPE GBP,19.34,0,19.34,Computer Support Services,Computer network information services
Buckinghamshire Council,30.04.2022,27.04.2022,Children's Services,Education & Childrens Services - CS Dir,THE WORKS,15.7,0,15.7,Activities & General Recreation,Restaurants
Buckinghamshire Council,30.04.2022,26.04.2022,Children's Services,Education & Childrens Services - CS Dir,AMAZON.CO.UK,13.98,0,13.98,Stationery & Office Supplies,Direct sales companies
Buckinghamshire Council,30.04.2022,26.04.2022,Children's Services,Education & Childrens Services - CS Dir,AMAZON.CO.UK,13.98,0,13.98,Stationery & Office Supplies,Direct sales companies
Buckinghamshire Council,30.04.2022,26.04.2022,Children's Services,Education & Childrens Services - CS Dir,TAXIPAY,147,0,147,Sec 17: Transport,Taxicabs & limousines
Buckinghamshire Council,30.04.2022,26.04.2022,Children's Services,Education & Childrens Services - CS Dir,TAXIPAY,147,0,147,Sec 17: Transport,Taxicabs & limousines
Buckinghamshire Council,30.04.2022,26.04.2022,"Planning, Growth & Sustainability",Housing & Homelessness & Regulatory PGS,WWW.SCREWFIX.COM,35.98,0,35.98,Administrative Equipment & Tools,Timber & building supplies
Buckinghamshire Council,30.04.2022,26.04.2022,Resources,"Finance, Resources, Property & Asset Res",ONLINE50,96,0,96,Computer Software Licences & Purchase,Computer software stores
Buckinghamshire Council,30.04.2022,26.04.2022,Children's Services,Education & Childrens Services - CS Dir,CURRYS AYLESBURY,199,0,199,General Provisions (Food),Electronics shops
Buckinghamshire Council,30.04.2022,26.04.2022,"Planning, Growth & Sustainability",Planning & Regeneration - PGS,ROYAL TOWN PLANNING,58.67,0,58.67,Professional Subscriptions re Employees,Charitable organisations
Buckinghamshire Council,30.04.2022,26.04.2022,"Planning, Growth & Sustainability",Transport - PGS Dir,ROYAL TOWN PLANNING,97,0,97,Professional Subscriptions re Employees,Charitable organisations
Buckinghamshire Council,30.04.2022,26.04.2022,Deputy Chief Executive,Communities - DCE,AO RETAIL LIMITED,378.33,75.67,454,Other Personal Needs,Household appliance stores
Buckinghamshire Council,30.04.2022,26.04.2022,Children's Services,Education & Childrens Services - CS Dir,WWW.THERANGE.CO.UK,84.94,0,84.94,Leaving Care - Grants for Care Leavers,Misc. home furnishing
Buckinghamshire Council,30.04.2022,26.04.2022,Communities,Climate Change & Environment - Community,HIGHSTREETVOUCHERS,256.5,0,256.5,Awaiting Coding,"Civic, social & fraternal associations"
Buckinghamshire Council,30.04.2022,26.04.2022,Children's Services,Education & Childrens Services - CS Dir,TAXIPAY,78,0,78,Sec 20/31: Transport,Taxicabs & limousines
Buckinghamshire Council,30.04.2022,26.04.2022,Children's Services,Education & Childrens Services - CS Dir,TAXIPAY,70,0,70,Sec 20/31: Transport,Taxicabs & limousines
Buckinghamshire Council,30.04.2022,26.04.2022,Children's Services,Education & Childrens Services - CS Dir,TAXIPAY,70,0,70,Sec 20/31: Transport,Taxicabs & limousines
Buckinghamshire Council,30.04.2022,26.04.2022,Children's Services,Education & Childrens Services - CS Dir,TAXIPAY,70,0,70,Sec 20/31: Transport,Taxicabs & limousines
Buckinghamshire Council,30.04.2022,26.04.2022,"Planning, Growth & Sustainability","Finance, Resources, Property & Asset PGS",WWW.SCREWFIX.COM,17.99,0,17.99,General Repairs & Maintenance,Timber & building supplies
Buckinghamshire Council,30.04.2022,26.04.2022,Deputy Chief Executive,Communities - DCE,AO RETAIL LIMITED,803,0,803,Other Personal Needs,Household appliance stores
Buckinghamshire Council,30.04.2022,26.04.2022,"Planning, Growth & Sustainability",Housing & Homelessness & Regulatory PGS,"BOOTS,AYLESBURY",39.2,0,39.2,Other General Office Expenses,Chemists & pharmacies
Buckinghamshire Council,30.04.2022,26.04.2022,Children's Services,Education & Childrens Services - CS Dir,TESCO STORES 2041,38.14,0,38.14,General Provisions (Food),Grocery stores
Buckinghamshire Council,30.04.2022,26.04.2022,Children's Services,Education & Childrens Services - CS Dir,WESTRONICS LTD,265.8,0,265.8,Contractors' Work,Trade contractors
Buckinghamshire Council,30.04.2022,26.04.2022,Children's Services,Education & Childrens Services - CS Dir,TRAVELODGE GB0000,365.11,0,365.11,Sec 20/31: Financial Assistance,Travelodge
Buckinghamshire Council,30.04.2022,26.04.2022,"Planning, Growth & Sustainability","Finance, Resources, Property & Asset PGS",WWW.SCREWFIX.COM,23.63,4.73,28.36,General Repairs & Maintenance,Timber & building supplies
Buckinghamshire Council,30.04.2022,26.04.2022,"Planning, Growth & Sustainability","Finance, Resources, Property & Asset PGS",ASDA SUPERSTORE,2.9,0.58,3.48,Cleaning Materials,Grocery stores
Buckinghamshire Council,30.04.2022,26.04.2022,"Planning, Growth & Sustainability","Finance, Resources, Property & Asset PGS",ASDA SUPERSTORE,0.02,0,0.02,Cleaning Materials,Grocery stores
Buckinghamshire Council,30.04.2022,26.04.2022,"Planning, Growth & Sustainability","Finance, Resources, Property & Asset PGS",CURRYS HIGH WYCOMBE,35.82,7.17,42.99,Printing & Stationery,Electronics shops
Buckinghamshire Council,30.04.2022,26.04.2022,Communities,Housing & Homelessness & Regulatory Comm,AMZNMKTPLACE,42.64,8.53,51.17,General Repairs & Maintenance,Miscellaneous retail
Buckinghamshire Council,30.04.2022,26.04.2022,"Planning, Growth & Sustainability","Finance, Resources, Property & Asset PGS",AMZNMKTPLACE,8.99,0,8.99,Administrative Equipment & Tools,Miscellaneous retail
Buckinghamshire Council,30.04.2022,26.04.2022,"Planning, Growth & Sustainability","Finance, Resources, Property & Asset PGS",TOOLSTATION LTD,12.74,0,12.74,General Repairs & Maintenance,Timber & building supplies
Buckinghamshire Council,30.04.2022,26.04.2022,Children's Services,Education & Childrens Services - CS Dir,TALKTALK BUSINESS,35.45,7.09,42.54,Software Support,Computer network information services
Buckinghamshire Council,30.04.2022,26.04.2022,Children's Services,Education & Childrens Services - CS Dir,AMZNMKTPLACE,52.98,0,52.98,Miscellaneous (Other)  Expenses,Miscellaneous retail
Buckinghamshire Council,30.04.2022,26.04.2022,Children's Services,Education & Childrens Services - CS Dir,TESCO GIFT CARD,20,0,20,Purchase.of Refreshments and Food,Grocery stores
Buckinghamshire Council,30.04.2022,26.04.2022,Resources,"Finance, Resources, Property & Asset Res",SSE ENERGY SOLUTIONS,156.96,0,156.96,Awaiting Coding,Utilities
Buckinghamshire Council,30.04.2022,26.04.2022,Resources,"Finance, Resources, Property & Asset Res",SCOTTISH POWER,707.16,0,707.16,Petrol,Fuel dealers
Buckinghamshire Council,30.04.2022,26.04.2022,Children's Services,Education & Childrens Services - CS Dir,TRAVELODGE GB0000,78.52,0,78.52,Staff Travelling Expenses,Travelodge
Buckinghamshire Council,30.04.2022,26.04.2022,Children's Services,Education & Childrens Services - CS Dir,THE WORKS,11.5,0,11.5,"Exp of School, Club & College Activities",Discount stores
Buckinghamshire Council,30.04.2022,26.04.2022,Children's Services,Education & Childrens Services - CS Dir,AMZNMKTPLACE,192.51,0,192.51,"Books, Records, Films & Oth Publications",Miscellaneous retail
Buckinghamshire Council,30.04.2022,26.04.2022,Adults and Health,Health & Wellbeing - Adults & Health Dir,AMZNMKTPLACE,5.99,0,5.99,Printing & Stationery,Miscellaneous retail
Buckinghamshire Council,30.04.2022,26.04.2022,CC Obsolete Cost Centres,Obsolete Cost Centres,YELLOW CARS HW LTD,230.4,0,230.4,Staff Travelling Expenses,Taxicabs & limousines
Buckinghamshire Council,30.04.2022,26.04.2022,Deputy Chief Executive,Leader - DCE,EB *INTRODUCTION TO FU,95,0,95,Course Fees & Post Entry Training,Misc business services
Buckinghamshire Council,30.04.2022,26.04.2022,Deputy Chief Executive,Leader - DCE,EB *BID WRITING,95,0,95,Course Fees & Post Entry Training,Misc business services
Buckinghamshire Council,30.04.2022,26.04.2022,Resources,"Finance, Resources, Property & Asset Res",TRAINLINE,10.17,0,10.17,Staff Travelling Expenses,Passenger railways
Buckinghamshire Council,30.04.2022,26.04.2022,Deputy Chief Executive,"Finance, Resources, Property & Asset DCE",WP ENGINE,29.49,0,29.49,Computer Software Licences & Purchase,Computer network information services
Buckinghamshire Council,30.04.2022,26.04.2022,Children's Services,Education & Childrens Services - CS Dir,ASDA  STORES 4396,10,0,10,Equipment for Training and Mats for Ins.,Grocery stores
Buckinghamshire Council,30.04.2022,26.04.2022,Children's Services,Education & Childrens Services - CS Dir,THETRAINLINE.COM,72.16,0,72.16,Court Orders Sec 31: Supp. for Contact,Passenger railways
Buckinghamshire Council,30.04.2022,26.04.2022,Communities,Culture & Leisure - Communities Dir,WWW.SCREWFIX.COM,69.99,0,69.99,General Repairs & Maintenance,Timber & building supplies
Buckinghamshire Council,30.04.2022,26.04.2022,Children's Services,Education & Childrens Services - CS Dir,BUCKINGHAMSHIRE COUN MOT,294.95,0,294.95,Leaving Care  - Financial Assistance,Government services
Buckinghamshire Council,30.04.2022,26.04.2022,Children's Services,Education & Childrens Services - CS Dir,ALLPAY *HOUSING SOLUTIONS,172.6,0,172.6,Leaving Care - Rent,Charitable organisations
Buckinghamshire Council,30.04.2022,26.04.2022,Communities,Communities - Trust Accounts,WICKES SLOUGH,38.5,0,38.5,General Repairs & Maintenance,Timber & building supplies
Buckinghamshire Council,30.04.2022,26.04.2022,Deputy Chief Executive,"Finance, Resources, Property & Asset DCE",SOCIETYWORKS,100,0,100,Stationery & Office Supplies,Continuous subscriptions
Buckinghamshire Council,30.04.2022,26.04.2022,Communities,Culture & Leisure - Communities Dir,AMZNMKTPLACE,23.18,0,23.18,Events Expenditure,Miscellaneous retail
Buckinghamshire Council,30.04.2022,26.04.2022,Communities,Transport - Communities Dir,AYLESBURY NISSAN,40,0,40,Vehicle Hire,Automobile dealers - new & used
Buckinghamshire Council,30.04.2022,26.04.2022,Children's Services,Education & Childrens Services - CS Dir,SAINSBURYS S/MKTS,6.59,0,6.59,Awaiting Coding,Grocery stores
Buckinghamshire Council,30.04.2022,26.04.2022,Resources,"Finance, Resources, Property & Asset Res",JUST BAGUETTES,169,0,169,Subsistence,Fast food restaurants
Buckinghamshire Council,30.04.2022,26.04.2022,Adults and Health,Health & Wellbeing - Adults & Health Dir,FIVE TWO S TAXIS,225,0,225,Staff Travelling Expenses,Taxicabs & limousines
Buckinghamshire Council,30.04.2022,26.04.2022,Deputy Chief Executive,Communities - DCE,ARGOS LTD,65,0,65,Other Personal Needs,Discount stores
Buckinghamshire Council,30.04.2022,26.04.2022,Deputy Chief Executive,Communities - DCE,ARGOS LTD,331.95,0,331.95,Other Personal Needs,Discount stores
Buckinghamshire Council,30.04.2022,26.04.2022,Deputy Chief Executive,Communities - DCE,ARGOS LTD,687.95,0,687.95,Other Personal Needs,Discount stores
Buckinghamshire Council,30.04.2022,26.04.2022,Children's Services,Education & Childrens Services - CS Dir,PREMIER INN 44536730,120.99,0,120.99,Other Employees Expenses,Premier Inn
Buckinghamshire Council,30.04.2022,26.04.2022,"Planning, Growth & Sustainability",Leader - PGS,1 AND 1 IONOS LTD,8.39,0,8.39,Computer Support Services,Computer network information services
Buckinghamshire Council,30.04.2022,26.04.2022,Resources,"Finance, Resources, Property & Asset Res",New York Deli Gatehouse,90,0,90,Subsistence,Restaurants
Buckinghamshire Council,30.04.2022,25.04.2022,Resources,"Finance, Resources, Property & Asset Res",AMZNMKTPLACE,179.8,0,179.8,IT Equipment Purchase,Miscellaneous retail
Buckinghamshire Council,30.04.2022,25.04.2022,Children's Services,Education & Childrens Services - CS Dir,BT.COM BUSINESS BP,85.91,0,85.91,Telephones,Phone services
Buckinghamshire Council,30.04.2022,25.04.2022,Children's Services,Education & Childrens Services - CS Dir,BUCKINGHAMSHIRE CNCL,11,0,11,Sec 20/31: Specialist Services,Government services
Buckinghamshire Council,30.04.2022,25.04.2022,Children's Services,Education & Childrens Services - CS Dir,BUCKINGHAMSHIRE CNCL,11,0,11,Sec 20/31: Specialist Services,Government services
Buckinghamshire Council,30.04.2022,25.04.2022,Children's Services,Education & Childrens Services - CS Dir,BUCKINGHAMSHIRE CNCL,11,0,11,Sec 20/31: Specialist Services,Government services
Buckinghamshire Council,30.04.2022,25.04.2022,Communities,Climate Change & Environment - Community,TESCO STORES 2041,40,0,40,Awaiting Coding,Grocery stores
Buckinghamshire Council,30.04.2022,25.04.2022,Communities,Climate Change & Environment - Community,TESCO STORES 2041,80,0,80,Awaiting Coding,Grocery stores
Buckinghamshire Council,30.04.2022,25.04.2022,CC Obsolete Cost Centres,Obsolete Cost Centres,thetrainline.com,76.28,0,76.28,Staff Travelling Expenses,Passenger railways
Buckinghamshire Council,30.04.2022,25.04.2022,Children's Services,Education & Childrens Services - CS Dir,TAXIPAY,150,0,150,Sec 20/31: Transport,Taxicabs & limousines
Buckinghamshire Council,30.04.2022,25.04.2022,Children's Services,Education & Childrens Services - CS Dir,TAXIPAY,150,0,150,Sec 20/31: Transport,Taxicabs & limousines
Buckinghamshire Council,30.04.2022,25.04.2022,Children's Services,Education & Childrens Services - CS Dir,TAXIPAY,150,0,150,Sec 20/31: Transport,Taxicabs & limousines
Buckinghamshire Council,30.04.2022,25.04.2022,Children's Services,Education & Childrens Services - CS Dir,BUCKINGHAM HOTELS,"1,445.80",0,"1,445.80",Sec 20/31: Financial Assistance,"Hotels, motels & resorts"
Buckinghamshire Council,30.04.2022,25.04.2022,Children's Services,Education & Childrens Services - CS Dir,TAXIPAY,90,0,90,Sec 20/31: Transport,Taxicabs & limousines
Buckinghamshire Council,30.04.2022,25.04.2022,Children's Services,Education & Childrens Services - CS Dir,TAXIPAY,35,0,35,Sec 20/31: Transport,Taxicabs & limousines
Buckinghamshire Council,30.04.2022,25.04.2022,Resources,"Finance, Resources, Property & Asset Res",PAYPAL,33.02,0,33.02,Computer Software Licences & Purchase,Electronics shops
Buckinghamshire Council,30.04.2022,25.04.2022,Communities,Climate Change & Environment - Community,AMZNMktplace,119,0,119,Awaiting Coding,Miscellaneous retail
Buckinghamshire Council,30.04.2022,25.04.2022,Deputy Chief Executive,Communities - DCE,AO RETAIL LIMITED,-10,0,-10,Other Personal Needs,Household appliance stores
Buckinghamshire Council,30.04.2022,25.04.2022,"Planning, Growth & Sustainability","Finance, Resources, Property & Asset PGS",CJ'S LOCKSMITHS,17.85,0,17.85,Miscellaneous (Other)  Expenses,Misc. repair services
Buckinghamshire Council,30.04.2022,25.04.2022,Children's Services,Education & Childrens Services - CS Dir,A1 TAXI SERVICE,240,0,240,Sec 20/31: Transport,Taxicabs & limousines
Buckinghamshire Council,30.04.2022,25.04.2022,Communities,Culture & Leisure - Communities Dir,SAINSBURY S S/MKTS,18.5,3.7,22.2,Miscellaneous (Other)  Expenses,Grocery stores
Buckinghamshire Council,30.04.2022,25.04.2022,Communities,Culture & Leisure - Communities Dir,SAINSBURY S S/MKTS,14.8,0,14.8,Miscellaneous (Other)  Expenses,Grocery stores
Buckinghamshire Council,30.04.2022,25.04.2022,Deputy Chief Executive,Leader - DCE,HOTEL INDIGO,378,0,378,"Courses, Conference and Seminar Fees",Hotel Indigo
Buckinghamshire Council,30.04.2022,25.04.2022,Children's Services,Education & Childrens Services - CS Dir,TRAVELODGE GB0000,124.39,0,124.39,Sec 17: Financial Assistance,Travelodge
Buckinghamshire Council,30.04.2022,25.04.2022,Children's Services,Education & Childrens Services - CS Dir,TRAVELODGE GB0000,412.95,0,412.95,Sec 17: Financial Assistance,Travelodge
Buckinghamshire Council,30.04.2022,25.04.2022,Children's Services,Education & Childrens Services - CS Dir,THE ENTERTAINER 113,18,0,18,"Exp of School, Club & College Activities","Hobby, toy & game shops"
Buckinghamshire Council,30.04.2022,25.04.2022,Children's Services,Education & Childrens Services - CS Dir,WILKO RETAIL LIMITED,3.4,0,3.4,"Exp of School, Club & College Activities",Misc. general merchandise
Buckinghamshire Council,30.04.2022,25.04.2022,Children's Services,Education & Childrens Services - CS Dir,QD-AYLESBURY,7.57,0,7.57,"Exp of School, Club & College Activities",Miscellaneous retail
Buckinghamshire Council,30.04.2022,25.04.2022,Communities,Culture & Leisure - Communities Dir,FACEBK EYYDFBTJB2,40,0,40,Advertising,Advertising services
Buckinghamshire Council,30.04.2022,25.04.2022,Adults and Health,Health & Wellbeing - Adults & Health Dir,TESCO STORE 2162,29.84,0,29.84,General Provisions (Food),Grocery stores
Buckinghamshire Council,30.04.2022,25.04.2022,"Planning, Growth & Sustainability","Finance, Resources, Property & Asset PGS",IMO CAR WASH AMERSHAM,10,0,10,Cleaning Costs - Vehicles,Car washes
Buckinghamshire Council,30.04.2022,25.04.2022,Deputy Chief Executive,"Finance, Resources, Property & Asset DCE",PURE GUSTO,51.98,0,51.98,Vending Machines Supplies,Misc non-durable goods
Buckinghamshire Council,30.04.2022,25.04.2022,Communities,Partnerships - Communities,THE SWAN,54.45,0,54.45,Subsistence,"Bars, taverns, pubs & nightclubs"
Buckinghamshire Council,30.04.2022,25.04.2022,"Planning, Growth & Sustainability","Finance, Resources, Property & Asset PGS",FAST KEY SERVICES LIMI,4.49,0,4.49,Miscellaneous (Other)  Expenses,Misc business services
Buckinghamshire Council,30.04.2022,25.04.2022,Communities,Communities - Trust Accounts,B&M 582 - BRITWELL,47.44,0,47.44,Awaiting Coding,Misc. general merchandise
Buckinghamshire Council,30.04.2022,25.04.2022,Communities,Communities - Trust Accounts,ICELAND,23.35,0,23.35,Awaiting Coding,Grocery stores
Buckinghamshire Council,30.04.2022,25.04.2022,Communities,Culture & Leisure - Communities Dir,AMZNMKTPLACE,11.99,0,11.99,Events Expenditure,Miscellaneous retail
Buckinghamshire Council,30.04.2022,25.04.2022,Communities,Culture & Leisure - Communities Dir,AMZNMKTPLACE,18.99,0,18.99,Events Expenditure,Miscellaneous retail
Buckinghamshire Council,30.04.2022,25.04.2022,Communities,Culture & Leisure - Communities Dir,AMZNMKTPLACE,18.99,0,18.99,Events Expenditure,Miscellaneous retail
Buckinghamshire Council,30.04.2022,25.04.2022,Communities,Culture & Leisure - Communities Dir,AMZNMKTPLACE,12.1,0,12.1,Events Expenditure,Miscellaneous retail
Buckinghamshire Council,30.04.2022,25.04.2022,Communities,Transport - Communities Dir,QD-AYLESBURY,14.9,0,14.9,Stationery & Office Supplies,Miscellaneous retail
Buckinghamshire Council,30.04.2022,25.04.2022,"Planning, Growth & Sustainability",Housing & Homelessness & Regulatory PGS,WAITROSE 177,150,0,150,Other General Office Expenses,Grocery stores
Buckinghamshire Council,30.04.2022,25.04.2022,Adults and Health,Health & Wellbeing - Adults & Health Dir,TESCO STORES 5135,65.02,0,65.02,General Provisions (Food),Grocery stores
Buckinghamshire Council,30.04.2022,25.04.2022,Children's Services,Education & Childrens Services - CS Dir,TRAINLINE.COM,106.94,0,106.94,Staff Travelling Expenses,Passenger railways
Buckinghamshire Council,30.04.2022,25.04.2022,Children's Services,Education & Childrens Services - CS Dir,AMZNMKTPLACE,23.14,0,23.14,Consumable Supplies,Miscellaneous retail
Buckinghamshire Council,30.04.2022,25.04.2022,Children's Services,Education & Childrens Services - CS Dir,PREMIER INN 44537920,92.99,0,92.99,Other Employees Expenses,Premier Inn
Buckinghamshire Council,30.04.2022,25.04.2022,Deputy Chief Executive,Communities - DCE,ARGOS LTD,229.95,0,229.95,Other Personal Needs,Discount stores
Buckinghamshire Council,30.04.2022,25.04.2022,Deputy Chief Executive,Communities - DCE,ARGOS LTD,229.95,0,229.95,Other Personal Needs,Discount stores
Buckinghamshire Council,30.04.2022,25.04.2022,Deputy Chief Executive,Communities - DCE,ARGOS LTD,-229.95,0,-229.95,Other Personal Needs,Discount stores
Buckinghamshire Council,30.04.2022,25.04.2022,"Planning, Growth & Sustainability",Special Expenses,ARGOS LTD,132,0,132,Equipment,Discount stores
Buckinghamshire Council,30.04.2022,24.04.2022,Children's Services,Education & Childrens Services - CS Dir,AMZNMKTPLACE,9.95,0,9.95,Other Personal Needs,Miscellaneous retail
Buckinghamshire Council,30.04.2022,24.04.2022,Children's Services,Education & Childrens Services - CS Dir,AMZNMKTPLACE,9.34,0,9.34,Other Personal Needs,Miscellaneous retail
Buckinghamshire Council,30.04.2022,24.04.2022,Children's Services,Education & Childrens Services - CS Dir,TESCO STORES 2041,82.45,0,82.45,General Provisions (Food),Grocery stores
Buckinghamshire Council,30.04.2022,24.04.2022,Resources,"Finance, Resources, Property & Asset Res",AMZNMKTPLACE,39.9,0,39.9,IT Equipment Purchase,Miscellaneous retail
Buckinghamshire Council,30.04.2022,24.04.2022,Communities,Climate Change & Environment - Community,HOO*HOOTSUITE INC,468,0,468,Waste Prevention costs,Misc business services
Buckinghamshire Council,30.04.2022,24.04.2022,Deputy Chief Executive,Leader - DCE,AMZNMktplace,21.96,0,21.96,Awaiting Coding,Miscellaneous retail
Buckinghamshire Council,30.04.2022,24.04.2022,Resources,"Finance, Resources, Property & Asset Res",LINKEDIN 7559990723,95.86,0,95.86,Advertising,Advertising services
Buckinghamshire Council,30.04.2022,24.04.2022,Children's Services,Education & Childrens Services - CS Dir,CARD FACTORY,15,0,15,Consumable Supplies,"Gift, card & novelty shops"
Buckinghamshire Council,30.04.2022,24.04.2022,Children's Services,Education & Childrens Services - CS Dir,WWW.SCREWFIX.COM,39.99,0,39.99,General Repairs & Maintenance,Timber & building supplies
Buckinghamshire Council,30.04.2022,23.04.2022,Children's Services,Education & Childrens Services - CS Dir,ARGOS LTD,54.99,0,54.99,Other Personal Needs,Discount stores
Buckinghamshire Council,30.04.2022,23.04.2022,Children's Services,Education & Childrens Services - CS Dir,TESCO STORES 2041,63.03,0,63.03,Awaiting Coding,Grocery stores
Buckinghamshire Council,30.04.2022,23.04.2022,Children's Services,Education & Childrens Services - CS Dir,TESCO STORES 2041,6.5,0,6.5,Awaiting Coding,Grocery stores
Buckinghamshire Council,30.04.2022,23.04.2022,Communities,Climate Change & Environment - Community,AMZNMktplace,52.5,0,52.5,Awaiting Coding,Miscellaneous retail
Buckinghamshire Council,30.04.2022,23.04.2022,Communities,Climate Change & Environment - Community,WWW.FTA.CO.UK,62.7,0,62.7,Awaiting Coding,Railways
Buckinghamshire Council,30.04.2022,23.04.2022,Communities,Housing & Homelessness & Regulatory Comm,AMAZON.CO.UK,49.99,10,59.99,Furniture Fittings & IT,Direct sales companies
Buckinghamshire Council,30.04.2022,23.04.2022,Children's Services,Education & Childrens Services - CS Dir,ODEON,6.1,0,6.1,"Exp of School, Club & College Activities",Cinemas
Buckinghamshire Council,30.04.2022,23.04.2022,Children's Services,Education & Childrens Services - CS Dir,IKEA LTD 461 READING MAIN,124.5,0,124.5,Cleaning & Domestic Equipment,Furniture & home furnishing
Buckinghamshire Council,30.04.2022,23.04.2022,Children's Services,Education & Childrens Services - CS Dir,AMZNMKTPLACE,19.98,0,19.98,Support for Foster Carers,Miscellaneous retail
Buckinghamshire Council,30.04.2022,23.04.2022,Children's Services,Education & Childrens Services - CS Dir,AMZNMKTPLACE,19.98,0,19.98,Support for Foster Carers,Miscellaneous retail
Buckinghamshire Council,30.04.2022,23.04.2022,Resources,"Finance, Resources, Property & Asset Res",FACEBK *YCZAYB7V82,200,0,200,Advertising,Advertising services
Buckinghamshire Council,30.04.2022,23.04.2022,Communities,Climate Change & Environment - Community,DVLA DRIVERS TACHOGRAPH W,19,0,19,Awaiting Coding,Government services
Buckinghamshire Council,30.04.2022,22.04.2022,"Planning, Growth & Sustainability","Finance, Resources, Property & Asset PGS",AMZNMktplace,54.39,0,54.39,Awaiting Coding,Miscellaneous retail
Buckinghamshire Council,30.04.2022,22.04.2022,Communities,Housing & Homelessness & Regulatory Comm,AMAZON.CO.UK,3.1,0.62,3.72,Furniture Fittings & IT,Direct sales companies
Buckinghamshire Council,30.04.2022,22.04.2022,Adults and Health,Health & Wellbeing - Adults & Health Dir,MILK AND MORE (RECUR,9.95,0,9.95,General Provisions (Food),Dairy produce stores
Buckinghamshire Council,30.04.2022,22.04.2022,Children's Services,Education & Childrens Services - CS Dir,ODEON CINEMAS,24,0,24,Activities & General Recreation,Cinemas
Buckinghamshire Council,30.04.2022,22.04.2022,Children's Services,Education & Childrens Services - CS Dir,TBI-TRAINING HUB,30,0,30,Training (Inc. Health & Safety Courses),Consultants & public relation services
Buckinghamshire Council,30.04.2022,22.04.2022,Children's Services,Education & Childrens Services - CS Dir,TBI-TRAINING HUB,30,0,30,Training (Inc. Health & Safety Courses),Consultants & public relation services
Buckinghamshire Council,30.04.2022,22.04.2022,Children's Services,Education & Childrens Services - CS Dir,TBI-TRAINING HUB,30,0,30,Training (Inc. Health & Safety Courses),Consultants & public relation services
Buckinghamshire Council,30.04.2022,22.04.2022,Communities,Climate Change & Environment - Community,CH MORGAN,51.19,0,51.19,Equipment,"Architectural, engineering & surveying"
Buckinghamshire Council,30.04.2022,22.04.2022,Communities,Climate Change & Environment - Community,DOMINOS PIZZA 28091,43.94,0,43.94,Subsistence,Fast food restaurants
Buckinghamshire Council,30.04.2022,22.04.2022,Children's Services,Education & Childrens Services - CS Dir,TRAINLINE,29.75,0,29.75,Sec 20/31: Transport,Passenger railways
Buckinghamshire Council,30.04.2022,22.04.2022,"Planning, Growth & Sustainability","Finance, Resources, Property & Asset PGS",WWW.SCREWFIX.COM,31.32,0,31.32,General Repairs & Maintenance,Timber & building supplies
Buckinghamshire Council,30.04.2022,22.04.2022,Deputy Chief Executive,Communities - DCE,AO RETAIL LIMITED,169,0,169,Other Personal Needs,Household appliance stores
Buckinghamshire Council,30.04.2022,22.04.2022,Deputy Chief Executive,Communities - DCE,AO RETAIL LIMITED,988,0,988,Other Personal Needs,Household appliance stores
Buckinghamshire Council,30.04.2022,22.04.2022,Deputy Chief Executive,Communities - DCE,AO RETAIL LIMITED,524,0,524,Other Personal Needs,Household appliance stores
Buckinghamshire Council,30.04.2022,22.04.2022,Children's Services,Education & Childrens Services - CS Dir,YELLOW CARS HW LTD,128,0,128,Sec 20/31: Transport,Taxicabs & limousines
Buckinghamshire Council,30.04.2022,22.04.2022,"Planning, Growth & Sustainability","Finance, Resources, Property & Asset PGS",AMZNMKTPLACE,17.57,0,17.57,Other Equipment and Materials,Miscellaneous retail
Buckinghamshire Council,30.04.2022,22.04.2022,"Planning, Growth & Sustainability","Finance, Resources, Property & Asset PGS",WWW.NEOPOST.CO.UK,"1,000.00",0,"1,000.00",General Postage,Stationery & office supplies
Buckinghamshire Council,30.04.2022,22.04.2022,Children's Services,Education & Childrens Services - CS Dir,MYTRIP,25,0,25,Miscellaneous (Other)  Expenses,
Buckinghamshire Council,30.04.2022,22.04.2022,Communities,Climate Change & Environment - Community,THE RANGE,50.99,0,50.99,Waste Prevention costs,Department stores
Buckinghamshire Council,30.04.2022,22.04.2022,Children's Services,Education & Childrens Services - CS Dir,VALUE PRODUCTS LTD,48.75,9.75,58.5,General Repairs & Maintenance,Miscellaneous retail
Buckinghamshire Council,30.04.2022,22.04.2022,Children's Services,Education & Childrens Services - CS Dir,VALUE PRODUCTS LTD,0.01,0,0.01,General Repairs & Maintenance,Miscellaneous retail
Buckinghamshire Council,30.04.2022,22.04.2022,Children's Services,Education & Childrens Services - CS Dir,TESCO STORES 2020,50,0,50,Other General Office Expenses,Grocery stores
Buckinghamshire Council,30.04.2022,22.04.2022,Children's Services,Education & Childrens Services - CS Dir,TRAINLINE,51.5,0,51.5,Sec 20/31: Supp for Contact,Passenger railways
Buckinghamshire Council,30.04.2022,22.04.2022,Communities,Culture & Leisure - Communities Dir,RSPB SALES LTD,42,0,42,Events Expenditure,Charitable organisations
Buckinghamshire Council,30.04.2022,22.04.2022,Communities,Culture & Leisure - Communities Dir,AMZNMKTPLACE,27.45,5.49,32.94,Events Expenditure,Miscellaneous retail
Buckinghamshire Council,30.04.2022,22.04.2022,Adults and Health,Health & Wellbeing - Adults & Health Dir,AMZNMKTPLACE,93.5,0,93.5,Activities & General Recreation,Miscellaneous retail
Buckinghamshire Council,30.04.2022,22.04.2022,Resources,"Finance, Resources, Property & Asset Res",TRAINLINE,29.49,0,29.49,Staff Travelling Expenses,Passenger railways
Buckinghamshire Council,30.04.2022,22.04.2022,Resources,"Finance, Resources, Property & Asset Res",FASTHOSTS,16.67,0,16.67,Computer Software Licences & Purchase,Computer network information services
Buckinghamshire Council,30.04.2022,22.04.2022,Children's Services,Education & Childrens Services - CS Dir,ARRIVA UK BUS,56,0,56,Sec 17: Financial Assistance One Off,"Buses, charter & tour"
Buckinghamshire Council,30.04.2022,22.04.2022,Children's Services,Education & Childrens Services - CS Dir,B & Q 1124,95.83,19.17,115,General Provisions (Food),Home supply warehouse stores
Buckinghamshire Council,30.04.2022,22.04.2022,Children's Services,Education & Childrens Services - CS Dir,Hobbycraft,39.5,0,39.5,Awaiting Coding,Art & craft shops
Buckinghamshire Council,30.04.2022,22.04.2022,Children's Services,Education & Childrens Services - CS Dir,UBER   *EATS,53.38,0,53.38,Subsistence,Restaurants
Buckinghamshire Council,30.04.2022,22.04.2022,Resources,"Finance, Resources, Property & Asset Res",AMAZON PRIME,96,16,96,Stationery & Office Supplies,Continuous subscriptions
Buckinghamshire Council,30.04.2022,22.04.2022,Communities,Communities - Trust Accounts,LIDL GB SLOUGH,17.93,0,17.93,Awaiting Coding,Grocery stores
Buckinghamshire Council,30.04.2022,22.04.2022,Children's Services,Education & Childrens Services - CS Dir,WWW.RANSOMSPARES.CO.UK,27.75,0,27.75,General Repairs & Maintenance,Electrical parts & equipment
Buckinghamshire Council,30.04.2022,22.04.2022,"Planning, Growth & Sustainability",Climate Change & Environment - PGS,NHBS LTD,5,0,5,"Courses, Conference and Seminar Fees","Books, periodicals & newspapers"
Buckinghamshire Council,30.04.2022,22.04.2022,Communities,Culture & Leisure - Communities Dir,AMZNMktplace,29.74,0,29.74,Awaiting Coding,Miscellaneous retail
Buckinghamshire Council,30.04.2022,22.04.2022,Children's Services,Education & Childrens Services - CS Dir,AMAZON.CO.UK,26.15,0,26.15,Activities & General Recreation,Direct sales companies
Buckinghamshire Council,30.04.2022,22.04.2022,Children's Services,Education & Childrens Services - CS Dir,TAXIPAY,5,0,5,Sec 20/31: Financial Assistance,Taxicabs & limousines
Buckinghamshire Council,30.04.2022,22.04.2022,Children's Services,Education & Childrens Services - CS Dir,ARRIVA UK BUS,40,0,40,Sec 20/31: Financial Assistance,"Buses, charter & tour"
Buckinghamshire Council,30.04.2022,22.04.2022,Communities,Culture & Leisure - Communities Dir,WWW.THEWORKS.CO.UK,8.99,0,8.99,Administrative Equipment & Tools,Discount stores
Buckinghamshire Council,30.04.2022,22.04.2022,Children's Services,Education & Childrens Services - CS Dir,UNIVERSITY OF EXETER,"1,145.28",0,"1,145.28",Leaving Care - Higher Education Supp,Colleges & universities
Buckinghamshire Council,30.04.2022,21.04.2022,Children's Services,Education & Childrens Services - CS Dir,AMZNMKTPLACE,26.99,0,26.99,Leaving Care - Grants for Care Leavers,Miscellaneous retail
Buckinghamshire Council,30.04.2022,21.04.2022,Adults and Health,Health & Wellbeing - Adults & Health Dir,ASDA GROCERIES ONLINE,102.88,0,102.88,General Provisions (Food),Grocery stores
Buckinghamshire Council,30.04.2022,21.04.2022,Resources,"Finance, Resources, Property & Asset Res",SOUTHERN ELECTRIC,267.08,0,267.08,Awaiting Coding,Utilities
Buckinghamshire Council,30.04.2022,21.04.2022,CC Obsolete Cost Centres,Obsolete Cost Centres,HM LAND REGISTRY - ONLINE,3,0,3,Awaiting Coding,Government services
Buckinghamshire Council,30.04.2022,21.04.2022,CC Obsolete Cost Centres,Obsolete Cost Centres,HM LAND REGISTRY - ONLINE,3,0,3,Awaiting Coding,Government services
Buckinghamshire Council,30.04.2022,21.04.2022,CC Obsolete Cost Centres,Obsolete Cost Centres,HM LAND REGISTRY - ONLINE,3,0,3,Awaiting Coding,Government services
Buckinghamshire Council,30.04.2022,21.04.2022,CC Obsolete Cost Centres,Obsolete Cost Centres,HM LAND REGISTRY - ONLINE,3,0,3,Awaiting Coding,Government services
Buckinghamshire Council,30.04.2022,21.04.2022,Children's Services,Education & Childrens Services - CS Dir,AMZNMKTPLACE,40.11,0,40.11,Printing & Stationery,Miscellaneous retail
Buckinghamshire Council,30.04.2022,21.04.2022,Children's Services,Education & Childrens Services - CS Dir,NINJA WARRIOR MILTON KEYN,325,65,390,"Exp of School, Club & College Activities",Misc. recreational services
Buckinghamshire Council,30.04.2022,21.04.2022,Deputy Chief Executive,Communities - DCE,ARGOS LTD,59.95,0,59.95,Other Personal Needs,Discount stores
Buckinghamshire Council,30.04.2022,21.04.2022,Deputy Chief Executive,Communities - DCE,AO RETAIL LIMITED,482.5,96.5,579,Other Personal Needs,Household appliance stores
Buckinghamshire Council,30.04.2022,21.04.2022,Adults and Health,Health & Wellbeing - Adults & Health Dir,AMZNMktplace,12.6,0,12.6,Awaiting Coding,Miscellaneous retail
Buckinghamshire Council,30.04.2022,21.04.2022,Adults and Health,Health & Wellbeing - Adults & Health Dir,AMZNMktplace,140.96,0,140.96,Awaiting Coding,Miscellaneous retail
Buckinghamshire Council,30.04.2022,21.04.2022,Communities,Housing & Homelessness & Regulatory Comm,WWW.TUDORENVIRONMENTAL,15.42,0,15.42,Seeds & Plants,Lawn & garden supply/nursery
Buckinghamshire Council,30.04.2022,21.04.2022,"Planning, Growth & Sustainability","Finance, Resources, Property & Asset PGS",GRANT AND STONE,34.56,0,34.56,General Repairs & Maintenance,Hardware stores
Buckinghamshire Council,30.04.2022,21.04.2022,Adults and Health,Health & Wellbeing - Adults & Health Dir,FLYWHEEL,118.62,0,118.62,Payments To Contractors,"Programming, data processing & system design"
Buckinghamshire Council,30.04.2022,21.04.2022,Communities,Climate Change & Environment - Community,PAYPAL,136.77,0,136.77,Waste Prevention costs,Publishing & printing services
Buckinghamshire Council,30.04.2022,21.04.2022,Children's Services,Education & Childrens Services - CS Dir,AMZNMKTPLACE,6.5,0,6.5,Miscellaneous (Other)  Expenses,Miscellaneous retail
Buckinghamshire Council,30.04.2022,21.04.2022,Deputy Chief Executive,Leader - DCE,PRIDE IN LONDON,250,0,250,Awaiting Coding,"Civic, social & fraternal associations"
Buckinghamshire Council,30.04.2022,21.04.2022,Deputy Chief Executive,Leader - DCE,NEW YORK (AYLESBURY) LTD,21.42,0,21.42,Subsistence,Restaurants
Buckinghamshire Council,30.04.2022,21.04.2022,Communities,Transport - Communities Dir,LUL TICKET MACHINE,25.7,0,25.7,Staff Travelling Expenses,Passenger railways
Buckinghamshire Council,30.04.2022,21.04.2022,Communities,Transport - Communities Dir,CMT UK LTD TAXI FARE,14.8,0,14.8,Staff Travelling Expenses,Taxicabs & limousines
Buckinghamshire Council,30.04.2022,21.04.2022,Children's Services,Education & Childrens Services - CS Dir,AMAZON.CO.UK,40,0,40,"Exp of School, Club & College Activities",Direct sales companies
Buckinghamshire Council,30.04.2022,21.04.2022,Communities,Culture & Leisure - Communities Dir,AMZNMKTPLACE,15,3,18,Events Expenditure,Miscellaneous retail
Buckinghamshire Council,30.04.2022,21.04.2022,Children's Services,Education & Childrens Services - CS Dir,LEBARA MOBILE LIMITED,25,0,25,Telephones,Phone services
Buckinghamshire Council,30.04.2022,21.04.2022,Children's Services,Education & Childrens Services - CS Dir,AMAZON PRIME,-7.99,0,-7.99,Subscriptions to National Bodies,Continuous subscriptions
Buckinghamshire Council,30.04.2022,21.04.2022,Adults and Health,Health & Wellbeing - Adults & Health Dir,AMZNMKTPLACE,31.9,0,31.9,Activities & General Recreation,Miscellaneous retail
Buckinghamshire Council,30.04.2022,21.04.2022,Children's Services,Education & Childrens Services - CS Dir,TESCO STORES 2038,31.94,0,31.94,Awaiting Coding,Grocery stores
Buckinghamshire Council,30.04.2022,21.04.2022,Children's Services,Education & Childrens Services - CS Dir,DOMINO S PIZZA,55.71,0,55.71,Subsistence,Restaurants
Buckinghamshire Council,30.04.2022,21.04.2022,Children's Services,Education & Childrens Services - CS Dir,AMZNMKTPLACE,49.99,0,49.99,Leaving Care - Grants for Care Leavers,Miscellaneous retail
Buckinghamshire Council,30.04.2022,21.04.2022,Children's Services,Education & Childrens Services - CS Dir,AMZNMKTPLACE,41.33,0,41.33,Leaving Care - Grants for Care Leavers,Miscellaneous retail
Buckinghamshire Council,30.04.2022,21.04.2022,"Planning, Growth & Sustainability","Finance, Resources, Property & Asset PGS",WWW.NEOPOST.CO.UK,"1,000.00",0,"1,000.00",General Postage,Stationery & office supplies
Buckinghamshire Council,30.04.2022,21.04.2022,Children's Services,Education & Childrens Services - CS Dir,ASDA SUPERSTORE,3.5,0,3.5,General Provisions (Food),Grocery stores
Buckinghamshire Council,30.04.2022,21.04.2022,Communities,Communities - Trust Accounts,COSTCO WHOLESALE #102,101.67,0,101.67,Stationery & Office Supplies,Buying & shopping services/clubs
Buckinghamshire Council,30.04.2022,21.04.2022,Communities,Transport - Communities Dir,WILKO RETAIL LIMITED,14.6,0,14.6,Stationery & Office Supplies,Misc. general merchandise
Buckinghamshire Council,30.04.2022,21.04.2022,"Planning, Growth & Sustainability",Housing & Homelessness & Regulatory PGS,WAITROSE 177,3.75,0,3.75,Other General Office Expenses,Grocery stores
Buckinghamshire Council,30.04.2022,21.04.2022,"Planning, Growth & Sustainability",Housing & Homelessness & Regulatory PGS,STATIONERY OFFICE BOOK,59.04,0,59.04,"Books, Records, Films & Oth Publications",Book stores
Buckinghamshire Council,30.04.2022,21.04.2022,Adults and Health,Health & Wellbeing - Adults & Health Dir,THE RANGE,11.99,0,11.99,Awaiting Coding,Misc. home furnishing
Buckinghamshire Council,30.04.2022,21.04.2022,Children's Services,Education & Childrens Services - CS Dir,AMZNMKTPLACE,16.46,0,16.46,Activities & General Recreation,Miscellaneous retail
Buckinghamshire Council,30.04.2022,21.04.2022,Children's Services,Education & Childrens Services - CS Dir,AMZNMKTPLACE,12.98,0,12.98,Activities & General Recreation,Miscellaneous retail
Buckinghamshire Council,30.04.2022,21.04.2022,"Planning, Growth & Sustainability",Transport - PGS Dir,EB *CMI WOMEN CONFEREN,100,0,100,"Courses, Conference and Seminar Fees",Misc business services
Buckinghamshire Council,30.04.2022,21.04.2022,Children's Services,Education & Childrens Services - CS Dir,THETRAINLINE.COM,91.28,0,91.28,Sec 20/31: Financial Assistance,Passenger railways
Buckinghamshire Council,30.04.2022,21.04.2022,Children's Services,Education & Childrens Services - CS Dir,THETRAINLINE.COM,101.55,0,101.55,Staff Travelling Expenses,Passenger railways
Buckinghamshire Council,30.04.2022,21.04.2022,Children's Services,Education & Childrens Services - CS Dir,CALEDON SLPR WEB,75,0,75,Staff Travelling Expenses,Passenger railways
Buckinghamshire Council,30.04.2022,21.04.2022,Resources,"Finance, Resources, Property & Asset Res",GEN REGISTER OFFICE,14,0,14,Miscellaneous (Other)  Expenses,Government services
Buckinghamshire Council,30.04.2022,20.04.2022,Children's Services,Education & Childrens Services - CS Dir,AMZNMKTPLACE,12.74,0,12.74,Other Personal Needs,Miscellaneous retail
Buckinghamshire Council,30.04.2022,20.04.2022,Adults and Health,Health & Wellbeing - Adults & Health Dir,AMZNMktplace,36.26,0,36.26,Awaiting Coding,Miscellaneous retail
Buckinghamshire Council,30.04.2022,20.04.2022,Adults and Health,Health & Wellbeing - Adults & Health Dir,VIKING UK,186.24,0,186.24,Activities & General Recreation,Stationery & office supplies
Buckinghamshire Council,30.04.2022,20.04.2022,Communities,Culture & Leisure - Communities Dir,WWW.UKPOS.COM,35.45,0,35.45,Stationery & Office Supplies,Stationery & office supplies stores
Buckinghamshire Council,30.04.2022,20.04.2022,Adults and Health,Health & Wellbeing - Adults & Health Dir,JEWSON,98.94,0,98.94,General Repairs & Maintenance,Timber & building supplies
Buckinghamshire Council,30.04.2022,20.04.2022,Adults and Health,Health & Wellbeing - Adults & Health Dir,VIKING UK,155.2,31.04,186.24,Furniture,Stationery & office supplies
Buckinghamshire Council,30.04.2022,20.04.2022,Communities,Culture & Leisure - Communities Dir,AMZNMKTPLACE,31.95,0,31.95,Other Employees Expenses,Miscellaneous retail
Buckinghamshire Council,30.04.2022,20.04.2022,"Planning, Growth & Sustainability",Housing & Homelessness & Regulatory PGS,BUCKINGHAMSHIRE CNCL,11,0,11,Burial Costs,Government services
Buckinghamshire Council,30.04.2022,20.04.2022,Children's Services,Education & Childrens Services - CS Dir,WINDSOR LEISURE CENTRE -,8.8,0,8.8,Activities & General Recreation,Misc. recreational services
Buckinghamshire Council,30.04.2022,20.04.2022,Children's Services,Education & Childrens Services - CS Dir,TRAVELODGE GB0000,79.54,0,79.54,Other Employees Expenses,Travelodge
Buckinghamshire Council,30.04.2022,20.04.2022,Children's Services,Education & Childrens Services - CS Dir,TRAVELODGE GB0000,57.1,0,57.1,Other Employees Expenses,Travelodge
Buckinghamshire Council,30.04.2022,20.04.2022,"Planning, Growth & Sustainability",Planning & Regeneration - PGS,SAINSBURY'S S/MKT,8.6,0,8.6,Miscellaneous (Other)  Expenses,Grocery stores
Buckinghamshire Council,30.04.2022,20.04.2022,Resources,"Finance, Resources, Property & Asset Res",WWW.VOUCHEREXPRESS.CO.,105.75,0,105.75,Miscellaneous (Other)  Expenses,"Gift, card & novelty shops"
Buckinghamshire Council,30.04.2022,20.04.2022,"Planning, Growth & Sustainability","Finance, Resources, Property & Asset PGS",DB MASTER LOCKSMITH LT,90,0,90,Computer Consumables,Computer software stores
Buckinghamshire Council,30.04.2022,20.04.2022,Deputy Chief Executive,Communities - DCE,AO RETAIL LIMITED,284,0,284,Other Personal Needs,Household appliance stores
Buckinghamshire Council,30.04.2022,20.04.2022,Deputy Chief Executive,Communities - DCE,AO RETAIL LIMITED,394,0,394,Other Personal Needs,Household appliance stores
Buckinghamshire Council,30.04.2022,20.04.2022,Deputy Chief Executive,Communities - DCE,ARGOS LTD,49.95,0,49.95,Other Personal Needs,Discount stores
Buckinghamshire Council,30.04.2022,20.04.2022,Children's Services,Education & Childrens Services - CS Dir,TESCO GIFT CARD,50,0,50,Sec 17: Financial Assistance,Grocery stores
Buckinghamshire Council,30.04.2022,20.04.2022,"Planning, Growth & Sustainability",Housing & Homelessness & Regulatory PGS,HM LAND REGISTRY - ONLINE,3,0,3,Homelessness,Government services
Buckinghamshire Council,30.04.2022,20.04.2022,"Planning, Growth & Sustainability",Housing & Homelessness & Regulatory PGS,HM LAND REGISTRY - ONLINE,3,0,3,Homelessness,Government services
Buckinghamshire Council,30.04.2022,20.04.2022,Communities,Housing & Homelessness & Regulatory Comm,SQ *NEMATODES DIRECT,123.96,0,123.96,Miscellaneous (Other)  Expenses,Misc. general merchandise
Buckinghamshire Council,30.04.2022,20.04.2022,Communities,Housing & Homelessness & Regulatory Comm,WWW.LANGSTANE.CO.UK,132.43,0,132.43,Miscellaneous (Other)  Expenses,Misc. general merchandise
Buckinghamshire Council,30.04.2022,20.04.2022,Adults and Health,Health & Wellbeing - Adults & Health Dir,SAINSBURYS SUPERMA,42.19,0,42.19,General Provisions (Food),Grocery stores
Buckinghamshire Council,30.04.2022,20.04.2022,"Planning, Growth & Sustainability","Finance, Resources, Property & Asset PGS",WWW.SCREWFIX.COM,6.99,0,6.99,General Repairs & Maintenance,Timber & building supplies
Buckinghamshire Council,30.04.2022,20.04.2022,"Planning, Growth & Sustainability","Finance, Resources, Property & Asset PGS",CURRYS AYLESBURY,49.99,0,49.99,General Repairs & Maintenance,Electronics shops
Buckinghamshire Council,30.04.2022,20.04.2022,Children's Services,Education & Childrens Services - CS Dir,WWW.OFFICEBOFFINS.CO.U,191,38.2,229.2,General Repairs & Maintenance,Furniture & home furnishing
Buckinghamshire Council,30.04.2022,20.04.2022,"Planning, Growth & Sustainability",Leader - PGS,SAS EVENT MGMT,192,0,192,"Courses, Conference and Seminar Fees",Theatres and ticket agencies
Buckinghamshire Council,30.04.2022,20.04.2022,Children's Services,Education & Childrens Services - CS Dir,A1 TAXI SERVICE,60,0,60,Sec 17: Transport,Taxicabs & limousines
Buckinghamshire Council,30.04.2022,20.04.2022,Deputy Chief Executive,Leader - DCE,MARKS&SPENCER PLC SF,37.05,0,37.05,Awaiting Coding,Grocery stores
Buckinghamshire Council,30.04.2022,20.04.2022,Deputy Chief Executive,Leader - DCE,TESCO STORE 3045,27.48,0,27.48,Awaiting Coding,Grocery stores
Buckinghamshire Council,30.04.2022,20.04.2022,Children's Services,Education & Childrens Services - CS Dir,BUCKINGHAMSHIRE CNCL,33,0,33,Sec 20/31: Specialist Services,Government services
Buckinghamshire Council,30.04.2022,20.04.2022,Children's Services,Education & Childrens Services - CS Dir,LONDON BOROUGH OF,13,0,13,Sec 20/31: Specialist Services,Government services
Buckinghamshire Council,30.04.2022,20.04.2022,Children's Services,Education & Childrens Services - CS Dir,HERTFORDSHIRE COUNTY C,11,0,11,Sec 20/31: Specialist Services,Schools
Buckinghamshire Council,30.04.2022,20.04.2022,Communities,Culture & Leisure - Communities Dir,STORAGEMART UK #5318,819.08,0,819.08,Equipment (including storage),"Haulage, removals & delivery"
Buckinghamshire Council,30.04.2022,20.04.2022,Communities,Culture & Leisure - Communities Dir,SCREWFIX DIR LTD,38.8,7.76,46.56,Administrative Equipment & Tools,Timber & building supplies
Buckinghamshire Council,30.04.2022,20.04.2022,Communities,Culture & Leisure - Communities Dir,SCREWFIX DIR LTD,0.01,0,0.01,Administrative Equipment & Tools,Timber & building supplies
Buckinghamshire Council,30.04.2022,20.04.2022,Children's Services,Education & Childrens Services - CS Dir,HAPPY BEDS,591.98,0,591.98,Equipment (including storage),Furniture & home furnishing
Buckinghamshire Council,30.04.2022,20.04.2022,Children's Services,Education & Childrens Services - CS Dir,UBER   *EATS,34.52,0,34.52,Subsistence,Restaurants
Buckinghamshire Council,30.04.2022,20.04.2022,Children's Services,Education & Childrens Services - CS Dir,AMZNMKTPLACE,39.98,0,39.98,General Repairs & Maintenance,Miscellaneous retail
Buckinghamshire Council,30.04.2022,20.04.2022,Children's Services,Education & Childrens Services - CS Dir,WICKES HIGH WYCOMBE,7.5,0,7.5,General Provisions (Food),Timber & building supplies
Buckinghamshire Council,30.04.2022,20.04.2022,Children's Services,Education & Childrens Services - CS Dir,WAITROSE,150,0,150,Other Employees Expenses,Grocery stores
Buckinghamshire Council,30.04.2022,20.04.2022,Children's Services,Education & Childrens Services - CS Dir,NEXT RETAIL LTD,100,0,100,Other Employees Expenses,Family clothing shops
Buckinghamshire Council,30.04.2022,20.04.2022,Children's Services,Education & Childrens Services - CS Dir,RUSH HIGH WYCOMBE,21,0,21,Activities & General Recreation,Misc. recreational services
Buckinghamshire Council,30.04.2022,20.04.2022,Children's Services,Education & Childrens Services - CS Dir,MARKS&SPENCER PLC SACA,16.25,0,16.25,Awaiting Coding,Grocery stores
Buckinghamshire Council,30.04.2022,20.04.2022,Children's Services,Education & Childrens Services - CS Dir,HADDENHAM CARPETS LIMI,300,0,300,Activities & General Recreation,Floor covering stores
Buckinghamshire Council,30.04.2022,20.04.2022,Adults and Health,Health & Wellbeing - Adults & Health Dir,AMZNMKTPLACE,3.99,0,3.99,Activities & General Recreation,Miscellaneous retail
Buckinghamshire Council,30.04.2022,20.04.2022,Children's Services,Education & Childrens Services - CS Dir,ARRIVA UK BUS,26.8,0,26.8,Sec 20/31: Supp for Contact,"Buses, charter & tour"
Buckinghamshire Council,30.04.2022,20.04.2022,Communities,Communities - Trading Accounts,DVLA VEHICLE TAX,167.5,0,167.5,Vehicle Taxation Costs,Tax payments
Buckinghamshire Council,30.04.2022,20.04.2022,Communities,Communities - Trading Accounts,DVLA VEHICLE TAX,167.5,0,167.5,Vehicle Taxation Costs,Tax payments
Buckinghamshire Council,30.04.2022,20.04.2022,Communities,Communities - Trading Accounts,DVLA VEHICLE TAX,167.5,0,167.5,Vehicle Taxation Costs,Tax payments
Buckinghamshire Council,30.04.2022,20.04.2022,Communities,Communities - Trading Accounts,DVLA VEHICLE TAX,167.5,0,167.5,Vehicle Taxation Costs,Tax payments
Buckinghamshire Council,30.04.2022,20.04.2022,Communities,Communities - Trading Accounts,DVLA VEHICLE TAX,167.5,0,167.5,Vehicle Taxation Costs,Tax payments
Buckinghamshire Council,30.04.2022,20.04.2022,Communities,Communities - Trading Accounts,DVLA VEHICLE TAX,292.5,0,292.5,Vehicle Taxation Costs,Tax payments
Buckinghamshire Council,30.04.2022,20.04.2022,Communities,Communities - Trading Accounts,DVLA VEHICLE TAX,167.5,0,167.5,Vehicle Taxation Costs,Tax payments
Buckinghamshire Council,30.04.2022,20.04.2022,Communities,Communities - Trading Accounts,DVLA VEHICLE TAX,332.5,0,332.5,Vehicle Taxation Costs,Tax payments
Buckinghamshire Council,30.04.2022,20.04.2022,Communities,Communities - Trading Accounts,DVLA VEHICLE TAX,167.5,0,167.5,Vehicle Taxation Costs,Tax payments
Buckinghamshire Council,30.04.2022,20.04.2022,Communities,Communities - Trading Accounts,DVLA VEHICLE TAX,292.5,0,292.5,Vehicle Taxation Costs,Tax payments
Buckinghamshire Council,30.04.2022,20.04.2022,Children's Services,Education & Childrens Services - CS Dir,WWW.BEDWAREHOUSEDIRECT,299.95,0,299.95,Equipment (including storage),Furniture & home furnishing
Buckinghamshire Council,30.04.2022,19.04.2022,Children's Services,Education & Childrens Services - CS Dir,AMZNMKTPLACE,6.9,0,6.9,Health & Safety Supplies & Services,Miscellaneous retail
Buckinghamshire Council,30.04.2022,19.04.2022,Children's Services,Education & Childrens Services - CS Dir,CDKEYS.COM,21.99,0,21.99,Activities & General Recreation,
Buckinghamshire Council,30.04.2022,19.04.2022,Children's Services,Education & Childrens Services - CS Dir,AMZNMKTPLACE,24.99,0,24.99,Cleaning Materials,Miscellaneous retail
Buckinghamshire Council,30.04.2022,19.04.2022,Children's Services,Education & Childrens Services - CS Dir,SLOUGH BOROUGH COUNCIL,11,0,11,Leaving Care  - Financial Assistance,Government services
Buckinghamshire Council,30.04.2022,19.04.2022,Children's Services,Education & Childrens Services - CS Dir,WWW.BUCKINGHAMSHIRE.GOV,"1,087.04",0,"1,087.04",Leaving Care  - Financial Assistance,Government services
Buckinghamshire Council,30.04.2022,19.04.2022,Resources,"Finance, Resources, Property & Asset Res",AMZNMKTPLACE,24.79,0,24.79,Computer Software Licences & Purchase,Miscellaneous retail
Buckinghamshire Council,30.04.2022,19.04.2022,Deputy Chief Executive,Communities - DCE,AO RETAIL LIMITED,778,0,778,Other Personal Needs,Household appliance stores
Buckinghamshire Council,30.04.2022,19.04.2022,Deputy Chief Executive,Communities - DCE,ARGOS LTD,284.95,0,284.95,Other Personal Needs,Discount stores
Buckinghamshire Council,30.04.2022,19.04.2022,Deputy Chief Executive,Communities - DCE,ARGOS LTD,229.95,0,229.95,Other Personal Needs,Discount stores
Buckinghamshire Council,30.04.2022,19.04.2022,Deputy Chief Executive,Communities - DCE,AO RETAIL LIMITED,778,0,778,Other Personal Needs,Household appliance stores
Buckinghamshire Council,30.04.2022,19.04.2022,Communities,Special Expenses,DB MASTER LOCKSMITH LT,283.2,0,283.2,Maintenance of Grounds,Computer software stores
Buckinghamshire Council,30.04.2022,19.04.2022,Communities,Housing & Homelessness & Regulatory Comm,WWW.SCREWFIX.COM,29.45,5.89,35.34,General Repairs & Maintenance,Timber & building supplies
Buckinghamshire Council,30.04.2022,19.04.2022,Communities,Housing & Homelessness & Regulatory Comm,WWW.SCREWFIX.COM,0.02,0,0.02,General Repairs & Maintenance,Timber & building supplies
Buckinghamshire Council,30.04.2022,19.04.2022,Communities,Housing & Homelessness & Regulatory Comm,WWW.JOHNLEWIS.COM,20.45,4.09,24.54,Furniture Fittings & IT,Department stores
Buckinghamshire Council,30.04.2022,19.04.2022,Communities,Housing & Homelessness & Regulatory Comm,WWW.JOHNLEWIS.COM,0.01,0,0.01,Furniture Fittings & IT,Department stores
Buckinghamshire Council,30.04.2022,19.04.2022,Communities,Housing & Homelessness & Regulatory Comm,WWW.JOHNLEWIS.COM,-14.65,-2.93,-17.58,Furniture Fittings & IT,Department stores
Buckinghamshire Council,30.04.2022,19.04.2022,Communities,Housing & Homelessness & Regulatory Comm,WWW.JOHNLEWIS.COM,-0.02,0,-0.02,Furniture Fittings & IT,Department stores
Buckinghamshire Council,30.04.2022,19.04.2022,"Planning, Growth & Sustainability","Finance, Resources, Property & Asset PGS",AMZNMKTPLACE,53.13,0,53.13,General Repairs & Maintenance,Miscellaneous retail
Buckinghamshire Council,30.04.2022,19.04.2022,"Planning, Growth & Sustainability","Finance, Resources, Property & Asset PGS",AMZNMKTPLACE,9.99,0,9.99,General Repairs & Maintenance,Miscellaneous retail
Buckinghamshire Council,30.04.2022,19.04.2022,"Planning, Growth & Sustainability","Finance, Resources, Property & Asset PGS",AMAZON.CO.UK,8.4,0,8.4,General Repairs & Maintenance,Direct sales companies
Buckinghamshire Council,30.04.2022,19.04.2022,"Planning, Growth & Sustainability","Finance, Resources, Property & Asset PGS",TIMPSON LTD,11.4,0,11.4,General Repairs & Maintenance,Miscellaneous retail
Buckinghamshire Council,30.04.2022,19.04.2022,Children's Services,Education & Childrens Services - CS Dir,BUCKINGHAMSHIRE CNCL,11,0,11,Sec 20/31: Financial Assistance,Government services
Buckinghamshire Council,30.04.2022,19.04.2022,Adults and Health,Health & Wellbeing - Adults & Health Dir,TESCO STORES 5135,110.33,0,110.33,General Provisions (Food),Grocery stores
Buckinghamshire Council,30.04.2022,19.04.2022,Children's Services,Education & Childrens Services - CS Dir,TRAVELODGE GB0000,517.07,0,517.07,Sec 17: Financial Assistance,Travelodge
Buckinghamshire Council,30.04.2022,19.04.2022,Children's Services,Education & Childrens Services - CS Dir,ASDA  STORES 4396,30.31,0,30.31,General Provisions (Food),Grocery stores
Buckinghamshire Council,30.04.2022,19.04.2022,"Planning, Growth & Sustainability","Finance, Resources, Property & Asset PGS",WWW.NEOPOST.CO.UK,"1,000.00",0,"1,000.00",General Postage,Stationery & office supplies
Buckinghamshire Council,30.04.2022,19.04.2022,Communities,Communities - Trust Accounts,COSTCO WHOLESALE #102,81.83,0,81.83,Stationery & Office Supplies,Buying & shopping services/clubs
Buckinghamshire Council,30.04.2022,19.04.2022,"Planning, Growth & Sustainability",Planning & Regeneration - PGS,WH SMITH,21.98,0,21.98,"Books, Records, Films & Oth Publications",Newspapers / newsagents
Buckinghamshire Council,30.04.2022,19.04.2022,Resources,"Finance, Resources, Property & Asset Res",FACEBK *PSUU2C3N72,50.83,0,50.83,Advertising,Advertising services
Buckinghamshire Council,30.04.2022,19.04.2022,Resources,"Finance, Resources, Property & Asset Res",LINKEDIN-754,90.58,0,90.58,Advertising,Advertising services
Buckinghamshire Council,30.04.2022,19.04.2022,Children's Services,Education & Childrens Services - CS Dir,TRAINLINE.COM,30.51,0,30.51,Staff Travelling Expenses,Passenger railways
Buckinghamshire Council,30.04.2022,19.04.2022,Children's Services,Education & Childrens Services - CS Dir,AMZNMKTPLACE,51.97,0,51.97,Health & Safety Supplies & Services,Miscellaneous retail
Buckinghamshire Council,30.04.2022,19.04.2022,Adults and Health,Health & Wellbeing - Adults & Health Dir,HOMEDICS UK,23.94,0,23.94,Other Equipment and Materials,Electronics shops
Buckinghamshire Council,30.04.2022,19.04.2022,Adults and Health,Health & Wellbeing - Adults & Health Dir,LLOYDS PHARMACY,8.98,0,8.98,Medical Supplies & Services inc Vet'nary,Chemists & pharmacies
Buckinghamshire Council,30.04.2022,19.04.2022,Children's Services,Education & Childrens Services - CS Dir,ARGOS LTD,312.95,0,312.95,Activities & General Recreation,Discount stores
Buckinghamshire Council,30.04.2022,19.04.2022,Adults and Health,Health & Wellbeing - Adults & Health Dir,TESCO STORES 5135,61.35,0,61.35,General Provisions (Food),Grocery stores
Buckinghamshire Council,30.04.2022,19.04.2022,Children's Services,Education & Childrens Services - CS Dir,IKEA LTD SHOP ONLINE,110,0,110,Support for Foster Carers,Furniture & home furnishing
Buckinghamshire Council,30.04.2022,19.04.2022,Children's Services,Education & Childrens Services - CS Dir,THETRAINLINE.COM,79.58,0,79.58,Sec 20/31: Supp for Contact,Passenger railways
Buckinghamshire Council,30.04.2022,19.04.2022,Children's Services,Education & Childrens Services - CS Dir,PREMIER INN44529450,76.99,0,76.99,Other Employees Expenses,Premier Inn
Buckinghamshire Council,30.04.2022,19.04.2022,Children's Services,Education & Childrens Services - CS Dir,PREMIER INN44521615,116.49,0,116.49,Other Employees Expenses,Premier Inn
Buckinghamshire Council,30.04.2022,19.04.2022,Resources,"Finance, Resources, Property & Asset Res",Y  ENERGY,930,0,930,Awaiting Coding,Utilities
Buckinghamshire Council,30.04.2022,19.04.2022,Children's Services,Education & Childrens Services - CS Dir,TRAVELODGE GB0846,53.94,0,53.94,Sec 17: Financial Assistance,Travelodge
Buckinghamshire Council,30.04.2022,19.04.2022,Children's Services,Education & Childrens Services - CS Dir,TVLICENSING.CO.UK,159,0,159,Professional Services (non curriculum) - External,Consultants & public relation services
Buckinghamshire Council,30.04.2022,18.04.2022,Deputy Chief Executive,Leader - DCE,FACEBK BZ4P6FTPN2,840,0,840,Advertising,Advertising services
Buckinghamshire Council,30.04.2022,18.04.2022,Children's Services,Education & Childrens Services - CS Dir,AMZNMKTPLACE,11.99,0,11.99,Repair and Maintenance of Equipment,Miscellaneous retail
Buckinghamshire Council,30.04.2022,18.04.2022,Children's Services,Education & Childrens Services - CS Dir,TESCO STORES 2041,84.09,0,84.09,General Provisions (Food),Grocery stores
Buckinghamshire Council,30.04.2022,18.04.2022,Children's Services,Education & Childrens Services - CS Dir,ABSOLUTELY TEN PIN,34.13,0,34.13,Activities & General Recreation,Misc. recreational services
Buckinghamshire Council,30.04.2022,18.04.2022,Communities,Culture & Leisure - Communities Dir,SCREWFIX DIR LTD,50.75,10.16,60.91,"Workshop - Materials,Tools & Equipment",Timber & building supplies
Buckinghamshire Council,30.04.2022,18.04.2022,Communities,Climate Change & Environment - Community,AMZNMKTPLACE,7.99,0,7.99,Stationery & Office Supplies,Miscellaneous retail
Buckinghamshire Council,30.04.2022,17.04.2022,Children's Services,Education & Childrens Services - CS Dir,AMZNMKTPLACE,7.99,0,7.99,Cleaning Materials,Miscellaneous retail
Buckinghamshire Council,30.04.2022,17.04.2022,Children's Services,Education & Childrens Services - CS Dir,AMZNMKTPLACE,139.92,0,139.92,Printing & Stationery,Miscellaneous retail
Buckinghamshire Council,30.04.2022,17.04.2022,Communities,Housing & Homelessness & Regulatory Comm,WWW.JOHNLEWIS.COM,-30,0,-30,Furniture Fittings & IT,Department stores
Buckinghamshire Council,30.04.2022,17.04.2022,Children's Services,Education & Childrens Services - CS Dir,AMZNMKTPLACE,19.54,0,19.54,Miscellaneous (Other)  Expenses,Miscellaneous retail
Buckinghamshire Council,30.04.2022,17.04.2022,Children's Services,Education & Childrens Services - CS Dir,CANVA* I03393-12557676,22.99,0,22.99,Marketing,Photographic studios
Buckinghamshire Council,30.04.2022,17.04.2022,Children's Services,Education & Childrens Services - CS Dir,AMZNMKTPLACE,74.89,0,74.89,Activities & General Recreation,Miscellaneous retail
Buckinghamshire Council,30.04.2022,16.04.2022,Children's Services,Education & Childrens Services - CS Dir,AMZNMKTPLACE,17.12,0,17.12,Cleaning Materials,Miscellaneous retail
Buckinghamshire Council,30.04.2022,16.04.2022,Children's Services,Education & Childrens Services - CS Dir,AMZNMKTPLACE,17.12,0,17.12,Cleaning Materials,Miscellaneous retail
Buckinghamshire Council,30.04.2022,16.04.2022,Children's Services,Education & Childrens Services - CS Dir,AMZNMKTPLACE,17.12,0,17.12,Cleaning Materials,Miscellaneous retail
Buckinghamshire Council,30.04.2022,16.04.2022,Children's Services,Education & Childrens Services - CS Dir,TRAVELODGE GB0000,226.61,0,226.61,Sec 17: Financial Assistance,Travelodge
Buckinghamshire Council,30.04.2022,16.04.2022,Children's Services,Education & Childrens Services - CS Dir,JET TAXIS AYLESBURY LTD,6,0,6,Sec 17: Financial Assistance,Taxicabs & limousines
Buckinghamshire Council,30.04.2022,16.04.2022,Children's Services,Education & Childrens Services - CS Dir,JET TAXIS AYLESBURY LTD,30,0,30,Sec 17: Financial Assistance,Taxicabs & limousines
Buckinghamshire Council,30.04.2022,16.04.2022,Adults and Health,Health & Wellbeing - Adults & Health Dir,AMZNMktplace,31.95,6.39,31.95,Awaiting Coding,Miscellaneous retail
Buckinghamshire Council,30.04.2022,16.04.2022,Children's Services,Education & Childrens Services - CS Dir,EMPIRE CINEMAS,30.76,0,30.76,Activities & General Recreation,Theatres and ticket agencies
Buckinghamshire Council,30.04.2022,16.04.2022,Adults and Health,Health & Wellbeing - Adults & Health Dir,AMZNMKTPLACE,27.95,0,27.95,Catering & Domestic Equipment,Miscellaneous retail
Buckinghamshire Council,30.04.2022,16.04.2022,Resources,"Finance, Resources, Property & Asset Res",LINKEDIN 7535402963,254.58,0,254.58,Advertising,Advertising services
Buckinghamshire Council,30.04.2022,16.04.2022,Communities,Culture & Leisure - Communities Dir,AMZNMKTPLACE,8.99,0,8.99,Administrative Equipment & Tools,Miscellaneous retail
Buckinghamshire Council,30.04.2022,15.04.2022,Communities,Climate Change & Environment - Community,ROADWARRIOR,7.9,0,7.9,Computer Support Services,"Programming, data processing & system design"
Buckinghamshire Council,30.04.2022,15.04.2022,Adults and Health,Health & Wellbeing - Adults & Health Dir,B & Q 1305,51,8.51,51,Awaiting Coding,Home supply warehouse stores
Buckinghamshire Council,30.04.2022,15.04.2022,Resources,"Finance, Resources, Property & Asset Res",NABLE TECHNOLOGIES,179.28,0,179.28,IT Equipment Maintenance,Computer maintenance & repair
Buckinghamshire Council,30.04.2022,15.04.2022,Resources,"Finance, Resources, Property & Asset Res",FASTHOSTS,8.4,0,8.4,Computer Software Licences & Purchase,Computer network information services
Buckinghamshire Council,30.04.2022,14.04.2022,Adults and Health,Health & Wellbeing - Adults & Health Dir,SPACE KRAFT LTD,"1,018.26",0,"1,018.26",Activities & General Recreation,Catalogue sales
Buckinghamshire Council,30.04.2022,14.04.2022,Children's Services,Education & Childrens Services - CS Dir,PAYPAL,200,0,200,Professional Services (non curriculum) - External,Medical & health services
Buckinghamshire Council,30.04.2022,14.04.2022,"Planning, Growth & Sustainability",Housing & Homelessness & Regulatory PGS,EB *LOCAL AUTHORITY SA,50,0,50,"Courses, Conference and Seminar Fees",Misc business services
Buckinghamshire Council,30.04.2022,14.04.2022,Children's Services,Education & Childrens Services - CS Dir,NEALES TAXIS LTD,15,0,15,Sec 20/31: Supp for Contact,Taxicabs & limousines
Buckinghamshire Council,30.04.2022,14.04.2022,Children's Services,Education & Childrens Services - CS Dir,NEALES TAXIS LTD,15,0,15,Sec 20/31: Supp for Contact,Taxicabs & limousines
Buckinghamshire Council,30.04.2022,14.04.2022,Resources,"Finance, Resources, Property & Asset Res",C.A.R.S. BASINGSTOKE},194.46,0,194.46,Printing & Stationery,Misc. personal services
Buckinghamshire Council,30.04.2022,14.04.2022,"Planning, Growth & Sustainability",Housing & Homelessness & Regulatory PGS,HM LAND REGISTRY - ONLINE,3,0,3,Homelessness,Government services
Buckinghamshire Council,30.04.2022,14.04.2022,Children's Services,Education & Childrens Services - CS Dir,TESCO STORES 2038,278,0,278,General Provisions (Food),Grocery stores
Buckinghamshire Council,30.04.2022,14.04.2022,"Planning, Growth & Sustainability",Planning & Regeneration - PGS,WWW.VOUCHEREXPRESS.CO.,250,0,250,Other Employees Expenses,"Gift, card & novelty shops"
Buckinghamshire Council,30.04.2022,14.04.2022,Deputy Chief Executive,Communities - DCE,AO RETAIL LIMITED,722.49,144.51,867,Other Personal Needs,Household appliance stores
Buckinghamshire Council,30.04.2022,14.04.2022,Deputy Chief Executive,Communities - DCE,AO RETAIL LIMITED,186.66,37.34,224,Other Personal Needs,Household appliance stores
Buckinghamshire Council,30.04.2022,14.04.2022,Deputy Chief Executive,Communities - DCE,ARGOS LTD,250,0,250,Other Personal Needs,Discount stores
Buckinghamshire Council,30.04.2022,14.04.2022,Deputy Chief Executive,Communities - DCE,ARGOS LTD,75.95,0,75.95,Other Personal Needs,Discount stores
Buckinghamshire Council,30.04.2022,14.04.2022,Deputy Chief Executive,Communities - DCE,ARGOS LTD,372.95,0,372.95,Other Personal Needs,Discount stores
Buckinghamshire Council,30.04.2022,14.04.2022,Deputy Chief Executive,Communities - DCE,AO RETAIL LIMITED,215.83,43.17,259,Other Personal Needs,Household appliance stores
Buckinghamshire Council,30.04.2022,14.04.2022,Deputy Chief Executive,Communities - DCE,ARGOS LTD,235,0,235,Other Personal Needs,Discount stores
Buckinghamshire Council,30.04.2022,14.04.2022,Deputy Chief Executive,Communities - DCE,AO RETAIL LIMITED,311.66,62.34,374,Other Personal Needs,Household appliance stores
Buckinghamshire Council,30.04.2022,14.04.2022,Deputy Chief Executive,Communities - DCE,AO RETAIL LIMITED,614.16,122.84,737,Other Personal Needs,Household appliance stores
Buckinghamshire Council,30.04.2022,14.04.2022,Deputy Chief Executive,Communities - DCE,AO RETAIL LIMITED,345,69,414,Other Personal Needs,Household appliance stores
Buckinghamshire Council,30.04.2022,14.04.2022,Deputy Chief Executive,Communities - DCE,CURRYS ONLINE,199.98,40,239.98,Other Personal Needs,Electronics shops
Buckinghamshire Council,30.04.2022,14.04.2022,Deputy Chief Executive,Communities - DCE,CURRYS ONLINE,232.5,46.5,279,Other Personal Needs,Electronics shops
Buckinghamshire Council,30.04.2022,14.04.2022,Deputy Chief Executive,Communities - DCE,ARGOS LTD,400,0,400,Other Personal Needs,Discount stores
Buckinghamshire Council,30.04.2022,14.04.2022,Children's Services,Education & Childrens Services - CS Dir,HOTEL AT BOOKING.COM,227.7,0,227.7,Leaving Care - Rent,"Hotels, motels & resorts"
Buckinghamshire Council,30.04.2022,14.04.2022,Children's Services,Education & Childrens Services - CS Dir,AMAZON PRIME,7.99,0,7.99,Stationery & Office Supplies,Continuous subscriptions
Buckinghamshire Council,30.04.2022,14.04.2022,Communities,Culture & Leisure - Communities Dir,POST OFFICE COUNTER,3.35,0,3.35,General Postage,Postal services
Buckinghamshire Council,30.04.2022,14.04.2022,Deputy Chief Executive,Leader - DCE,THE AKEMAN INN,39.8,0,39.8,Subsistence,Restaurants
Buckinghamshire Council,30.04.2022,14.04.2022,"Planning, Growth & Sustainability",Housing & Homelessness & Regulatory PGS,THETRAINLINE.COM,50.14,0,50.14,Staff Travelling Expenses,Passenger railways
Buckinghamshire Council,30.04.2022,14.04.2022,"Planning, Growth & Sustainability","Finance, Resources, Property & Asset PGS",WICKES AYLESBURY,14.5,2.9,17.4,General Repairs & Maintenance,Timber & building supplies
Buckinghamshire Council,30.04.2022,14.04.2022,Children's Services,Education & Childrens Services - CS Dir,TESCO GIFT CARD,100,0,100,Sec 17: Financial Assistance,Grocery stores
Buckinghamshire Council,30.04.2022,14.04.2022,Resources,"Finance, Resources, Property & Asset Res",GENERAL REGISTER OFFIC,15,0,15,Miscellaneous (Other)  Expenses,Misc business services
Buckinghamshire Council,30.04.2022,14.04.2022,Children's Services,Education & Childrens Services - CS Dir,TAXIPAY,100,0,100,Sec 20/31: Supp for Contact,Taxicabs & limousines
Buckinghamshire Council,30.04.2022,14.04.2022,Children's Services,Education & Childrens Services - CS Dir,TRAINLINE,104.7,0,104.7,Sec 20/31: Supp for Contact,Passenger railways
Buckinghamshire Council,30.04.2022,14.04.2022,Children's Services,Education & Childrens Services - CS Dir,TAXIPAY,100,0,100,Sec 20/31: Supp for Contact,Taxicabs & limousines
Buckinghamshire Council,30.04.2022,14.04.2022,Children's Services,Education & Childrens Services - CS Dir,HERTFORDSHIRE COUNTY C,-11,0,-11,Sec 20/31: Financial Assistance,Schools
Buckinghamshire Council,30.04.2022,14.04.2022,Deputy Chief Executive,Leader - DCE,STARBUCKS AYLESBURY SAINS,39.85,0,39.85,Subsistence,Fast food restaurants
Buckinghamshire Council,30.04.2022,14.04.2022,Adults and Health,Health & Wellbeing - Adults & Health Dir,MILK AND MORE (RECUR,13.19,0,13.19,General Provisions (Food),Dairy produce stores
Buckinghamshire Council,30.04.2022,14.04.2022,Children's Services,Education & Childrens Services - CS Dir,AMAZON.CO.UK,60,0,60,"Exp of School, Club & College Activities",Direct sales companies
Buckinghamshire Council,30.04.2022,14.04.2022,Children's Services,Education & Childrens Services - CS Dir,CARD FACTORY,2.28,0,2.28,"Exp of School, Club & College Activities","Gift, card & novelty shops"
Buckinghamshire Council,30.04.2022,14.04.2022,Children's Services,Education & Childrens Services - CS Dir,THE WORKS,4,0,4,"Exp of School, Club & College Activities",Discount stores
Buckinghamshire Council,30.04.2022,14.04.2022,Children's Services,Education & Childrens Services - CS Dir,WILKO RETAIL LIMITED,21.45,0,21.45,"Exp of School, Club & College Activities",Misc. general merchandise
Buckinghamshire Council,30.04.2022,14.04.2022,Children's Services,Education & Childrens Services - CS Dir,ADT TAXIS,86,0,86,Sec 20/31: Supp for Contact,Taxicabs & limousines
Buckinghamshire Council,30.04.2022,14.04.2022,Children's Services,Education & Childrens Services - CS Dir,ADT TAXIS,86,0,86,Sec 20/31: Supp for Contact,Taxicabs & limousines
Buckinghamshire Council,30.04.2022,14.04.2022,Resources,"Finance, Resources, Property & Asset Res",GMO GLOBALSIGN LIM,297.6,0,297.6,Computer Software Licences & Purchase,Computer network information services
Buckinghamshire Council,30.04.2022,14.04.2022,Children's Services,Education & Childrens Services - CS Dir,TRAVELODGE GB0000,51.75,0,51.75,Sec 17: Financial Assistance,Travelodge
Buckinghamshire Council,30.04.2022,14.04.2022,Children's Services,Education & Childrens Services - CS Dir,HOLIDAY INN AYLESB,650.01,0,650.01,Sec 17: Financial Assistance,"Hotels, motels & resorts"
Buckinghamshire Council,30.04.2022,14.04.2022,"Planning, Growth & Sustainability","Finance, Resources, Property & Asset PGS",ALLSTAR BUSINESS SOLUTIO,518.45,103.69,622.14,Diesel Oil - Gas Oil,Fuel dealers
Buckinghamshire Council,30.04.2022,14.04.2022,"Planning, Growth & Sustainability","Finance, Resources, Property & Asset PGS",ALLSTAR BUSINESS SOLUTIO,0.07,0,0.07,Diesel Oil - Gas Oil,Fuel dealers
Buckinghamshire Council,30.04.2022,14.04.2022,Adults and Health,Health & Wellbeing - Adults & Health Dir,NOX HOTELS,"2,370.00",0,"2,370.00",Transport - Other Care - external,"Hotels, motels & resorts"
Buckinghamshire Council,30.04.2022,14.04.2022,Children's Services,Education & Childrens Services - CS Dir,AMZNMKTPLACE,59.99,0,59.99,Leaving Care - Grants for Care Leavers,Miscellaneous retail
Buckinghamshire Council,30.04.2022,14.04.2022,Children's Services,Education & Childrens Services - CS Dir,BUCKINGHAMSHIRE COUN MOT,245.33,0,245.33,Leaving Care  - Financial Assistance,Government services
Buckinghamshire Council,30.04.2022,14.04.2022,Communities,Communities - Trust Accounts,B.I.G.G.A. LTD,110,0,110,Awaiting Coding,"Member clubs, sport, recreation & golf"
Buckinghamshire Council,30.04.2022,14.04.2022,"Planning, Growth & Sustainability",Leader - PGS,MAILCHIMP,42.67,0,42.67,Software Support,Continuous subscriptions
Buckinghamshire Council,30.04.2022,14.04.2022,Communities,Climate Change & Environment - Community,PERRYS PARTS AYLESBURY,236.57,0,236.57,Repair & Maint of Vehicles & Plant,Motor vehicle supplies & parts
Buckinghamshire Council,30.04.2022,14.04.2022,Children's Services,Education & Childrens Services - CS Dir,THETRAINLINE.COM,33.41,0,33.41,Sec 20/31: Financial Assistance,Passenger railways
Buckinghamshire Council,30.04.2022,14.04.2022,Resources,"Finance, Resources, Property & Asset Res",OXFORD291OFFICE,689.5,0,689.5,Court Fees,Fines
Buckinghamshire Council,30.04.2022,14.04.2022,Children's Services,Education & Childrens Services - CS Dir,AMZNMKTPLACE,25.37,0,25.37,Consumable Supplies,Miscellaneous retail
Buckinghamshire Council,30.04.2022,14.04.2022,Deputy Chief Executive,Communities - DCE,HTTP://WWW.NOLANOILS.C,93.45,0,93.45,Other Personal Needs,Fuel dealers
Buckinghamshire Council,30.04.2022,13.04.2022,"Planning, Growth & Sustainability","Finance, Resources, Property & Asset PGS",AMAZON.CO.UK,80.67,0,80.67,Purchase.of Refreshments and Food,Direct sales companies
Buckinghamshire Council,30.04.2022,13.04.2022,Children's Services,Education & Childrens Services - CS Dir,AMAZON.CO.UK,18.51,0,18.51,Stationery & Office Supplies,Direct sales companies
Buckinghamshire Council,30.04.2022,13.04.2022,Adults and Health,Health & Wellbeing - Adults & Health Dir,AMZNMKTPLACE,12.08,0,12.08,Health & Safety Supplies & Services,Miscellaneous retail
Buckinghamshire Council,30.04.2022,13.04.2022,Communities,Culture & Leisure - Communities Dir,CARROLS IRONMONG,5.9,0,5.9,Stationery & Office Supplies,Hardware Equipment & Suppliers
Buckinghamshire Council,30.04.2022,13.04.2022,Resources,"Finance, Resources, Property & Asset Res",BUCKINGHAMSHIRE COUN MOT,"1,000.00",0,"1,000.00",Awaiting Coding,Government services
Buckinghamshire Council,30.04.2022,13.04.2022,Communities,Climate Change & Environment - Community,PAYPAL,10.99,0,10.99,Equipment,Computer software stores
Buckinghamshire Council,30.04.2022,13.04.2022,Communities,Culture & Leisure - Communities Dir,PAYPAL,8.44,0,8.44,"Workshop - Materials,Tools & Equipment",Department stores
Buckinghamshire Council,30.04.2022,13.04.2022,Communities,Culture & Leisure - Communities Dir,WWW.SCREWFIX.COM,29.85,5.97,35.82,Protective Clothing & Uniforms,Timber & building supplies
Buckinghamshire Council,30.04.2022,13.04.2022,Communities,Culture & Leisure - Communities Dir,WWW.SCREWFIX.COM,0.04,0,0.04,Protective Clothing & Uniforms,Timber & building supplies
Buckinghamshire Council,30.04.2022,13.04.2022,"Planning, Growth & Sustainability","Finance, Resources, Property & Asset PGS",LYRECO UK LTD,22.65,4.53,27.18,Stationery & Office Supplies,Stationery & office supplies
Buckinghamshire Council,30.04.2022,13.04.2022,"Planning, Growth & Sustainability","Finance, Resources, Property & Asset PGS",LYRECO UK LTD,0.01,0,0.01,Stationery & Office Supplies,Stationery & office supplies
Buckinghamshire Council,30.04.2022,13.04.2022,Deputy Chief Executive,Communities - DCE,FLOGAS BRITAIN LIMITED,463.47,0,463.47,Other Personal Needs,Fuel dealers
Buckinghamshire Council,30.04.2022,13.04.2022,Deputy Chief Executive,Communities - DCE,AO RETAIL LIMITED,514,0,514,Other Personal Needs,Household appliance stores
Buckinghamshire Council,30.04.2022,13.04.2022,Deputy Chief Executive,Communities - DCE,AO RETAIL LIMITED,723,0,723,Other Personal Needs,Household appliance stores
Buckinghamshire Council,30.04.2022,13.04.2022,Deputy Chief Executive,Communities - DCE,AO RETAIL LIMITED,289,0,289,Other Personal Needs,Household appliance stores
Buckinghamshire Council,30.04.2022,13.04.2022,Deputy Chief Executive,Communities - DCE,ARGOS LTD,229.95,0,229.95,Other Personal Needs,Discount stores
Buckinghamshire Council,30.04.2022,13.04.2022,Deputy Chief Executive,Communities - DCE,AO RETAIL LIMITED,793,0,793,Other Personal Needs,Household appliance stores
Buckinghamshire Council,30.04.2022,13.04.2022,Adults and Health,Health & Wellbeing - Adults & Health Dir,Amazon Prime,7.99,1.6,7.99,Stationery & Office Supplies,Continuous subscriptions
Buckinghamshire Council,30.04.2022,13.04.2022,Communities,Housing & Homelessness & Regulatory Comm,CHILTERN VIEW NURSER 01,15.96,0,15.96,Maintenance of Grounds,Florist supplies & nursery stock
Buckinghamshire Council,30.04.2022,13.04.2022,Communities,Housing & Homelessness & Regulatory Comm,BLINDS 2 GO LTD,152.69,30.54,183.23,Furniture Fittings & IT,Drapery & upholstery shops
Buckinghamshire Council,30.04.2022,13.04.2022,Communities,Housing & Homelessness & Regulatory Comm,WWW.JOHNLEWIS.COM,84,16.8,100.8,Furniture Fittings & IT,Department stores
Buckinghamshire Council,30.04.2022,13.04.2022,"Planning, Growth & Sustainability","Finance, Resources, Property & Asset PGS",SCREWFIX DIR LTD,8.08,0,8.08,General Repairs & Maintenance,Timber & building supplies
Buckinghamshire Council,30.04.2022,13.04.2022,"Planning, Growth & Sustainability","Finance, Resources, Property & Asset PGS",SCREWFIX DIR LTD,79.56,0,79.56,General Repairs & Maintenance,Timber & building supplies
Buckinghamshire Council,30.04.2022,13.04.2022,"Planning, Growth & Sustainability","Finance, Resources, Property & Asset PGS",INSTIT OF OCCPTNL SAFE,660,0,660,"Workshop - Materials,Tools & Equipment",Membership organisations
Buckinghamshire Council,30.04.2022,13.04.2022,Children's Services,Education & Childrens Services - CS Dir,AMZNMKTPLACE,184.47,0,184.47,Miscellaneous (Other)  Expenses,Miscellaneous retail
Buckinghamshire Council,30.04.2022,13.04.2022,Children's Services,Education & Childrens Services - CS Dir,SAINSBURYS S/MKTS,5,0,5,Miscellaneous (Other)  Expenses,Grocery stores
Buckinghamshire Council,30.04.2022,13.04.2022,Resources,"Finance, Resources, Property & Asset Res",BE CVS PAYMENTS,332.2,0,332.2,Awaiting Coding,Utilities
Buckinghamshire Council,30.04.2022,13.04.2022,Children's Services,Education & Childrens Services - CS Dir,BUCKINGHAMSHIRE CNCL,33,0,33,Sec 20/31: Financial Assistance,Government services
Buckinghamshire Council,30.04.2022,13.04.2022,Communities,Culture & Leisure - Communities Dir,BLACK PARK,7.35,0,7.35,Subsistence,Restaurants
Buckinghamshire Council,30.04.2022,13.04.2022,Children's Services,Education & Childrens Services - CS Dir,AMZNMKTPLACE,87.87,0,87.87,Stationery & Office Supplies,Miscellaneous retail
Buckinghamshire Council,30.04.2022,13.04.2022,Children's Services,Education & Childrens Services - CS Dir,BEANO,-17.64,0,-17.64,"Books, Records, Films & Oth Publications",Publishing & printing services
Buckinghamshire Council,30.04.2022,13.04.2022,Children's Services,Education & Childrens Services - CS Dir,AMZNMKTPLACE,29.99,0,29.99,Printing & Stationery,Miscellaneous retail
Buckinghamshire Council,30.04.2022,13.04.2022,Children's Services,Education & Childrens Services - CS Dir,TRAINLINE.COM,72.16,0,72.16,Staff Travelling Expenses,Passenger railways
Buckinghamshire Council,30.04.2022,13.04.2022,"Planning, Growth & Sustainability","Finance, Resources, Property & Asset PGS",WWW.SCREWFIX.COM,7.49,0,7.49,General Repairs & Maintenance,Timber & building supplies
Buckinghamshire Council,30.04.2022,13.04.2022,"Planning, Growth & Sustainability","Finance, Resources, Property & Asset PGS",WWW.SCREWFIX.COM,3.96,0,3.96,General Repairs & Maintenance,Timber & building supplies
Buckinghamshire Council,30.04.2022,13.04.2022,"Planning, Growth & Sustainability","Finance, Resources, Property & Asset PGS",WWW.SCREWFIX.COM,13.44,0,13.44,General Repairs & Maintenance,Timber & building supplies
Buckinghamshire Council,30.04.2022,13.04.2022,"Planning, Growth & Sustainability","Finance, Resources, Property & Asset PGS",WWW.SCREWFIX.COM,128.97,0,128.97,General Repairs & Maintenance,Timber & building supplies
Buckinghamshire Council,30.04.2022,13.04.2022,Communities,Climate Change & Environment - Community,AMZNMKTPLACE,24.47,0,24.47,Stationery & Office Supplies,Miscellaneous retail
Buckinghamshire Council,30.04.2022,13.04.2022,Adults and Health,Health & Wellbeing - Adults & Health Dir,CO-OPERATIVE FOOD,12.05,0,12.05,General Provisions (Food),Grocery stores
Buckinghamshire Council,30.04.2022,13.04.2022,Deputy Chief Executive,"Finance, Resources, Property & Asset DCE",CLOUDFLARE,162.73,0,162.73,Computer Software Licences & Purchase,Computer software stores
Buckinghamshire Council,30.04.2022,13.04.2022,Children's Services,Education & Childrens Services - CS Dir,WM MORRISONS STORE,3.65,0,3.65,General Provisions (Food),Grocery stores
Buckinghamshire Council,30.04.2022,13.04.2022,Children's Services,Education & Childrens Services - CS Dir,OSPREY CHARGING NETWOR,11.69,0,11.69,Staff Travelling Expenses,Car parking & garages
Buckinghamshire Council,30.04.2022,13.04.2022,Children's Services,Education & Childrens Services - CS Dir,ARGOS LTD,26.95,0,26.95,Equipment (including storage),Discount stores
Buckinghamshire Council,30.04.2022,13.04.2022,Children's Services,Education & Childrens Services - CS Dir,CO-OP GROUP 350090,11.35,0,11.35,Activities Programme,Grocery stores
Buckinghamshire Council,30.04.2022,13.04.2022,Children's Services,Education & Childrens Services - CS Dir,AMZNMKTPLACE,90.15,0,90.15,Leaving Care - Grants for Care Leavers,Miscellaneous retail
Buckinghamshire Council,30.04.2022,13.04.2022,Children's Services,Education & Childrens Services - CS Dir,AMZNMKTPLACE,51.98,0,51.98,Leaving Care - Grants for Care Leavers,Miscellaneous retail
Buckinghamshire Council,30.04.2022,13.04.2022,Children's Services,Education & Childrens Services - CS Dir,AMZNMKTPLACE,7.99,0,7.99,Leaving Care - Grants for Care Leavers,Miscellaneous retail
Buckinghamshire Council,30.04.2022,13.04.2022,Children's Services,Education & Childrens Services - CS Dir,SP LAURA JAMES HOME,409.98,0,409.98,Leaving Care - Grants for Care Leavers,Furniture & home furnishing
Buckinghamshire Council,30.04.2022,13.04.2022,Children's Services,Education & Childrens Services - CS Dir,ARGOS LTD,8.25,0,8.25,Leaving Care - Grants for Care Leavers,Discount stores
Buckinghamshire Council,30.04.2022,13.04.2022,"Planning, Growth & Sustainability","Finance, Resources, Property & Asset PGS",WWW.NEOPOST.CO.UK,"1,000.00",0,"1,000.00",General Postage,Stationery & office supplies
Buckinghamshire Council,30.04.2022,13.04.2022,Children's Services,Education & Childrens Services - CS Dir,TESCO STORES 5927,3,0,3,General Provisions (Food),Grocery stores
Buckinghamshire Council,30.04.2022,13.04.2022,Children's Services,Education & Childrens Services - CS Dir,SENSORY DIRECT,116,0,116,Activities & General Recreation,"Hobby, toy & game shops"
Buckinghamshire Council,30.04.2022,13.04.2022,Adults and Health,Health & Wellbeing - Adults & Health Dir,AMZNMKTPLACE,79.93,0,79.93,Activities & General Recreation,Miscellaneous retail
Buckinghamshire Council,30.04.2022,13.04.2022,Adults and Health,Health & Wellbeing - Adults & Health Dir,AMAZON.CO.UK,34.99,0,34.99,Activities & General Recreation,Direct sales companies
Buckinghamshire Council,30.04.2022,13.04.2022,"Planning, Growth & Sustainability",Leader - PGS,NEW YORK DELI (AYLESBURY),63.72,0,63.72,Subsistence,Restaurants
Buckinghamshire Council,30.04.2022,13.04.2022,Communities,Culture & Leisure - Communities Dir,AMZNMKTPLACE,46.97,0,46.97,Administrative Equipment & Tools,Miscellaneous retail
Buckinghamshire Council,30.04.2022,13.04.2022,Resources,"Finance, Resources, Property & Asset Res",OXFORD291OFFICE,171.5,0,171.5,Court Fees,Fines
Buckinghamshire Council,30.04.2022,13.04.2022,Children's Services,Education & Childrens Services - CS Dir,AMAZON.CO.UK,4.92,0,4.92,Stationery & Office Supplies,Direct sales companies
Buckinghamshire Council,30.04.2022,13.04.2022,Children's Services,Education & Childrens Services - CS Dir,GOMPELS HEALTHCARE,116.35,0,116.35,Cleaning Materials,Wholesale clubs
Buckinghamshire Council,30.04.2022,12.04.2022,Children's Services,Education & Childrens Services - CS Dir,WWW.VOUCHEREXPRESS.CO.,300,0,300,Other Employees Expenses,"Gift, card & novelty shops"
Buckinghamshire Council,30.04.2022,12.04.2022,Children's Services,Education & Childrens Services - CS Dir,TRAINLINE.COM,114.06,0,114.06,Sec 20/31: Supp for Contact,Passenger railways
Buckinghamshire Council,30.04.2022,12.04.2022,"Planning, Growth & Sustainability",Housing & Homelessness & Regulatory PGS,HM LAND REGISTRY - ONLINE,3,0,3,Homelessness,Government services
Buckinghamshire Council,30.04.2022,12.04.2022,Children's Services,Education & Childrens Services - CS Dir,EERO,99,0,99,Health & Safety Supplies & Services,Computer software stores
Buckinghamshire Council,30.04.2022,12.04.2022,Children's Services,Education & Childrens Services - CS Dir,WWW.BUCKINGHAMSHIRE.GOV,"1,116.00",0,"1,116.00",Leaving Care  - Financial Assistance,Government services
Buckinghamshire Council,30.04.2022,12.04.2022,Children's Services,Education & Childrens Services - CS Dir,BUCKINGHAM HOTELS,649.6,0,649.6,Sec 20/31: Financial Assistance,"Hotels, motels & resorts"
Buckinghamshire Council,30.04.2022,12.04.2022,Resources,"Finance, Resources, Property & Asset Res",AMZNMKTPLACE,49.95,0,49.95,IT Equipment Purchase,Miscellaneous retail
Buckinghamshire Council,30.04.2022,12.04.2022,Deputy Chief Executive,Communities - DCE,ARGOS LTD,59.95,0,59.95,Other Personal Needs,Discount stores
Buckinghamshire Council,30.04.2022,12.04.2022,Deputy Chief Executive,Communities - DCE,AO RETAIL LIMITED,259,0,259,Other Personal Needs,Household appliance stores
Buckinghamshire Council,30.04.2022,12.04.2022,Deputy Chief Executive,Communities - DCE,AO RETAIL LIMITED,658,0,658,Other Personal Needs,Household appliance stores
Buckinghamshire Council,30.04.2022,12.04.2022,Deputy Chief Executive,Communities - DCE,AO RETAIL LIMITED,747,0,747,Other Personal Needs,Household appliance stores
Buckinghamshire Council,30.04.2022,12.04.2022,Adults and Health,Health & Wellbeing - Adults & Health Dir,AMZNMktplace,68.83,0,68.83,Awaiting Coding,Miscellaneous retail
Buckinghamshire Council,30.04.2022,12.04.2022,Adults and Health,Communities - DCE,AMZNMKTPLACE,5.98,0,5.98,Protective Clothing & Uniforms,Miscellaneous retail
Buckinghamshire Council,30.04.2022,12.04.2022,Children's Services,Education & Childrens Services - CS Dir,TRAINLINE,76.2,0,76.2,Sec 20/31: Supp for Contact,Passenger railways
Buckinghamshire Council,30.04.2022,12.04.2022,Communities,Culture & Leisure - Communities Dir,PAYPAL,129.9,0,129.9,Awaiting Coding,Sporting goods shops
Buckinghamshire Council,30.04.2022,12.04.2022,Communities,Culture & Leisure - Communities Dir,Amazon.co.uk,52,0,52,Stationery & Office Supplies,Direct sales companies
Buckinghamshire Council,30.04.2022,12.04.2022,Communities,Culture & Leisure - Communities Dir,Amazon.co.uk,48,0,48,Stationery & Office Supplies,Direct sales companies
Buckinghamshire Council,30.04.2022,12.04.2022,Adults and Health,Health & Wellbeing - Adults & Health Dir,WAITROSE 177,16.69,0,16.69,General Provisions (Food),Grocery stores
Buckinghamshire Council,30.04.2022,12.04.2022,Children's Services,Education & Childrens Services - CS Dir,THETRAINLINE.COM,169.99,0,169.99,Sec 20/31: Financial Assistance,Passenger railways
Buckinghamshire Council,30.04.2022,12.04.2022,Communities,Climate Change & Environment - Community,AMZNMKTPLACE,15.47,0,15.47,Stationery & Office Supplies,Miscellaneous retail
Buckinghamshire Council,30.04.2022,12.04.2022,Communities,Climate Change & Environment - Community,WWW.LETSRECYCLE.COM,196.8,0,196.8,Course Fees & Post Entry Training,
Buckinghamshire Council,30.04.2022,12.04.2022,"Planning, Growth & Sustainability",Planning & Regeneration - PGS,OXFORD291OFFICE,22,0,22,Payments To Contractors,Fines
Buckinghamshire Council,30.04.2022,12.04.2022,Children's Services,Education & Childrens Services - CS Dir,PAYPAL,75.54,0,75.54,Sec 17: Financial Assistance One Off,Schools
Buckinghamshire Council,30.04.2022,12.04.2022,Children's Services,Education & Childrens Services - CS Dir,A1 TAXI SERVICE,108,0,108,Sec 17: Transport,Taxicabs & limousines
Buckinghamshire Council,30.04.2022,12.04.2022,Children's Services,Education & Childrens Services - CS Dir,GULLIVERS LAND &DINO &,43.25,0,43.25,Awaiting Coding,Amusement parks & circuses
Buckinghamshire Council,30.04.2022,12.04.2022,Children's Services,Education & Childrens Services - CS Dir,GULLIVERS LAND &DINO &,2.75,0,2.75,Awaiting Coding,Amusement parks & circuses
Buckinghamshire Council,30.04.2022,12.04.2022,Children's Services,Education & Childrens Services - CS Dir,TESCO STORES 2041,44.35,0,44.35,Awaiting Coding,Grocery stores
Buckinghamshire Council,30.04.2022,12.04.2022,Children's Services,Education & Childrens Services - CS Dir,MAILCHIMP,196.28,0,196.28,Service Development,
Buckinghamshire Council,30.04.2022,12.04.2022,Children's Services,Education & Childrens Services - CS Dir,AMZNMKTPLACE,6.28,0,6.28,Leaving Care - Grants for Care Leavers,Miscellaneous retail
Buckinghamshire Council,30.04.2022,12.04.2022,Children's Services,Education & Childrens Services - CS Dir,VIEW HOTEL FOLKESTONE,113.95,0,113.95,"Courses, Conference and Seminar Fees","Hotels, motels & resorts"
Buckinghamshire Council,30.04.2022,12.04.2022,Children's Services,Education & Childrens Services - CS Dir,TAXIPAY,15,0,15,Leaving Care - Transport,Taxicabs & limousines
Buckinghamshire Council,30.04.2022,12.04.2022,Children's Services,Education & Childrens Services - CS Dir,TESCO STORES 5927,3.4,0,3.4,General Provisions (Food),Grocery stores
Buckinghamshire Council,30.04.2022,12.04.2022,"Planning, Growth & Sustainability",Housing & Homelessness & Regulatory PGS,AMZNMKTPLACE,256.79,0,256.79,Furniture,Miscellaneous retail
Buckinghamshire Council,30.04.2022,12.04.2022,Children's Services,Education & Childrens Services - CS Dir,TESCO STORES 2041,27.19,0,27.19,Activities & General Recreation,Grocery stores
Buckinghamshire Council,30.04.2022,12.04.2022,Children's Services,Education & Childrens Services - CS Dir,HOBBYCRAFT,47,0,47,Activities & General Recreation,Art & craft shops
Buckinghamshire Council,30.04.2022,12.04.2022,Resources,"Finance, Resources, Property & Asset Res",FACEBK *RUYTFCBM72,200,0,200,Advertising,Advertising services
Buckinghamshire Council,30.04.2022,12.04.2022,Children's Services,Education & Childrens Services - CS Dir,AMZNMktplace,7.8,0,7.8,Awaiting Coding,Miscellaneous retail
Buckinghamshire Council,30.04.2022,12.04.2022,Communities,Climate Change & Environment - Community,VFS (SOUTHAMPTON) LIMI,168.9,0,168.9,Repair & Maint of Vehicles & Plant,Motor vehicle supplies & parts
Buckinghamshire Council,30.04.2022,12.04.2022,Adults and Health,Health & Wellbeing - Adults & Health Dir,TESCO SUBSCRIPTION,7.99,0,7.99,Stationery & Office Supplies,Continuous subscriptions
Buckinghamshire Council,30.04.2022,12.04.2022,Adults and Health,Health & Wellbeing - Adults & Health Dir,AMAZON PRIME,7.99,0,7.99,Stationery & Office Supplies,Continuous subscriptions
Buckinghamshire Council,30.04.2022,12.04.2022,Children's Services,Education & Childrens Services - CS Dir,INTELLISOFTWARE LTD,52.8,0,52.8,Support for Foster Carers,"Computers, peripherals & software"
Buckinghamshire Council,30.04.2022,12.04.2022,Adults and Health,Health & Wellbeing - Adults & Health Dir,CURRYS ONLINE,54.99,0,54.99,Miscellaneous (Other)  Expenses,Electronics shops
Buckinghamshire Council,30.04.2022,12.04.2022,Children's Services,Education & Childrens Services - CS Dir,TESCO STORES 2020,104.32,0,104.32,Consumable Supplies,Grocery stores
Buckinghamshire Council,30.04.2022,12.04.2022,Adults and Health,Health & Wellbeing - Adults & Health Dir,WAITROSE 192,7,0,7,Awaiting Coding,Grocery stores
Buckinghamshire Council,30.04.2022,12.04.2022,Children's Services,Education & Childrens Services - CS Dir,WWW.CORAM.ORG.UK,40.6,0,40.6,"Books, Records, Films & Oth Publications",Charitable organisations
Buckinghamshire Council,30.04.2022,12.04.2022,"Planning, Growth & Sustainability","Finance, Resources, Property & Asset PGS",SAFE FENCE,876,0,876,Security Contracts,Home supply warehouse stores
Buckinghamshire Council,30.04.2022,11.04.2022,Resources,"Finance, Resources, Property & Asset Res",AMZNMKTPLACE,119.9,0,119.9,IT Equipment Purchase,Miscellaneous retail
Buckinghamshire Council,30.04.2022,11.04.2022,Resources,"Finance, Resources, Property & Asset Res",AMZNMKTPLACE,139.9,0,139.9,IT Equipment Purchase,Miscellaneous retail
Buckinghamshire Council,30.04.2022,11.04.2022,Children's Services,Education & Childrens Services - CS Dir,DIRECTSHOPFITTINGS,82.98,0,82.98,Other Equipment and Materials,Misc. general merchandise
Buckinghamshire Council,30.04.2022,11.04.2022,Deputy Chief Executive,Communities - DCE,AO RETAIL LIMITED,-10,0,-10,Other Personal Needs,Household appliance stores
Buckinghamshire Council,30.04.2022,11.04.2022,Children's Services,Education & Childrens Services - CS Dir,EMAP UK,5,0,5,Leaving Care  - Financial Assistance,Computer software stores
Buckinghamshire Council,30.04.2022,11.04.2022,Communities,Transport - Communities Dir,EPSON STORE UK,390.44,0,390.44,Bus Stops and Infrastructure,Electronics shops
Buckinghamshire Council,30.04.2022,11.04.2022,Deputy Chief Executive,Communities - DCE,AO RETAIL LIMITED,289,0,289,Other Personal Needs,Household appliance stores
Buckinghamshire Council,30.04.2022,11.04.2022,Deputy Chief Executive,Communities - DCE,AO RETAIL LIMITED,249,0,249,Other Personal Needs,Household appliance stores
Buckinghamshire Council,30.04.2022,11.04.2022,Deputy Chief Executive,Communities - DCE,AO RETAIL LIMITED,"1,052.00",0,"1,052.00",Other Personal Needs,Household appliance stores
Buckinghamshire Council,30.04.2022,11.04.2022,Deputy Chief Executive,Communities - DCE,ARGOS LTD,282.95,0,282.95,Other Personal Needs,Discount stores
Buckinghamshire Council,30.04.2022,11.04.2022,Children's Services,Education & Childrens Services - CS Dir,TRAVELODGE GB0000,412.03,0,412.03,Sec 20/31: Financial Assistance,Travelodge
Buckinghamshire Council,30.04.2022,11.04.2022,Communities,Housing & Homelessness & Regulatory Comm,GEORGE BROWNS LTD CHESHAM,76.8,0,76.8,Maintenance of Grounds,Lawn & garden supply/nursery
Buckinghamshire Council,30.04.2022,11.04.2022,"Planning, Growth & Sustainability","Finance, Resources, Property & Asset PGS",WWW.SCREWFIX.COM,33.98,0,33.98,Other Equipment and Materials,Timber & building supplies
Buckinghamshire Council,30.04.2022,11.04.2022,Children's Services,Education & Childrens Services - CS Dir,HM PASSPORT OFFICE,54,0,54,Sec 20/31: Financial Assistance,Government services
Buckinghamshire Council,30.04.2022,11.04.2022,Children's Services,Education & Childrens Services - CS Dir,HM PASSPORT OFFICE,54,0,54,Sec 20/31: Financial Assistance,Government services
Buckinghamshire Council,30.04.2022,11.04.2022,Children's Services,Education & Childrens Services - CS Dir,HM PASSPORT OFFICE,80.5,0,80.5,Sec 20/31: Financial Assistance,Government services
Buckinghamshire Council,30.04.2022,11.04.2022,Children's Services,Education & Childrens Services - CS Dir,HM PASSPORT OFFICE,54,0,54,Sec 20/31: Financial Assistance,Government services
Buckinghamshire Council,30.04.2022,11.04.2022,Children's Services,Education & Childrens Services - CS Dir,HM PASSPORT OFFICE,54,0,54,Sec 20/31: Financial Assistance,Government services
Buckinghamshire Council,30.04.2022,11.04.2022,Adults and Health,Health & Wellbeing - Adults & Health Dir,CO-OPERATIVE FOOD,5.2,0,5.2,General Provisions (Food),Grocery stores
Buckinghamshire Council,30.04.2022,11.04.2022,Children's Services,Education & Childrens Services - CS Dir,WAITROSE,17.7,0,17.7,"Exp of School, Club & College Activities",Grocery stores
Buckinghamshire Council,30.04.2022,11.04.2022,Children's Services,Education & Childrens Services - CS Dir,"BOOTS,AYLESBURY",3.15,0,3.15,"Exp of School, Club & College Activities",Chemists & pharmacies
Buckinghamshire Council,30.04.2022,11.04.2022,Children's Services,Education & Childrens Services - CS Dir,SAINSBURYS S/MKTS,3.58,0,3.58,"Exp of School, Club & College Activities",Grocery stores
Buckinghamshire Council,30.04.2022,11.04.2022,Communities,Climate Change & Environment - Community,PARKING-WALTON ST,4,0,4,Staff Travelling Expenses,Car parking & garages
Buckinghamshire Council,30.04.2022,11.04.2022,Adults and Health,Health & Wellbeing - Adults & Health Dir,TESCO STORES 5135,156.53,0,156.53,General Provisions (Food),Grocery stores
Buckinghamshire Council,30.04.2022,11.04.2022,Deputy Chief Executive,"Finance, Resources, Property & Asset DCE",SLACK T181RTHAL,19.34,0,19.34,Computer Consumables,Computer software stores
Buckinghamshire Council,30.04.2022,11.04.2022,Children's Services,Education & Childrens Services - CS Dir,HOTEL AT BOOKING.COM,200,0,200,"Courses, Conference and Seminar Fees","Hotels, motels & resorts"
Buckinghamshire Council,30.04.2022,11.04.2022,Children's Services,Education & Childrens Services - CS Dir,TRAVELODGE GB0000,444.9,0,444.9,Sec 17: Financial Assistance,Travelodge
Buckinghamshire Council,30.04.2022,11.04.2022,Children's Services,Education & Childrens Services - CS Dir,COSTA COFFEE BEDGROVE,7.5,0,7.5,Subsistence,Fast food restaurants
Buckinghamshire Council,30.04.2022,11.04.2022,Children's Services,Education & Childrens Services - CS Dir,AMZNMKTPLACE,13.99,0,13.99,Equipment (including storage),Miscellaneous retail
Buckinghamshire Council,30.04.2022,11.04.2022,Children's Services,Education & Childrens Services - CS Dir,HIGHSTREETVOUCHERS,50,0,50,Leaving Care  - Financial Assistance,"Civic, social & fraternal associations"
Buckinghamshire Council,30.04.2022,11.04.2022,Children's Services,Education & Childrens Services - CS Dir,TRAINLINE,114.5,0,114.5,Leaving Care - Transport,Passenger railways
Buckinghamshire Council,30.04.2022,11.04.2022,"Planning, Growth & Sustainability","Finance, Resources, Property & Asset PGS",WWW.NEOPOST.CO.UK,"1,000.00",0,"1,000.00",General Postage,Stationery & office supplies
Buckinghamshire Council,30.04.2022,11.04.2022,Adults and Health,Health & Wellbeing - Adults & Health Dir,ASDA SUPERSTORE,2,0,2,Printing & Stationery,Grocery stores
Buckinghamshire Council,30.04.2022,11.04.2022,Resources,"Finance, Resources, Property & Asset Res",LINKEDIN-751,92.22,0,92.22,Advertising,Advertising services
Buckinghamshire Council,30.04.2022,11.04.2022,"Planning, Growth & Sustainability",Climate Change & Environment - PGS,WWW.TREKITT.CO.UK,42.95,8.59,51.54,Other Equipment and Materials,Men & womens clothing shops
Buckinghamshire Council,30.04.2022,11.04.2022,"Planning, Growth & Sustainability",Climate Change & Environment - PGS,WWW.TREKITT.CO.UK,0.01,0,0.01,Other Equipment and Materials,Men & womens clothing shops
Buckinghamshire Council,30.04.2022,11.04.2022,"Planning, Growth & Sustainability",Climate Change & Environment - PGS,PAYPAL,340,0,340,Other Equipment and Materials,"Pet shops, food & supply"
Buckinghamshire Council,30.04.2022,11.04.2022,"Planning, Growth & Sustainability",Climate Change & Environment - PGS,PAYPAL,30.55,0,30.55,Other Equipment and Materials,Chemical products
Buckinghamshire Council,30.04.2022,11.04.2022,Adults and Health,Health & Wellbeing - Adults & Health Dir,TESCO STORES 5135,82.3,0,82.3,General Provisions (Food),Grocery stores
Buckinghamshire Council,30.04.2022,11.04.2022,Adults and Health,Health & Wellbeing - Adults & Health Dir,AMZNMKTPLACE,114.82,0,114.82,Activities & General Recreation,Miscellaneous retail
Buckinghamshire Council,30.04.2022,11.04.2022,Children's Services,Education & Childrens Services - CS Dir,TRAINLINE.COM,98.39,0,98.39,Staff Travelling Expenses,Passenger railways
Buckinghamshire Council,30.04.2022,11.04.2022,Adults and Health,Health & Wellbeing - Adults & Health Dir,FIVE TWO S TAXIS,225,0,225,Staff Travelling Expenses,Taxicabs & limousines
Buckinghamshire Council,30.04.2022,11.04.2022,Adults and Health,Health & Wellbeing - Adults & Health Dir,SAINSBURYS S/MKTS,28.55,0,28.55,Awaiting Coding,Grocery stores
Buckinghamshire Council,30.04.2022,11.04.2022,Communities,Partnerships - Communities,BT.COM BUSINESS BP,84.15,16.83,100.98,Telephones,Phone services
Buckinghamshire Council,30.04.2022,11.04.2022,Communities,Partnerships - Communities,BT.COM BUSINESS BP,4.22,0,4.22,Telephones,Phone services
Buckinghamshire Council,30.04.2022,11.04.2022,Deputy Chief Executive,Communities - DCE,ARGOS LTD,198,0,198,Other Personal Needs,Discount stores
Buckinghamshire Council,30.04.2022,11.04.2022,Deputy Chief Executive,Communities - DCE,ARGOS LTD,282.95,0,282.95,Other Personal Needs,Discount stores
Buckinghamshire Council,30.04.2022,11.04.2022,Deputy Chief Executive,Communities - DCE,ARGOS LTD,266.95,0,266.95,Other Personal Needs,Discount stores
Buckinghamshire Council,30.04.2022,11.04.2022,Resources,"Finance, Resources, Property & Asset Res",GEN REGISTER OFFICE,14,0,14,Miscellaneous (Other)  Expenses,Government services
Buckinghamshire Council,30.04.2022,11.04.2022,Children's Services,Education & Childrens Services - CS Dir,WWW.CORAM.ORG.UK,26.4,0,26.4,"Books, Records, Films & Oth Publications",Charitable organisations
Buckinghamshire Council,30.04.2022,10.04.2022,Children's Services,Education & Childrens Services - CS Dir,AMAZON.CO.UK,16.9,0,16.9,Printing & Stationery,Direct sales companies
Buckinghamshire Council,30.04.2022,10.04.2022,Children's Services,Education & Childrens Services - CS Dir,THORPE PARK,85,0,85,Activities & General Recreation,Theatres and ticket agencies
Buckinghamshire Council,30.04.2022,10.04.2022,Children's Services,Education & Childrens Services - CS Dir,TESCO STORES 2041,123.19,0,123.19,General Provisions (Food),Grocery stores
Buckinghamshire Council,30.04.2022,10.04.2022,Communities,Culture & Leisure - Communities Dir,AMZNMKTPLACE,10.65,2.13,12.78,"Workshop - Materials,Tools & Equipment",Miscellaneous retail
Buckinghamshire Council,30.04.2022,10.04.2022,Resources,"Finance, Resources, Property & Asset Res",AMZNMKTPLACE,16.18,0,16.18,IT Equipment Purchase,Miscellaneous retail
Buckinghamshire Council,30.04.2022,10.04.2022,Resources,"Finance, Resources, Property & Asset Res",AMZNMKTPLACE,99.9,0,99.9,IT Equipment Purchase,Miscellaneous retail
Buckinghamshire Council,30.04.2022,10.04.2022,Resources,"Finance, Resources, Property & Asset Res",AMZNMKTPLACE,139.9,0,139.9,IT Equipment Purchase,Miscellaneous retail
Buckinghamshire Council,30.04.2022,10.04.2022,Adults and Health,Health & Wellbeing - Adults & Health Dir,Amazon.co.uk,43.6,0,43.6,Stationery & Office Supplies,Direct sales companies
Buckinghamshire Council,30.04.2022,10.04.2022,Children's Services,Education & Childrens Services - CS Dir,AMAZON PRIME,7.99,0,7.99,Payments - Other Bodies,Continuous subscriptions
Buckinghamshire Council,30.04.2022,10.04.2022,Children's Services,Education & Childrens Services - CS Dir,AMZNMKTPLACE,24.48,0,24.48,Other Equipment and Materials,Miscellaneous retail
Buckinghamshire Council,30.04.2022,10.04.2022,Children's Services,Education & Childrens Services - CS Dir,AMZNMKTPLACE,62.99,0,62.99,Other Equipment and Materials,Miscellaneous retail
Buckinghamshire Council,30.04.2022,10.04.2022,Children's Services,Education & Childrens Services - CS Dir,AMZNMKTPLACE,20.89,0,20.89,Activities & General Recreation,Miscellaneous retail
Buckinghamshire Council,30.04.2022,10.04.2022,Adults and Health,Health & Wellbeing - Adults & Health Dir,AMZNMKTPLACE,45.33,0,45.33,Activities & General Recreation,Miscellaneous retail
Buckinghamshire Council,30.04.2022,10.04.2022,Adults and Health,Health & Wellbeing - Adults & Health Dir,AMZNMktplace,7.98,0,7.98,Awaiting Coding,Miscellaneous retail
Buckinghamshire Council,30.04.2022,10.04.2022,"Planning, Growth & Sustainability",Planning & Regeneration - PGS,TRAINLINE.COM,26.09,0,26.09,Staff Travelling Expenses,Passenger railways
Buckinghamshire Council,30.04.2022,09.04.2022,Resources,"Finance, Resources, Property & Asset Res",AMAZON.CO.UK,101.3,0,101.3,IT Equipment Purchase,Direct sales companies
Buckinghamshire Council,30.04.2022,09.04.2022,Communities,Culture & Leisure - Communities Dir,AMZNMKTPLACE,13.44,0,13.44,Printing & Stationery,Miscellaneous retail
Buckinghamshire Council,30.04.2022,09.04.2022,Communities,Culture & Leisure - Communities Dir,FACEBK 8JXVDB7JB2,1.49,0,1.49,Advertising,Advertising services
Buckinghamshire Council,30.04.2022,09.04.2022,Children's Services,Education & Childrens Services - CS Dir,AMZNMKTPLACE,23.98,0,23.98,Printing & Stationery,Miscellaneous retail
Buckinghamshire Council,30.04.2022,09.04.2022,Children's Services,Education & Childrens Services - CS Dir,AMAZON.CO.UK,31.66,0,31.66,Printing & Stationery,Direct sales companies
Buckinghamshire Council,30.04.2022,09.04.2022,Children's Services,Education & Childrens Services - CS Dir,ODEON CINEMAS,-19,0,-19,Activities & General Recreation,Cinemas
Buckinghamshire Council,30.04.2022,09.04.2022,Communities,Climate Change & Environment - Community,ROADWARRIOR,47.6,0,47.6,Computer Support Services,"Programming, data processing & system design"
Buckinghamshire Council,30.04.2022,09.04.2022,Children's Services,Education & Childrens Services - CS Dir,AMAZON PRIME,7.99,0,7.99,Stationery & Office Supplies,Continuous subscriptions
Buckinghamshire Council,30.04.2022,09.04.2022,Children's Services,Education & Childrens Services - CS Dir,UBER   *EATS,9.23,0,9.23,Subsistence,Restaurants
Buckinghamshire Council,30.04.2022,09.04.2022,Children's Services,Education & Childrens Services - CS Dir,GULLIVERS LAND &DINO &,5.35,0,5.35,Awaiting Coding,Amusement parks & circuses
Buckinghamshire Council,30.04.2022,09.04.2022,"Planning, Growth & Sustainability",Housing & Homelessness & Regulatory PGS,JOHN LEWIS,150,0,150,Other General Office Expenses,Department stores
Buckinghamshire Council,30.04.2022,09.04.2022,Adults and Health,Health & Wellbeing - Adults & Health Dir,AMAZON PRIME,7.99,0,7.99,Stationery & Office Supplies,Continuous subscriptions
Buckinghamshire Council,30.04.2022,09.04.2022,Communities,Partnerships - Communities,MAILCHIMP,7.55,1.51,9.06,Miscellaneous (Other)  Expenses,
Buckinghamshire Council,30.04.2022,09.04.2022,Communities,Partnerships - Communities,MAILCHIMP,0.04,0,0.04,Miscellaneous (Other)  Expenses,
Buckinghamshire Council,30.04.2022,09.04.2022,Communities,Culture & Leisure - Communities Dir,WWW.BUCKINGHAMSHIRE.GOV,24.8,0,24.8,"Trade Refuse Disposal, Cesspools & Pests",Government services
Buckinghamshire Council,30.04.2022,08.04.2022,Communities,Climate Change & Environment - Community,FACEBK QDDKHDPBM2,186.58,0,186.58,Waste Prevention costs,Advertising services
Buckinghamshire Council,30.04.2022,08.04.2022,Children's Services,Education & Childrens Services - CS Dir,AMZNMKTPLACE,54.99,0,54.99,Other Equipment and Materials,Miscellaneous retail
Buckinghamshire Council,30.04.2022,08.04.2022,Children's Services,Education & Childrens Services - CS Dir,ABSOLUTELY TEN PIN,54.41,0,54.41,Activities & General Recreation,Misc. recreational services
Buckinghamshire Council,30.04.2022,08.04.2022,Deputy Chief Executive,Communities - DCE,CURRYS ONLINE,261.65,52.33,313.98,Other Personal Needs,Electronics shops
Buckinghamshire Council,30.04.2022,08.04.2022,Deputy Chief Executive,Communities - DCE,CURRYS ONLINE,0.02,0,0.02,Other Personal Needs,Electronics shops
Buckinghamshire Council,30.04.2022,08.04.2022,Deputy Chief Executive,Communities - DCE,AO RETAIL LIMITED,705.8,141.16,846.96,Other Personal Needs,Household appliance stores
Buckinghamshire Council,30.04.2022,08.04.2022,Deputy Chief Executive,Communities - DCE,AO RETAIL LIMITED,0.04,0,0.04,Other Personal Needs,Household appliance stores
Buckinghamshire Council,30.04.2022,08.04.2022,Deputy Chief Executive,Communities - DCE,AO RETAIL LIMITED,489.99,98.01,588,Other Personal Needs,Household appliance stores
Buckinghamshire Council,30.04.2022,08.04.2022,Deputy Chief Executive,Communities - DCE,AO RETAIL LIMITED,705.8,141.16,846.96,Other Personal Needs,Household appliance stores
Buckinghamshire Council,30.04.2022,08.04.2022,Deputy Chief Executive,Communities - DCE,AO RETAIL LIMITED,0.04,0,0.04,Other Personal Needs,Household appliance stores
Buckinghamshire Council,30.04.2022,08.04.2022,Deputy Chief Executive,Communities - DCE,AO RETAIL LIMITED,739.15,147.83,886.98,Other Personal Needs,Household appliance stores
Buckinghamshire Council,30.04.2022,08.04.2022,Deputy Chief Executive,Communities - DCE,AO RETAIL LIMITED,0.02,0,0.02,Other Personal Needs,Household appliance stores
Buckinghamshire Council,30.04.2022,08.04.2022,Deputy Chief Executive,Communities - DCE,ARGOS LTD,520.95,0,520.95,Other Personal Needs,Discount stores
Buckinghamshire Council,30.04.2022,08.04.2022,Children's Services,Education & Childrens Services - CS Dir,TESCO GIFT CARD,80,0,80,Awaiting Coding,Grocery stores
Buckinghamshire Council,30.04.2022,08.04.2022,Children's Services,Education & Childrens Services - CS Dir,ARGOS LTD,213.95,0,213.95,Leaving Care - Grants for Care Leavers,Discount stores
Buckinghamshire Council,30.04.2022,08.04.2022,Children's Services,Education & Childrens Services - CS Dir,ARGOS LTD,190,0,190,Leaving Care - Grants for Care Leavers,Discount stores
Buckinghamshire Council,30.04.2022,08.04.2022,Children's Services,Education & Childrens Services - CS Dir,AO RETAIL LIMITED,"1,276.00",0,"1,276.00",Leaving Care - Grants for Care Leavers,Household appliance stores
Buckinghamshire Council,30.04.2022,08.04.2022,Deputy Chief Executive,Leader - DCE,MILTON_KEYNES_PARKING,10,0,10,Staff Travelling Expenses,Car parking & garages
Buckinghamshire Council,30.04.2022,08.04.2022,Children's Services,Education & Childrens Services - CS Dir,A1 TAXI SERVICE,84,0,84,Sec 20/31: Transport,Taxicabs & limousines
Buckinghamshire Council,30.04.2022,08.04.2022,Communities,Climate Change & Environment - Community,DVLA VEHICLE TAX,152.5,0,152.5,Awaiting Coding,Tax payments
Buckinghamshire Council,30.04.2022,08.04.2022,Communities,Climate Change & Environment - Community,DVLA VEHICLE TAX,152.5,0,152.5,Awaiting Coding,Tax payments
Buckinghamshire Council,30.04.2022,08.04.2022,Communities,Climate Change & Environment - Community,DVSA,401,0,401,Awaiting Coding,Government services
Buckinghamshire Council,30.04.2022,08.04.2022,Communities,Climate Change & Environment - Community,DVLA VEHICLE TAX,152.5,0,152.5,Awaiting Coding,Tax payments
Buckinghamshire Council,30.04.2022,08.04.2022,Communities,Climate Change & Environment - Community,DVLA VEHICLE TAX,162,0,162,Awaiting Coding,Tax payments
Buckinghamshire Council,30.04.2022,08.04.2022,Communities,Climate Change & Environment - Community,DVLA VEHICLE TAX,292.5,0,292.5,Awaiting Coding,Tax payments
Buckinghamshire Council,30.04.2022,08.04.2022,Communities,Climate Change & Environment - Community,DVLA VEHICLE TAX,152.5,0,152.5,Awaiting Coding,Tax payments
Buckinghamshire Council,30.04.2022,08.04.2022,Communities,Climate Change & Environment - Community,DVLA VEHICLE TAX,292.5,0,292.5,Awaiting Coding,Tax payments
Buckinghamshire Council,30.04.2022,08.04.2022,"Planning, Growth & Sustainability","Finance, Resources, Property & Asset PGS",SCREWFIX DIR LTD,11.98,0,11.98,General Repairs & Maintenance,Timber & building supplies
Buckinghamshire Council,30.04.2022,08.04.2022,"Planning, Growth & Sustainability","Finance, Resources, Property & Asset PGS",WWW.SCREWFIX.COM,24.05,0,24.05,General Repairs & Maintenance,Timber & building supplies
Buckinghamshire Council,30.04.2022,08.04.2022,Children's Services,Education & Childrens Services - CS Dir,BUCKINGHAMSHIRE CNCL,11,0,11,Sec 17: Financial Assistance,Government services
Buckinghamshire Council,30.04.2022,08.04.2022,Deputy Chief Executive,"Finance, Resources, Property & Asset DCE",THOMAS TELFORD LIMIT,65,0,65,Professional Services (non curriculum) - External,Professional services
Buckinghamshire Council,30.04.2022,08.04.2022,Children's Services,Education & Childrens Services - CS Dir,TRAINLINE,44.7,0,44.7,Court Orders Sec 31: Miscellaneous,Passenger railways
Buckinghamshire Council,30.04.2022,08.04.2022,Children's Services,Education & Childrens Services - CS Dir,WICKES CHESHAM,40,0,40,General Repairs & Maintenance,Timber & building supplies
Buckinghamshire Council,30.04.2022,08.04.2022,Deputy Chief Executive,Leader - DCE,AMZNMKTPLACE,38.7,0,38.7,Subsistence,Miscellaneous retail
Buckinghamshire Council,30.04.2022,08.04.2022,Children's Services,Education & Childrens Services - CS Dir,ODEON CINEMAS,19,0,19,Activities & General Recreation,Cinemas
Buckinghamshire Council,30.04.2022,08.04.2022,Children's Services,Education & Childrens Services - CS Dir,YELLOW CARS HW LTD,-100,-20,-120,Sec 20/31: Transport,Taxicabs & limousines
Buckinghamshire Council,30.04.2022,08.04.2022,Communities,Culture & Leisure - Communities Dir,HALFORDS 0529,21.05,4.21,25.26,Petrol,"Bicycle shops, sales & service"
Buckinghamshire Council,30.04.2022,08.04.2022,Communities,Culture & Leisure - Communities Dir,HALFORDS 0529,0.02,0,0.02,Petrol,"Bicycle shops, sales & service"
Buckinghamshire Council,30.04.2022,08.04.2022,Children's Services,Education & Childrens Services - CS Dir,TRAINLINE,24.05,0,24.05,Sec 20/31: Supp for Contact,Passenger railways
Buckinghamshire Council,30.04.2022,08.04.2022,Deputy Chief Executive,"Finance, Resources, Property & Asset DCE",WWW.THORTFUL.COM,4.34,0,4.34,"Courses, Conference and Seminar Fees","Gift, card & novelty shops"
Buckinghamshire Council,30.04.2022,08.04.2022,Deputy Chief Executive,"Finance, Resources, Property & Asset DCE",EBAY O*03-08488-59030,50,0,50,"Courses, Conference and Seminar Fees",Department stores
Buckinghamshire Council,30.04.2022,08.04.2022,Children's Services,Education & Childrens Services - CS Dir,AMZNMKTPLACE,348,0,348,Leaving Care - Grants for Care Leavers,Miscellaneous retail
Buckinghamshire Council,30.04.2022,08.04.2022,Adults and Health,Health & Wellbeing - Adults & Health Dir,AMZNMKTPLACE,39.94,0,39.94,Activities & General Recreation,Miscellaneous retail
Buckinghamshire Council,30.04.2022,08.04.2022,Children's Services,Education & Childrens Services - CS Dir,THE POTTERY PROJECT,132.5,0,132.5,Activities & General Recreation,Misc. home furnishing
Buckinghamshire Council,30.04.2022,08.04.2022,Resources,"Finance, Resources, Property & Asset Res",LINKEDIN-751,90.19,0,90.19,Advertising,Advertising services
Buckinghamshire Council,30.04.2022,08.04.2022,Children's Services,Education & Childrens Services - CS Dir,AMZNMKTPLACE,55.83,0,55.83,Support for Foster Carers,Miscellaneous retail
Buckinghamshire Council,30.04.2022,08.04.2022,Children's Services,Education & Childrens Services - CS Dir,PGL TRAVEL,479,0,479,Staff Travelling Expenses,Travel agencies
Buckinghamshire Council,30.04.2022,08.04.2022,Communities,Partnerships - Communities,JURYS INN MILTON KEYNES F,3.7,0,3.7,Miscellaneous (Other)  Expenses,"Hotels, motels & resorts"
Buckinghamshire Council,30.04.2022,08.04.2022,Communities,Partnerships - Communities,JURYS INN MILTON KEYNES F,4,0,4,Miscellaneous (Other)  Expenses,"Hotels, motels & resorts"
Buckinghamshire Council,30.04.2022,08.04.2022,Communities,Partnerships - Communities,JURYS INN MILTON KEYNES F,8.5,0,8.5,Miscellaneous (Other)  Expenses,"Hotels, motels & resorts"
Buckinghamshire Council,30.04.2022,08.04.2022,Communities,Partnerships - Communities,JURYS INN MILTON KEYNES F,19,0,19,Miscellaneous (Other)  Expenses,"Hotels, motels & resorts"
Buckinghamshire Council,30.04.2022,08.04.2022,Communities,Partnerships - Communities,JURYS INN MILTON KEYNES F,44,0,44,Miscellaneous (Other)  Expenses,"Hotels, motels & resorts"
Buckinghamshire Council,30.04.2022,08.04.2022,Children's Services,Education & Childrens Services - CS Dir,WWW.THERANGE.CO.UK,571.71,0,571.71,Leaving Care - Grants for Care Leavers,Misc. home furnishing
Buckinghamshire Council,30.04.2022,08.04.2022,Communities,Climate Change & Environment - Community,KLARNA*AQUARIUS FIRE,424.27,0,424.27,Equipment,Miscellaneous retail
Buckinghamshire Council,30.04.2022,07.04.2022,"Planning, Growth & Sustainability","Finance, Resources, Property & Asset PGS",AMZNMKTPLACE,11.98,0,11.98,Miscellaneous (Other)  Expenses,Miscellaneous retail
Buckinghamshire Council,30.04.2022,07.04.2022,Children's Services,Education & Childrens Services - CS Dir,AMAZON.CO.UK,24.35,0,24.35,Other Personal Needs,Direct sales companies
Buckinghamshire Council,30.04.2022,07.04.2022,Children's Services,Education & Childrens Services - CS Dir,AMAZON.CO.UK,59.9,0,59.9,Stationery & Office Supplies,Direct sales companies
Buckinghamshire Council,30.04.2022,07.04.2022,Communities,Culture & Leisure - Communities Dir,AMZNMKTPLACE,12.07,2.42,14.49,Events Expenditure,Miscellaneous retail
Buckinghamshire Council,30.04.2022,07.04.2022,Children's Services,Education & Childrens Services - CS Dir,GIFFGAFF,25,0,25,Other Personal Needs,Phone services
Buckinghamshire Council,30.04.2022,07.04.2022,Children's Services,Education & Childrens Services - CS Dir,MCDONALDS,6.85,0,6.85,"Exp of School, Club & College Activities",Fast food restaurants
Buckinghamshire Council,30.04.2022,07.04.2022,Deputy Chief Executive,Communities - DCE,ARGOS LTD,260.95,0,260.95,Other Personal Needs,Discount stores
Buckinghamshire Council,30.04.2022,07.04.2022,Deputy Chief Executive,Communities - DCE,ARGOS LTD,269.95,0,269.95,Other Personal Needs,Discount stores
Buckinghamshire Council,30.04.2022,07.04.2022,Deputy Chief Executive,Communities - DCE,AO RETAIL LIMITED,186.66,37.34,224,Other Personal Needs,Household appliance stores
Buckinghamshire Council,30.04.2022,07.04.2022,Deputy Chief Executive,Communities - DCE,AO RETAIL LIMITED,764.15,152.83,916.98,Other Personal Needs,Household appliance stores
Buckinghamshire Council,30.04.2022,07.04.2022,Deputy Chief Executive,Communities - DCE,AO RETAIL LIMITED,0.02,0,0.02,Other Personal Needs,Household appliance stores
Buckinghamshire Council,30.04.2022,07.04.2022,Deputy Chief Executive,Communities - DCE,AO RETAIL LIMITED,589.99,118.01,708,Other Personal Needs,Household appliance stores
Buckinghamshire Council,30.04.2022,07.04.2022,Children's Services,Education & Childrens Services - CS Dir,ALLPAY *HIGHTOWN HOUSING,149.94,0,149.94,Leaving Care - Rent,Charitable organisations
Buckinghamshire Council,30.04.2022,07.04.2022,Children's Services,Education & Childrens Services - CS Dir,CPD ONLINE COLLEGE,72,0,72,Health & Safety Supplies & Services,Schools
Buckinghamshire Council,30.04.2022,07.04.2022,Adults and Health,Health & Wellbeing - Adults & Health Dir,TESCO STORE 2162,48.39,0,48.39,General Provisions (Food),Grocery stores
Buckinghamshire Council,30.04.2022,07.04.2022,"Planning, Growth & Sustainability",Planning & Regeneration - PGS,THANKBOX,4.99,0,4.99,Miscellaneous (Other)  Expenses,
Buckinghamshire Council,30.04.2022,07.04.2022,Deputy Chief Executive,Leader - DCE,MILTON_KEYNES_PARKING,10,0,10,Staff Travelling Expenses,Car parking & garages
Buckinghamshire Council,30.04.2022,07.04.2022,Children's Services,Education & Childrens Services - CS Dir,BUCKINGHAM HOTELS,649.6,0,649.6,Sec 20/31: Financial Assistance,"Hotels, motels & resorts"
Buckinghamshire Council,30.04.2022,07.04.2022,Children's Services,Education & Childrens Services - CS Dir,TRAINLINE,78.2,0,78.2,Court Orders Sec 31: Miscellaneous,Passenger railways
Buckinghamshire Council,30.04.2022,07.04.2022,Communities,Housing & Homelessness & Regulatory Comm,PHOTOBOX LIMITED,56.6,11.32,67.92,Furniture Fittings & IT,Publishing & printing services
Buckinghamshire Council,30.04.2022,07.04.2022,Communities,Culture & Leisure - Communities Dir,WH SMITH,10.88,0,10.88,General Postage,Newspapers / newsagents
Buckinghamshire Council,30.04.2022,07.04.2022,Communities,Climate Change & Environment - Community,AMZNMKTPLACE,24.97,0,24.97,IT Equipment Purchase,Miscellaneous retail
Buckinghamshire Council,30.04.2022,07.04.2022,Communities,Climate Change & Environment - Community,AMZNMKTPLACE,24.97,0,24.97,IT Equipment Purchase,Miscellaneous retail
Buckinghamshire Council,30.04.2022,07.04.2022,Children's Services,Education & Childrens Services - CS Dir,AMZNMKTPLACE,57,0,57,Miscellaneous (Other)  Expenses,Miscellaneous retail
Buckinghamshire Council,30.04.2022,07.04.2022,Children's Services,Education & Childrens Services - CS Dir,PAYPAL,540,0,540,Computer Consumables,Computer software stores
Buckinghamshire Council,30.04.2022,07.04.2022,Resources,"Finance, Resources, Property & Asset Res",ABRATAX - MTD,10,2,12,Computer Consumables,Computer software stores
Buckinghamshire Council,30.04.2022,07.04.2022,Adults and Health,Health & Wellbeing - Adults & Health Dir,MILK AND MORE (RECUR,13.19,0,13.19,General Provisions (Food),Dairy produce stores
Buckinghamshire Council,30.04.2022,07.04.2022,Children's Services,Education & Childrens Services - CS Dir,WM MORRISONS STORE,1.7,0,1.7,"Exp of School, Club & College Activities",Grocery stores
Buckinghamshire Council,30.04.2022,07.04.2022,Communities,Culture & Leisure - Communities Dir,UNDER THE CANOPY,80,0,80,Events Expenditure,Schools
Buckinghamshire Council,30.04.2022,07.04.2022,Deputy Chief Executive,Leader - DCE,SANDHU NEWSAGENT LTD,7.23,0,7.23,Events Expenditure,Grocery stores
Buckinghamshire Council,30.04.2022,07.04.2022,Children's Services,Education & Childrens Services - CS Dir,MARKS&SPENCER PLC SF,4,0,4,General Provisions (Food),Grocery stores
Buckinghamshire Council,30.04.2022,07.04.2022,Children's Services,Education & Childrens Services - CS Dir,AMAZON MUSIC,3.99,0,3.99,Miscellaneous (Other)  Expenses,Record shops
Buckinghamshire Council,30.04.2022,07.04.2022,Children's Services,Education & Childrens Services - CS Dir,BUCKINGHAMSHIRE COUNCIL,55,0,55,Sec 17: Financial Assistance One Off,Government services
Buckinghamshire Council,30.04.2022,07.04.2022,"Planning, Growth & Sustainability","Finance, Resources, Property & Asset PGS",WWW.SCREWFIX.COM,44.99,0,44.99,General Repairs & Maintenance,Timber & building supplies
Buckinghamshire Council,30.04.2022,07.04.2022,Resources,"Finance, Resources, Property & Asset Res",TRAINLINE,42.31,0,42.31,Staff Travelling Expenses,Passenger railways
Buckinghamshire Council,30.04.2022,07.04.2022,Children's Services,Education & Childrens Services - CS Dir,DISCLOSURE & BARRING,13,0,13,DBS Checks internal charges,Government services
Buckinghamshire Council,30.04.2022,07.04.2022,Children's Services,Education & Childrens Services - CS Dir,TRAINLINE,81.4,0,81.4,Sec 20/31: Supp for Contact,Passenger railways
Buckinghamshire Council,30.04.2022,07.04.2022,Children's Services,Education & Childrens Services - CS Dir,EBAY O*14-08481-77454,34.9,0,34.9,Leaving Care - Grants for Care Leavers,Department stores
Buckinghamshire Council,30.04.2022,07.04.2022,Children's Services,Education & Childrens Services - CS Dir,CURRYS ONLINE,240.98,0,240.98,Leaving Care - Grants for Care Leavers,Electronics shops
Buckinghamshire Council,30.04.2022,07.04.2022,Children's Services,Education & Childrens Services - CS Dir,ARGOS LTD,389,0,389,Leaving Care - Grants for Care Leavers,Discount stores
Buckinghamshire Council,30.04.2022,07.04.2022,Children's Services,Education & Childrens Services - CS Dir,ARGOS LTD,295,0,295,Leaving Care - Grants for Care Leavers,Discount stores
Buckinghamshire Council,30.04.2022,07.04.2022,Children's Services,Education & Childrens Services - CS Dir,ARGOS LTD,334.95,0,334.95,Leaving Care - Grants for Care Leavers,Discount stores
Buckinghamshire Council,30.04.2022,07.04.2022,Children's Services,Education & Childrens Services - CS Dir,EBAY O*14-08481-77461,59.99,0,59.99,Leaving Care - Grants for Care Leavers,Department stores
Buckinghamshire Council,30.04.2022,07.04.2022,Children's Services,Education & Childrens Services - CS Dir,EBAY O*14-08481-77457,24.99,0,24.99,Leaving Care - Grants for Care Leavers,Department stores
Buckinghamshire Council,30.04.2022,07.04.2022,Children's Services,Education & Childrens Services - CS Dir,AO RETAIL LIMITED,518,0,518,Leaving Care - Grants for Care Leavers,Household appliance stores
Buckinghamshire Council,30.04.2022,07.04.2022,Children's Services,Education & Childrens Services - CS Dir,IKEA LTD SHOP ONLINE,290,0,290,Leaving Care - Grants for Care Leavers,Furniture & home furnishing
Buckinghamshire Council,30.04.2022,07.04.2022,Children's Services,Education & Childrens Services - CS Dir,AMZNMKTPLACE,209.99,0,209.99,Leaving Care - Grants for Care Leavers,Miscellaneous retail
Buckinghamshire Council,30.04.2022,07.04.2022,Children's Services,Education & Childrens Services - CS Dir,WILKO.COM,65.9,0,65.9,Leaving Care - Grants for Care Leavers,Misc. general merchandise
Buckinghamshire Council,30.04.2022,07.04.2022,Children's Services,Education & Childrens Services - CS Dir,CURRYS ONLINE,668.99,0,668.99,Leaving Care - Grants for Care Leavers,Electronics shops
Buckinghamshire Council,30.04.2022,07.04.2022,Children's Services,Education & Childrens Services - CS Dir,ALLPAY *HIGHTOWN HOUSING,149.94,0,149.94,Leaving Care - Rent,Charitable organisations
Buckinghamshire Council,30.04.2022,07.04.2022,Children's Services,Education & Childrens Services - CS Dir,EBAY O*14-08481-77456,29.99,0,29.99,Leaving Care - Grants for Care Leavers,Department stores
Buckinghamshire Council,30.04.2022,07.04.2022,Children's Services,Education & Childrens Services - CS Dir,EBAY O*14-08481-77458,64.99,0,64.99,Leaving Care - Grants for Care Leavers,Department stores
Buckinghamshire Council,30.04.2022,07.04.2022,Children's Services,Education & Childrens Services - CS Dir,EBAY O*14-08481-77455,44.99,0,44.99,Leaving Care - Grants for Care Leavers,Department stores
Buckinghamshire Council,30.04.2022,07.04.2022,Communities,Communities - Trust Accounts,POUNDLAND LTD,14.7,0,14.7,Awaiting Coding,Discount stores
Buckinghamshire Council,30.04.2022,07.04.2022,Communities,Communities - Trust Accounts,LANGLEY MOTORISTS DISC,51.44,0,51.44,Repair & Maint of Vehicles & Plant,Automotive parts & accessories
Buckinghamshire Council,30.04.2022,07.04.2022,Resources,"Finance, Resources, Property & Asset Res",FACEBK *BYJFHDFVH2,41.74,0,41.74,Advertising,Advertising services
Buckinghamshire Council,30.04.2022,07.04.2022,Resources,"Finance, Resources, Property & Asset Res",ROCOCO LOUNGE,172.8,0,172.8,Subsistence,"Bars, taverns, pubs & nightclubs"
Buckinghamshire Council,30.04.2022,07.04.2022,Children's Services,Education & Childrens Services - CS Dir,MK FLOWERS,44.95,0,44.95,Seeds & Plants,Florists
Buckinghamshire Council,30.04.2022,07.04.2022,Children's Services,Education & Childrens Services - CS Dir,ODEON CINEMAS,28.5,0,28.5,Activities & General Recreation,Cinemas
Buckinghamshire Council,30.04.2022,07.04.2022,Communities,Transport - Communities Dir,WILKO RETAIL LIMITED,29.15,0,29.15,General Repairs & Maintenance,Misc. general merchandise
Buckinghamshire Council,30.04.2022,07.04.2022,Communities,Transport - Communities Dir,AMZNMKTPLACE,9,0,9,General Repairs & Maintenance,Miscellaneous retail
Buckinghamshire Council,30.04.2022,07.04.2022,Children's Services,Education & Childrens Services - CS Dir,WWW.SCREWFIX.COM,31.99,0,31.99,General Repairs & Maintenance,Timber & building supplies
Buckinghamshire Council,30.04.2022,07.04.2022,Children's Services,Education & Childrens Services - CS Dir,TRAINLINE.COM,84.16,0,84.16,Sec 20/31: Supp for Contact,Passenger railways
Buckinghamshire Council,30.04.2022,07.04.2022,Adults and Health,Communities - DCE,EBUYER (UK) LTD,166.68,0,166.68,Awaiting Coding,Household appliance stores
Buckinghamshire Council,30.04.2022,07.04.2022,Adults and Health,Health & Wellbeing - Adults & Health Dir,DNH*GO DADDY EUROPE GBP,83.99,0,83.99,Computer Support Services,Computer network information services
Buckinghamshire Council,30.04.2022,07.04.2022,Children's Services,Education & Childrens Services - CS Dir,ARGOS LTD,268.95,0,268.95,Support for Foster Carers,Discount stores
Buckinghamshire Council,30.04.2022,07.04.2022,Children's Services,Education & Childrens Services - CS Dir,WWW.THERANGE.CO.UK,349.99,0,349.99,Leaving Care - Grants for Care Leavers,Misc. home furnishing
Buckinghamshire Council,30.04.2022,07.04.2022,Adults and Health,Health & Wellbeing - Adults & Health Dir,GEN REGISTER OFFICE,45.25,0,45.25,Miscellaneous (Other)  Expenses,Government services
Buckinghamshire Council,30.04.2022,07.04.2022,Children's Services,Education & Childrens Services - CS Dir,THE WORKS,11,0,11,"Exp of School, Club & College Activities",Discount stores
Buckinghamshire Council,30.04.2022,06.04.2022,Communities,Housing & Homelessness & Regulatory Comm,AMZNMKTPLACE,17.49,3.5,20.99,General Repairs & Maintenance,Miscellaneous retail
Buckinghamshire Council,30.04.2022,06.04.2022,Children's Services,Education & Childrens Services - CS Dir,AMZNMKTPLACE,7.99,0,7.99,Other Equipment and Materials,Miscellaneous retail
Buckinghamshire Council,30.04.2022,06.04.2022,Communities,Culture & Leisure - Communities Dir,AMZNMKTPLACE,15.62,3.13,18.75,Events Expenditure,Miscellaneous retail
Buckinghamshire Council,30.04.2022,06.04.2022,Children's Services,Education & Childrens Services - CS Dir,BUCKINGHAMSHIRE CNCL,35,0,35,Sec 20/31: Specialist Services,Government services
Buckinghamshire Council,30.04.2022,06.04.2022,Deputy Chief Executive,Communities - DCE,HARRINGTONS OF READING,134,0,134,Other Personal Needs,Fuel dealers
Buckinghamshire Council,30.04.2022,06.04.2022,Children's Services,Education & Childrens Services - CS Dir,ODEON,6,1.2,7.2,"Exp of School, Club & College Activities",Cinemas
Buckinghamshire Council,30.04.2022,06.04.2022,Deputy Chief Executive,Communities - DCE,AO RETAIL LIMITED,427.49,85.51,513,Other Personal Needs,Household appliance stores
Buckinghamshire Council,30.04.2022,06.04.2022,Deputy Chief Executive,Communities - DCE,AO RETAIL LIMITED,370,74,444,Other Personal Needs,Household appliance stores
Buckinghamshire Council,30.04.2022,06.04.2022,Deputy Chief Executive,Communities - DCE,ARGOS LTD,178,0,178,Other Personal Needs,Discount stores
Buckinghamshire Council,30.04.2022,06.04.2022,Deputy Chief Executive,Communities - DCE,AO RETAIL LIMITED,265.8,53.16,318.96,Other Personal Needs,Household appliance stores
Buckinghamshire Council,30.04.2022,06.04.2022,Deputy Chief Executive,Communities - DCE,AO RETAIL LIMITED,0.04,0,0.04,Other Personal Needs,Household appliance stores
Buckinghamshire Council,30.04.2022,06.04.2022,Deputy Chief Executive,Communities - DCE,ARGOS LTD,220.95,0,220.95,Other Personal Needs,Discount stores
Buckinghamshire Council,30.04.2022,06.04.2022,Children's Services,Education & Childrens Services - CS Dir,MALMAISON,125,0,125,Other Employees Expenses,"Hotels, motels & resorts"
Buckinghamshire Council,30.04.2022,06.04.2022,Children's Services,Education & Childrens Services - CS Dir,ABSOLUTELY TEN PIN,18.95,0,18.95,Activities & General Recreation,Misc. recreational services
Buckinghamshire Council,30.04.2022,06.04.2022,Children's Services,Education & Childrens Services - CS Dir,ARRIVA UK BUS,41.5,0,41.5,Sec 20/31: Transport,"Buses, charter & tour"
Buckinghamshire Council,30.04.2022,06.04.2022,Children's Services,Education & Childrens Services - CS Dir,ARRIVA UK BUS,41.5,0,41.5,Sec 20/31: Transport,"Buses, charter & tour"
Buckinghamshire Council,30.04.2022,06.04.2022,Children's Services,Education & Childrens Services - CS Dir,POST OFFICE COUNTER,8.65,0,8.65,General Postage,Postal services
Buckinghamshire Council,30.04.2022,06.04.2022,Children's Services,Education & Childrens Services - CS Dir,CREATIVE EDUCATION,-70,0,-70,Training Materials,Schools
Buckinghamshire Council,30.04.2022,06.04.2022,Resources,"Finance, Resources, Property & Asset Res",AMZNMKTPLACE,99.9,0,99.9,IT Equipment Purchase,Miscellaneous retail
Buckinghamshire Council,30.04.2022,06.04.2022,Communities,Culture & Leisure - Communities Dir,AMZNMKTPLACE,5.99,0,5.99,Printing & Stationery,Miscellaneous retail
Buckinghamshire Council,30.04.2022,06.04.2022,Deputy Chief Executive,"Finance, Resources, Property & Asset DCE",POST OFFICE COUNTER,19,0,19,General Postage,Postal services
Buckinghamshire Council,30.04.2022,06.04.2022,Adults and Health,Health & Wellbeing - Adults & Health Dir,AMZNMKTPLACE,290.89,0,290.89,Miscellaneous (Other)  Expenses,Miscellaneous retail
Buckinghamshire Council,30.04.2022,06.04.2022,Communities,Housing & Homelessness & Regulatory Comm,AMZNMKTPLACE,103.96,0,103.96,Miscellaneous (Other)  Expenses,Miscellaneous retail
Buckinghamshire Council,30.04.2022,06.04.2022,Adults and Health,Health & Wellbeing - Adults & Health Dir,ICELAND,43.65,0,43.65,Activities & General Recreation,Grocery stores
Buckinghamshire Council,30.04.2022,06.04.2022,Communities,Housing & Homelessness & Regulatory Comm,WWW.JOHNLEWIS.COM,241.65,48.33,289.98,Furniture Fittings & IT,Department stores
Buckinghamshire Council,30.04.2022,06.04.2022,Communities,Housing & Homelessness & Regulatory Comm,WWW.JOHNLEWIS.COM,0.02,0,0.02,Furniture Fittings & IT,Department stores
Buckinghamshire Council,30.04.2022,06.04.2022,Adults and Health,Communities - DCE,AMZNMKTPLACE,98.38,0,98.38,Protective Clothing & Uniforms,Miscellaneous retail
Buckinghamshire Council,30.04.2022,06.04.2022,Children's Services,Education & Childrens Services - CS Dir,TRAINLINE,91.6,0,91.6,Sec 20/31: Supp for Contact,Passenger railways
Buckinghamshire Council,30.04.2022,06.04.2022,Children's Services,Education & Childrens Services - CS Dir,HM PASSPORT OFFICE,80.5,0,80.5,Sec 20/31: Financial Assistance,Government services
Buckinghamshire Council,30.04.2022,06.04.2022,Communities,Culture & Leisure - Communities Dir,BLACK PARK,7.4,1.48,8.88,Purchase.of Refreshments and Food,Restaurants
Buckinghamshire Council,30.04.2022,06.04.2022,Communities,Culture & Leisure - Communities Dir,BLACK PARK,0.02,0,0.02,Purchase.of Refreshments and Food,Restaurants
Buckinghamshire Council,30.04.2022,06.04.2022,Communities,Culture & Leisure - Communities Dir,PAYPAL,42.89,0,42.89,"Books, Records, Films & Oth Publications",Charitable organisations
Buckinghamshire Council,30.04.2022,06.04.2022,Children's Services,Education & Childrens Services - CS Dir,WM MORRISONS STORE,25.85,0,25.85,"Exp of School, Club & College Activities",Grocery stores
Buckinghamshire Council,30.04.2022,06.04.2022,Communities,Climate Change & Environment - Community,CAR PARK CHARGES,2,0,2,Staff Travelling Expenses,Car parking & garages
Buckinghamshire Council,30.04.2022,06.04.2022,CC Obsolete Cost Centres,Obsolete Cost Centres,SHELTER TRADING LTD,84,0,84,Awaiting Coding,"Gift, card & novelty shops"
Buckinghamshire Council,30.04.2022,06.04.2022,Children's Services,Education & Childrens Services - CS Dir,AMZNMKTPLACE,29.97,0,29.97,Cleaning & Domestic Equipment,Miscellaneous retail
Buckinghamshire Council,30.04.2022,06.04.2022,Communities,Climate Change & Environment - Community,AMZNMKTPLACE,34.39,0,34.39,Materials,Miscellaneous retail
Buckinghamshire Council,30.04.2022,06.04.2022,Resources,"Finance, Resources, Property & Asset Res",GMO GLOBALSIGN LIM,568.8,0,568.8,Computer Software Licences & Purchase,Computer network information services
Buckinghamshire Council,30.04.2022,06.04.2022,Children's Services,Education & Childrens Services - CS Dir,ARGOS LTD,54.95,0,54.95,Equipment (including storage),Discount stores
Buckinghamshire Council,30.04.2022,06.04.2022,Communities,Culture & Leisure - Communities Dir,WWW.SCREWFIX.COM,56.2,11.24,67.44,"Workshop - Materials,Tools & Equipment",Timber & building supplies
Buckinghamshire Council,30.04.2022,06.04.2022,Communities,Culture & Leisure - Communities Dir,WWW.SCREWFIX.COM,0.22,0,0.22,"Workshop - Materials,Tools & Equipment",Timber & building supplies
Buckinghamshire Council,30.04.2022,06.04.2022,Communities,Culture & Leisure - Communities Dir,BRIANTS OF RISBOROUGH,122.74,24.55,147.29,"Workshop - Materials,Tools & Equipment",Furniture & home furnishing
Buckinghamshire Council,30.04.2022,06.04.2022,Communities,Culture & Leisure - Communities Dir,WWW.SCREWFIX.COM,64.9,12.98,77.88,Protective Clothing & Uniforms,Timber & building supplies
Buckinghamshire Council,30.04.2022,06.04.2022,Communities,Culture & Leisure - Communities Dir,WWW.SCREWFIX.COM,0.06,0,0.06,Protective Clothing & Uniforms,Timber & building supplies
Buckinghamshire Council,30.04.2022,06.04.2022,Children's Services,Education & Childrens Services - CS Dir,WAYFAIR*UK3729973444,419.7,0,419.7,Leaving Care - Grants for Care Leavers,Furniture & home furnishing
Buckinghamshire Council,30.04.2022,06.04.2022,Children's Services,Education & Childrens Services - CS Dir,EBAY O*13-08477-85638,449.99,0,449.99,Leaving Care - Grants for Care Leavers,Department stores
Buckinghamshire Council,30.04.2022,06.04.2022,Communities,Communities - Trust Accounts,HOME AND INTERIORS,83.88,0,83.88,Awaiting Coding,Drapery & upholstery shops
Buckinghamshire Council,30.04.2022,06.04.2022,Communities,Communities - Trust Accounts,AVONCROP AMENITY P,445.2,0,445.2,Seeds & Plants,Lawn & garden supply/nursery
Buckinghamshire Council,30.04.2022,06.04.2022,"Planning, Growth & Sustainability",Planning & Regeneration - PGS,HIGH WYCOMBE SSTP,10,0,10,Staff Travelling Expenses,Passenger railways
Buckinghamshire Council,30.04.2022,06.04.2022,Resources,"Finance, Resources, Property & Asset Res",LINKEDIN 7501868913,110.35,0,110.35,Advertising,Advertising services
Buckinghamshire Council,30.04.2022,06.04.2022,Resources,"Finance, Resources, Property & Asset Res",SAINSBURYS S/MKTS,2.3,0,2.3,Miscellaneous (Other)  Expenses,Grocery stores
Buckinghamshire Council,30.04.2022,06.04.2022,"Planning, Growth & Sustainability",Housing & Homelessness & Regulatory PGS,TESCO STORES 4831,6,0,6,Other General Office Expenses,Grocery stores
Buckinghamshire Council,30.04.2022,06.04.2022,Adults and Health,Health & Wellbeing - Adults & Health Dir,B & Q 1262,58,0,58,Activities & General Recreation,Home supply warehouse stores
Buckinghamshire Council,30.04.2022,06.04.2022,Adults and Health,Health & Wellbeing - Adults & Health Dir,AMZNMKTPLACE,32.98,0,32.98,Other Supplies,Miscellaneous retail
Buckinghamshire Council,30.04.2022,06.04.2022,Communities,Transport - Communities Dir,EPSON STORE UK,162.68,32.54,195.22,Printing & Stationery,Electronics shops
Buckinghamshire Council,30.04.2022,06.04.2022,Adults and Health,Health & Wellbeing - Adults & Health Dir,WM MORRISONS STORE,35.5,0,35.5,Awaiting Coding,Grocery stores
Buckinghamshire Council,30.04.2022,06.04.2022,Adults and Health,Health & Wellbeing - Adults & Health Dir,WM MORRISONS STORE,23.43,0,23.43,Awaiting Coding,Grocery stores
Buckinghamshire Council,30.04.2022,06.04.2022,Adults and Health,Health & Wellbeing - Adults & Health Dir,ALDI STORES,16.75,0,16.75,Awaiting Coding,Grocery stores
Buckinghamshire Council,30.04.2022,06.04.2022,Adults and Health,Health & Wellbeing - Adults & Health Dir,AMZNMKTPLACE,274.3,54.86,329.16,Other General Office Expenses,Miscellaneous retail
Buckinghamshire Council,30.04.2022,06.04.2022,Deputy Chief Executive,Communities - DCE,ARGOS LTD,104.95,0,104.95,Other Personal Needs,Discount stores
Buckinghamshire Council,30.04.2022,06.04.2022,Deputy Chief Executive,Communities - DCE,ARGOS LTD,324,0,324,Other Personal Needs,Discount stores
Buckinghamshire Council,30.04.2022,06.04.2022,Resources,"Finance, Resources, Property & Asset Res",GEN REGISTER OFFICE,14,0,14,Miscellaneous (Other)  Expenses,Government services
Buckinghamshire Council,30.04.2022,06.04.2022,Adults and Health,Health & Wellbeing - Adults & Health Dir,COUNTRY BASKETS,9.16,0,9.16,Seeds & Plants,Florist supplies & nursery stock
Buckinghamshire Council,30.04.2022,06.04.2022,Children's Services,Education & Childrens Services - CS Dir,THE WORKS,9,0,9,"Exp of School, Club & College Activities",Discount stores
Buckinghamshire Council,30.04.2022,05.04.2022,Resources,"Finance, Resources, Property & Asset Res",FACEBK *64YFZBKV82,136.37,0,136.37,Advertising,Advertising services
Buckinghamshire Council,30.04.2022,05.04.2022,"Planning, Growth & Sustainability",Housing & Homelessness & Regulatory PGS,NEALES TAXIS LTD,20,0,20,Staff Travelling Expenses,Taxicabs & limousines
Buckinghamshire Council,30.04.2022,05.04.2022,Adults and Health,Health & Wellbeing - Adults & Health Dir,HOMEBASE,28,0,28,Stationery & Office Supplies,Home supply warehouse stores
Buckinghamshire Council,30.04.2022,05.04.2022,Children's Services,Education & Childrens Services - CS Dir,WWW.SAFARIMK.CO.UK,26.5,0,26.5,Sec 20/31: Supp for Contact,Misc. recreational services
Buckinghamshire Council,30.04.2022,05.04.2022,Children's Services,Education & Childrens Services - CS Dir,WWW.SAFARIMK.CO.UK,26.5,0,26.5,Sec 20/31: Supp for Contact,Misc. recreational services
Buckinghamshire Council,30.04.2022,05.04.2022,Children's Services,Education & Childrens Services - CS Dir,WWW.SAFARIMK.CO.UK,21.4,0,21.4,Sec 20/31: Supp for Contact,Misc. recreational services
Buckinghamshire Council,30.04.2022,05.04.2022,Children's Services,Education & Childrens Services - CS Dir,WWW.SAFARIMK.CO.UK,21.4,0,21.4,Sec 20/31: Supp for Contact,Misc. recreational services
Buckinghamshire Council,30.04.2022,05.04.2022,Children's Services,Education & Childrens Services - CS Dir,SP * HOODRICH LTD,115,0,115,Other Personal Needs,Men & womens clothing shops
Buckinghamshire Council,30.04.2022,05.04.2022,Deputy Chief Executive,Communities - DCE,AO RETAIL LIMITED,275.08,55.02,330.1,Other Personal Needs,Household appliance stores
Buckinghamshire Council,30.04.2022,05.04.2022,Deputy Chief Executive,Communities - DCE,AO RETAIL LIMITED,610.91,122.19,733.1,Other Personal Needs,Household appliance stores
Buckinghamshire Council,30.04.2022,05.04.2022,Deputy Chief Executive,Communities - DCE,AO RETAIL LIMITED,477.5,95.5,573,Other Personal Needs,Household appliance stores
Buckinghamshire Council,30.04.2022,05.04.2022,Deputy Chief Executive,Communities - DCE,AO RETAIL LIMITED,677.58,135.52,813.1,Other Personal Needs,Household appliance stores
Buckinghamshire Council,30.04.2022,05.04.2022,Deputy Chief Executive,Communities - DCE,ARGOS LTD,198.95,0,198.95,Other Personal Needs,Discount stores
Buckinghamshire Council,30.04.2022,05.04.2022,Deputy Chief Executive,Communities - DCE,ARGOS LTD,204.95,0,204.95,Other Personal Needs,Discount stores
Buckinghamshire Council,30.04.2022,05.04.2022,Deputy Chief Executive,Communities - DCE,ARGOS LTD,35,0,35,Other Personal Needs,Discount stores
Buckinghamshire Council,30.04.2022,05.04.2022,Children's Services,Education & Childrens Services - CS Dir,AMZNMKTPLACE,158.99,0,158.99,Leaving Care - Grants for Care Leavers,Miscellaneous retail
Buckinghamshire Council,30.04.2022,05.04.2022,Children's Services,Education & Childrens Services - CS Dir,ARGOS LTD,120,0,120,Leaving Care - Grants for Care Leavers,Discount stores
Buckinghamshire Council,30.04.2022,05.04.2022,Children's Services,Education & Childrens Services - CS Dir,ARRIVA UK BUS,41.5,0,41.5,Sec 20/31: Transport,"Buses, charter & tour"
Buckinghamshire Council,30.04.2022,05.04.2022,Children's Services,Education & Childrens Services - CS Dir,ARRIVA UK BUS,41.5,0,41.5,Sec 20/31: Transport,"Buses, charter & tour"
Buckinghamshire Council,30.04.2022,05.04.2022,Children's Services,Education & Childrens Services - CS Dir,ARRIVA UK BUS,41.5,0,41.5,Sec 20/31: Transport,"Buses, charter & tour"
Buckinghamshire Council,30.04.2022,05.04.2022,Children's Services,Education & Childrens Services - CS Dir,ARRIVA UK BUS,-41.5,0,-41.5,Sec 20/31: Transport,"Buses, charter & tour"
Buckinghamshire Council,30.04.2022,05.04.2022,Children's Services,Education & Childrens Services - CS Dir,WWW.YOUNGMINDS.ORG,-135,-27,-162,"Courses, Conference and Seminar Fees",Charitable organisations
Buckinghamshire Council,30.04.2022,05.04.2022,"Planning, Growth & Sustainability","Finance, Resources, Property & Asset PGS",LOCK & KEY CENTRE,12.5,0,12.5,Other Equipment and Materials,Shoe repairs
Buckinghamshire Council,30.04.2022,05.04.2022,Adults and Health,Health & Wellbeing - Adults & Health Dir,AMZNMKTPLACE,67.59,0,67.59,Miscellaneous (Other)  Expenses,Miscellaneous retail
Buckinghamshire Council,30.04.2022,05.04.2022,Adults and Health,Health & Wellbeing - Adults & Health Dir,AMZNMKTPLACE,89.99,0,89.99,Miscellaneous (Other)  Expenses,Miscellaneous retail
Buckinghamshire Council,30.04.2022,05.04.2022,Adults and Health,Health & Wellbeing - Adults & Health Dir,AMZNMKTPLACE,22.99,0,22.99,Miscellaneous (Other)  Expenses,Miscellaneous retail
Buckinghamshire Council,30.04.2022,05.04.2022,Adults and Health,Health & Wellbeing - Adults & Health Dir,AMZNMKTPLACE,14.8,0,14.8,Catering & Domestic Equipment,Miscellaneous retail
Buckinghamshire Council,30.04.2022,05.04.2022,Adults and Health,Health & Wellbeing - Adults & Health Dir,AMZNMKTPLACE,37.76,0,37.76,Catering & Domestic Equipment,Miscellaneous retail
Buckinghamshire Council,30.04.2022,05.04.2022,"Planning, Growth & Sustainability","Finance, Resources, Property & Asset PGS",SCREWFIX DIR LTD,38.99,0,38.99,General Repairs & Maintenance,Timber & building supplies
Buckinghamshire Council,30.04.2022,05.04.2022,Communities,Climate Change & Environment - Community,TEST METER GROUP LTD.,243.54,0,243.54,Waste Prevention costs,Misc commercial machines equipment
Buckinghamshire Council,30.04.2022,05.04.2022,"Planning, Growth & Sustainability","Finance, Resources, Property & Asset PGS",WWW.PLANNING.CO,148.2,0,148.2,"Fees & Regulations (Planning, Building)",Misc business services
Buckinghamshire Council,30.04.2022,05.04.2022,Communities,Culture & Leisure - Communities Dir,SAINSBURYS S/MKTS,17.35,3.47,20.82,Purchase.of Refreshments and Food,Grocery stores
Buckinghamshire Council,30.04.2022,05.04.2022,Communities,Culture & Leisure - Communities Dir,SAINSBURYS S/MKTS,36.49,0,36.49,Purchase.of Refreshments and Food,Grocery stores
Buckinghamshire Council,30.04.2022,05.04.2022,Communities,Transport - Communities Dir,NEW YORK (AYLESBURY) LTD,237,0,237,Subsistence,Restaurants
Buckinghamshire Council,30.04.2022,05.04.2022,Children's Services,Education & Childrens Services - CS Dir,AMAZON.CO.UK,33.77,0,33.77,Other Personal Needs,Direct sales companies
Buckinghamshire Council,30.04.2022,05.04.2022,Children's Services,Education & Childrens Services - CS Dir,AMZNMKTPLACE,27.92,0,27.92,Other Personal Needs,Miscellaneous retail
Buckinghamshire Council,30.04.2022,05.04.2022,Children's Services,Education & Childrens Services - CS Dir,AMAZON.CO.UK,35.3,0,35.3,Stationery & Office Supplies,Direct sales companies
Buckinghamshire Council,30.04.2022,05.04.2022,Children's Services,Education & Childrens Services - CS Dir,AMAZON PRIME,7.99,0,7.99,Stationery & Office Supplies,Continuous subscriptions
Buckinghamshire Council,30.04.2022,05.04.2022,Children's Services,Education & Childrens Services - CS Dir,SLOUGH BOROUGH COUNCIL,22,0,22,Sec 20/31: Specialist Services,Government services
Buckinghamshire Council,30.04.2022,05.04.2022,Children's Services,Education & Childrens Services - CS Dir,POUNDLAND LTD 1301,1,0,1,Activities & General Recreation,Discount stores
Buckinghamshire Council,30.04.2022,05.04.2022,Children's Services,Education & Childrens Services - CS Dir,SAINSBURYS S/MKTS,3,0,3,Equipment (including storage),Grocery stores
Buckinghamshire Council,30.04.2022,05.04.2022,Communities,Climate Change & Environment - Community,WWW.OFFICEFURNITUREONLINE,221.94,0,221.94,Furniture,Office & commercial furniture
Buckinghamshire Council,30.04.2022,05.04.2022,Communities,Culture & Leisure - Communities Dir,HALFORDS 0529,39.99,8,47.99,Petrol,"Bicycle shops, sales & service"
Buckinghamshire Council,30.04.2022,05.04.2022,Children's Services,Education & Childrens Services - CS Dir,CG-HIGHSTREETVOUCHERS,300,0,300,Furniture,
Buckinghamshire Council,30.04.2022,05.04.2022,Resources,"Finance, Resources, Property & Asset Res",AMZNMKTPLACE,296.97,0,296.97,Computer Software Licences & Purchase,Miscellaneous retail
Buckinghamshire Council,30.04.2022,05.04.2022,Communities,Climate Change & Environment - Community,WWW.CCSCOLLECT.CO.UK,80,0,80,Miscellaneous (Other)  Expenses,Misc. personal services
Buckinghamshire Council,30.04.2022,05.04.2022,Resources,"Finance, Resources, Property & Asset Res",BUCKINGHAMSHIRE COUN MOT,-0.01,0,-0.01,Miscellaneous (Other)  Expenses,Government services
Buckinghamshire Council,30.04.2022,05.04.2022,Communities,Culture & Leisure - Communities Dir,REALLY USEFUL PROD,47.15,9.43,56.58,"Workshop - Materials,Tools & Equipment",Home supply warehouse stores
Buckinghamshire Council,30.04.2022,05.04.2022,Communities,Culture & Leisure - Communities Dir,REALLY USEFUL PROD,0.01,0,0.01,"Workshop - Materials,Tools & Equipment",Home supply warehouse stores
Buckinghamshire Council,30.04.2022,05.04.2022,Children's Services,Education & Childrens Services - CS Dir,TESCO STORE 2668,9.95,0,9.95,General Provisions (Food),Grocery stores
Buckinghamshire Council,30.04.2022,05.04.2022,Children's Services,Education & Childrens Services - CS Dir,AMZNMKTPLACE,43.89,0,43.89,Other Equipment and Materials,Miscellaneous retail
Buckinghamshire Council,30.04.2022,05.04.2022,Children's Services,Education & Childrens Services - CS Dir,HOME BARGAINS,32.05,0,32.05,Other Equipment and Materials,Hardware stores
Buckinghamshire Council,30.04.2022,05.04.2022,Adults and Health,Health & Wellbeing - Adults & Health Dir,EB *COMMUNITY IS THE B,156,0,156,"Courses, Conference and Seminar Fees",Misc business services
Buckinghamshire Council,30.04.2022,05.04.2022,Communities,Climate Change & Environment - Community,SKIPPER TM LIMITED,636.12,0,636.12,Repair & Maint of Vehicles & Plant,Construction materials
Buckinghamshire Council,30.04.2022,05.04.2022,Children's Services,Education & Childrens Services - CS Dir,AMAZON.CO.UK,17.99,0,17.99,Consumable Supplies,Direct sales companies
Buckinghamshire Council,30.04.2022,05.04.2022,Children's Services,Education & Childrens Services - CS Dir,AMZ*SHOP4WORLD,-6.16,0,-6.16,Activities & General Recreation,Miscellaneous retail
Buckinghamshire Council,30.04.2022,05.04.2022,Children's Services,Education & Childrens Services - CS Dir,TESCO STORES 2038,15,0,15,Consumable Supplies,Grocery stores
Buckinghamshire Council,30.04.2022,05.04.2022,Children's Services,Education & Childrens Services - CS Dir,TESCO STORES 2038,15,0,15,Consumable Supplies,Grocery stores
Buckinghamshire Council,30.04.2022,05.04.2022,Children's Services,Education & Childrens Services - CS Dir,TESCO STORES 2038,74.33,0,74.33,Consumable Supplies,Grocery stores
Buckinghamshire Council,30.04.2022,05.04.2022,Adults and Health,Health & Wellbeing - Adults & Health Dir,AMZNMKTPLACE,12.84,0,12.84,Activities & General Recreation,Miscellaneous retail
Buckinghamshire Council,30.04.2022,05.04.2022,Adults and Health,Health & Wellbeing - Adults & Health Dir,AMZNMKTPLACE,10.95,0,10.95,Other Personal Needs,Miscellaneous retail
Buckinghamshire Council,30.04.2022,05.04.2022,Communities,Culture & Leisure - Communities Dir,AMAZON.CO.UK,24.57,0,24.57,"Books, Records, Films & Oth Publications",Direct sales companies
Buckinghamshire Council,30.04.2022,05.04.2022,Deputy Chief Executive,Communities - DCE,ARGOS LTD,204.95,0,204.95,Other Personal Needs,Discount stores
Buckinghamshire Council,30.04.2022,05.04.2022,Communities,Transport - Communities Dir,PREMIER INN 44536565,44.5,0,44.5,"Courses, Conference and Seminar Fees",Premier Inn
Buckinghamshire Council,30.04.2022,05.04.2022,Children's Services,Education & Childrens Services - CS Dir,PREMIER INN 44536875,126.99,0,126.99,Sec 17: Financial Assistance,Premier Inn
Buckinghamshire Council,30.04.2022,04.04.2022,Adults and Health,Health & Wellbeing - Adults & Health Dir,AMZNMKTPLACE,95,0,95,Out of Hours Standby Allowance,Miscellaneous retail
Buckinghamshire Council,30.04.2022,04.04.2022,Children's Services,Education & Childrens Services - CS Dir,AMAZON.CO.UK,41.69,0,41.69,Activities & General Recreation,Direct sales companies
Buckinghamshire Council,30.04.2022,04.04.2022,Children's Services,Education & Childrens Services - CS Dir,ARGOS LTD,68.95,0,68.95,Sec 20/31: Supp for Contact,Discount stores
Buckinghamshire Council,30.04.2022,04.04.2022,Communities,Transport - Communities Dir,SAS EVENT MGMT,288,0,288,"Courses, Conference and Seminar Fees",Theatres and ticket agencies
Buckinghamshire Council,30.04.2022,04.04.2022,Resources,"Finance, Resources, Property & Asset Res",PAYPAL,60,0,60,Bailiffs Commission,Membership organisations
Buckinghamshire Council,30.04.2022,04.04.2022,Adults and Health,Communities - DCE,TALKTALK TELECOM,34.25,0,34.25,Computer Support Services,Computer network information services
Buckinghamshire Council,30.04.2022,04.04.2022,Children's Services,Education & Childrens Services - CS Dir,TRAVELODGE GB0000,142.77,0,142.77,Sec 20/31: Financial Assistance,Travelodge
Buckinghamshire Council,30.04.2022,04.04.2022,Communities,Housing & Homelessness & Regulatory Comm,TIMPSON LTD,32,0,32,General Repairs & Maintenance,Miscellaneous retail
Buckinghamshire Council,30.04.2022,04.04.2022,Communities,Housing & Homelessness & Regulatory Comm,WICKES HIGH WYCOMBE,59.28,0,59.28,Maintenance of Grounds,Timber & building supplies
Buckinghamshire Council,30.04.2022,04.04.2022,Communities,Housing & Homelessness & Regulatory Comm,HOMEBASE,83.8,0,83.8,Maintenance of Grounds,Home supply warehouse stores
Buckinghamshire Council,30.04.2022,04.04.2022,Adults and Health,Health & Wellbeing - Adults & Health Dir,AMZNMKTPLACE,16.87,0,16.87,Catering & Domestic Equipment,Miscellaneous retail
Buckinghamshire Council,30.04.2022,04.04.2022,Adults and Health,Health & Wellbeing - Adults & Health Dir,AMZNMKTPLACE,3.39,0,3.39,Cleaning & Domestic Equipment,Miscellaneous retail
Buckinghamshire Council,30.04.2022,04.04.2022,Communities,Culture & Leisure - Communities Dir,AMAZON.CO.UK,22.49,4.5,26.99,Administrative Equipment & Tools,Direct sales companies
Buckinghamshire Council,30.04.2022,04.04.2022,Communities,Culture & Leisure - Communities Dir,AMZNMKTPLACE,14.98,3,17.98,Events Expenditure,Miscellaneous retail
Buckinghamshire Council,30.04.2022,04.04.2022,Adults and Health,Health & Wellbeing - Adults & Health Dir,AMZNMKTPLACE,90.47,0,90.47,Activities & General Recreation,Miscellaneous retail
Buckinghamshire Council,30.04.2022,04.04.2022,Communities,Climate Change & Environment - Community,NHBS LTD,9.99,0,9.99,Administrative Equipment & Tools,"Books, periodicals & newspapers"
Buckinghamshire Council,30.04.2022,04.04.2022,Communities,Housing & Homelessness & Regulatory Comm,SJA SUPPLIES TRAINING COU,165,33,198,"Courses, Conference and Seminar Fees",Vocational & trade schools
Buckinghamshire Council,30.04.2022,04.04.2022,"Planning, Growth & Sustainability","Finance, Resources, Property & Asset PGS",SHOP4ALL LTD,148.75,0,148.75,General Repairs & Maintenance,Electrical parts & equipment
Buckinghamshire Council,30.04.2022,04.04.2022,Adults and Health,Communities - DCE,ACTIVEWEAR BRANDS,41.93,0,41.93,Protective Clothing & Uniforms,Uniforms & commercial clothing
Buckinghamshire Council,30.04.2022,04.04.2022,Children's Services,Education & Childrens Services - CS Dir,A1 TAXI SERVICE,240,0,240,Sec 20/31: Transport,Taxicabs & limousines
Buckinghamshire Council,30.04.2022,04.04.2022,Communities,Culture & Leisure - Communities Dir,SP * GS WORKWEAR,45.75,9.15,54.9,Protective Clothing & Uniforms,Department stores
Buckinghamshire Council,30.04.2022,04.04.2022,Communities,Culture & Leisure - Communities Dir,PAYPAL,60,0,60,Protective Clothing & Uniforms,Sporting goods shops
Buckinghamshire Council,30.04.2022,04.04.2022,Children's Services,Education & Childrens Services - CS Dir,WILKO RETAIL LIMITED,8.1,0,8.1,"Exp of School, Club & College Activities",Misc. general merchandise
Buckinghamshire Council,30.04.2022,04.04.2022,Children's Services,Education & Childrens Services - CS Dir,THE ENTERTAINER 113,6.66,0,6.66,"Exp of School, Club & College Activities","Hobby, toy & game shops"
Buckinghamshire Council,30.04.2022,04.04.2022,Children's Services,Education & Childrens Services - CS Dir,MARKS&SPENCER PLC SACA,5.95,0,5.95,"Exp of School, Club & College Activities",Grocery stores
Buckinghamshire Council,30.04.2022,04.04.2022,Children's Services,Education & Childrens Services - CS Dir,AMZNMKTPLACE,13.89,0,13.89,Cleaning & Domestic Equipment,Miscellaneous retail
Buckinghamshire Council,30.04.2022,04.04.2022,Children's Services,Education & Childrens Services - CS Dir,SAINSBURYS S/MKTS,1.15,0,1.15,Equipment (including storage),Grocery stores
Buckinghamshire Council,30.04.2022,04.04.2022,"Planning, Growth & Sustainability",Planning & Regeneration - PGS,AMAZON PRIME,-7.99,0,-7.99,Other Employees Expenses,Continuous subscriptions
Buckinghamshire Council,30.04.2022,04.04.2022,Children's Services,Education & Childrens Services - CS Dir,AMZNMKTPLACE,11.98,0,11.98,Support for Foster Carers,Miscellaneous retail
Buckinghamshire Council,30.04.2022,04.04.2022,Children's Services,Education & Childrens Services - CS Dir,NOVOTEL HOTELS,116.32,0,116.32,"Courses, Conference and Seminar Fees",Novotel Hotels
Buckinghamshire Council,30.04.2022,04.04.2022,Children's Services,Education & Childrens Services - CS Dir,AMZ*LOW COST DISPOSABL,-11.98,0,-11.98,Support for Foster Carers,Miscellaneous retail
Buckinghamshire Council,30.04.2022,04.04.2022,Children's Services,Education & Childrens Services - CS Dir,ASDA  STORES 4396,22.23,0,22.23,General Provisions (Food),Grocery stores
Buckinghamshire Council,30.04.2022,04.04.2022,Children's Services,Education & Childrens Services - CS Dir,TRAVELODGE GB0000,411.93,0,411.93,Sec 17: Financial Assistance,Travelodge
Buckinghamshire Council,30.04.2022,04.04.2022,Resources,"Finance, Resources, Property & Asset Res",WWW.BUCKINGHAMSHIRE.GOV,0.01,0,0.01,Miscellaneous (Other)  Expenses,Government services
Buckinghamshire Council,30.04.2022,04.04.2022,Adults and Health,Health & Wellbeing - Adults & Health Dir,NOX HOTELS,"2,370.00",0,"2,370.00","Courses, Conference and Seminar Fees","Hotels, motels & resorts"
Buckinghamshire Council,30.04.2022,04.04.2022,Adults and Health,Health & Wellbeing - Adults & Health Dir,TESCO STORES 5135,57.61,0,57.61,General Provisions (Food),Grocery stores
Buckinghamshire Council,30.04.2022,04.04.2022,Adults and Health,Health & Wellbeing - Adults & Health Dir,AMZNMKTPLACE,5.99,0,5.99,General Provisions (Food),Miscellaneous retail
Buckinghamshire Council,30.04.2022,04.04.2022,Children's Services,Education & Childrens Services - CS Dir,TAXIPAY,120,0,120,Sec 20/31: Transport,Taxicabs & limousines
Buckinghamshire Council,30.04.2022,04.04.2022,Children's Services,Education & Childrens Services - CS Dir,TAXIPAY,150,0,150,Sec 20/31: Transport,Taxicabs & limousines
Buckinghamshire Council,30.04.2022,04.04.2022,Children's Services,Education & Childrens Services - CS Dir,HM PASSPORT OFFICE,49,0,49,Court Orders Sec 31: Miscellaneous,Government services
Buckinghamshire Council,30.04.2022,04.04.2022,Children's Services,Education & Childrens Services - CS Dir,TAXIPAY,150,0,150,Sec 20/31: Transport,Taxicabs & limousines
Buckinghamshire Council,30.04.2022,04.04.2022,Children's Services,Education & Childrens Services - CS Dir,BUCKINGHAMSHIRE CNCL,11,0,11,Court Orders Sec 31: Miscellaneous,Government services
Buckinghamshire Council,30.04.2022,04.04.2022,Children's Services,Education & Childrens Services - CS Dir,TAXIPAY,150,0,150,Sec 20/31: Transport,Taxicabs & limousines
Buckinghamshire Council,30.04.2022,04.04.2022,Children's Services,Education & Childrens Services - CS Dir,A1 TAXI SERVICE,180,36,216,Sec 20/31: Supp for Contact,Taxicabs & limousines
Buckinghamshire Council,30.04.2022,04.04.2022,Children's Services,Education & Childrens Services - CS Dir,HM PASSPORT OFFICE,75.5,0,75.5,Court Orders Sec 31: Miscellaneous,Government services
Buckinghamshire Council,30.04.2022,04.04.2022,Children's Services,Education & Childrens Services - CS Dir,TRAINLINE.COM,91.28,0,91.28,Sec 20/31: Supp for Contact,Passenger railways
Buckinghamshire Council,30.04.2022,04.04.2022,Adults and Health,Health & Wellbeing - Adults & Health Dir,FIVE TWO S TAXIS,80,0,80,Staff Travelling Expenses,Taxicabs & limousines
Buckinghamshire Council,30.04.2022,04.04.2022,Children's Services,Education & Childrens Services - CS Dir,MANOR GARAGE,676.06,0,676.06,Consumable Supplies,Auto servicing
Buckinghamshire Council,30.04.2022,04.04.2022,Children's Services,Education & Childrens Services - CS Dir,AO RETAIL LIMITED,244,0,244,Fixtures & Fittings,Household appliance stores
Buckinghamshire Council,30.04.2022,04.04.2022,Children's Services,Education & Childrens Services - CS Dir,LONDON BOROUGH OF,37,0,37,Sec 20/31: Specialist Services,Government services
Buckinghamshire Council,30.04.2022,04.04.2022,Communities,Transport - Communities Dir,PREMIER INN44011950,182.5,0,182.5,"Courses, Conference and Seminar Fees",Premier Inn
Buckinghamshire Council,30.04.2022,04.04.2022,Children's Services,Education & Childrens Services - CS Dir,PREMIER INN 44536875,100.99,0,100.99,Sec 17: Financial Assistance,Premier Inn
Buckinghamshire Council,30.04.2022,04.04.2022,Resources,"Finance, Resources, Property & Asset Res",FASTHOSTS,30,0,30,Computer Software Licences & Purchase,Computer network information services
Buckinghamshire Council,30.04.2022,03.04.2022,Resources,"Finance, Resources, Property & Asset Res",WWW.SKEDDLY.COM,70.28,0,70.28,Computer Support Services,"Programming, data processing & system design"
Buckinghamshire Council,30.04.2022,03.04.2022,Adults and Health,Health & Wellbeing - Adults & Health Dir,AMZNMKTPLACE,74.06,0,74.06,Cleaning & Domestic Equipment,Miscellaneous retail
Buckinghamshire Council,30.04.2022,03.04.2022,Adults and Health,Health & Wellbeing - Adults & Health Dir,AMZNMKTPLACE,22.54,0,22.54,Cleaning & Domestic Equipment,Miscellaneous retail
Buckinghamshire Council,30.04.2022,03.04.2022,,,PXP*SECONDMANUAL.COM / +4,24.9,0,24.9,Awaiting Coding,
Buckinghamshire Council,30.04.2022,03.04.2022,Communities,Climate Change & Environment - Community,AMZNMKTPLACE,60.3,0,60.3,Administrative Equipment & Tools,Miscellaneous retail
Buckinghamshire Council,30.04.2022,03.04.2022,Communities,Housing & Homelessness & Regulatory Comm,AMAZON.CO.UK,9.57,1.92,11.49,General Repairs & Maintenance,Direct sales companies
Buckinghamshire Council,30.04.2022,03.04.2022,Communities,Housing & Homelessness & Regulatory Comm,AMZNMKTPLACE,88.96,0,88.96,Vending Machines Supplies,Miscellaneous retail
Buckinghamshire Council,30.04.2022,03.04.2022,Children's Services,Education & Childrens Services - CS Dir,AMAZON PRIME,7.99,0,7.99,Activities & General Recreation,Continuous subscriptions
Buckinghamshire Council,30.04.2022,03.04.2022,"Planning, Growth & Sustainability",Housing & Homelessness & Regulatory PGS,AMZNMKTPLACE,15.8,3.16,18.96,Administrative Equipment & Tools,Miscellaneous retail
Buckinghamshire Council,30.04.2022,03.04.2022,"Planning, Growth & Sustainability",Housing & Homelessness & Regulatory PGS,AMZNMKTPLACE,0.02,0,0.02,Administrative Equipment & Tools,Miscellaneous retail
Buckinghamshire Council,30.04.2022,03.04.2022,Resources,"Finance, Resources, Property & Asset Res",AWS EMEA,652.86,0,652.86,Computer Software Licences & Purchase,Misc business services
Buckinghamshire Council,30.04.2022,03.04.2022,Resources,"Finance, Resources, Property & Asset Res",AWS EMEA,169.45,0,169.45,Computer Software Licences & Purchase,Misc business services
Buckinghamshire Council,30.04.2022,03.04.2022,"Planning, Growth & Sustainability",Partnership Climate Change & Envir - PGS,AWS EMEA,69.07,0,69.07,Computer Software Licences & Purchase,Misc business services
Buckinghamshire Council,30.04.2022,03.04.2022,Resources,"Finance, Resources, Property & Asset Res",LINKEDIN 7491948983,207.92,0,207.92,Advertising,Advertising services
Buckinghamshire Council,30.04.2022,03.04.2022,Deputy Chief Executive,"Finance, Resources, Property & Asset DCE",AMZNMKTPLACE,194.85,0,194.85,Stationery & Office Supplies,Miscellaneous retail
Buckinghamshire Council,30.04.2022,03.04.2022,Adults and Health,Health & Wellbeing - Adults & Health Dir,SUMUP  *RISBOROUGH CARS,54,0,54,Staff Travelling Expenses,Taxicabs & limousines
Buckinghamshire Council,30.04.2022,03.04.2022,"Planning, Growth & Sustainability",Planning & Regeneration - PGS,TRAINLINE.COM,26.09,0,26.09,Staff Travelling Expenses,Passenger railways
Buckinghamshire Council,30.04.2022,02.04.2022,Communities,Transport - Communities Dir,THE OLD BRIDGE HOTEL,7.9,0,7.9,"Courses, Conference and Seminar Fees","Hotels, motels & resorts"
Buckinghamshire Council,30.04.2022,02.04.2022,Children's Services,Education & Childrens Services - CS Dir,AMAZON.CO.UK,54.99,0,54.99,Leaving Care - Grants for Care Leavers,Direct sales companies
Buckinghamshire Council,30.04.2022,02.04.2022,Communities,Culture & Leisure - Communities Dir,AMZNMKTPLACE,36.65,0,36.65,Events Expenditure,Miscellaneous retail
Buckinghamshire Council,30.04.2022,02.04.2022,Communities,Housing & Homelessness & Regulatory Comm,AMZNMKTPLACE,98.75,0,98.75,Vending Machines Supplies,Miscellaneous retail
Buckinghamshire Council,30.04.2022,02.04.2022,Children's Services,Education & Childrens Services - CS Dir,THE TAXI PEOPLE,53,0,53,Staff Travelling Expenses,Taxicabs & limousines
Buckinghamshire Council,30.04.2022,02.04.2022,Children's Services,Education & Childrens Services - CS Dir,THE TAXI PEOPLE,49,0,49,Staff Travelling Expenses,Taxicabs & limousines
Buckinghamshire Council,30.04.2022,02.04.2022,CC Obsolete Cost Centres,Obsolete Cost Centres,AWS EMEA,45.64,0,45.64,Grants (Capital Expenditure),Misc business services
Buckinghamshire Council,30.04.2022,02.04.2022,CC Obsolete Cost Centres,Obsolete Cost Centres,AWS EMEA,27.39,0,27.39,Grants (Capital Expenditure),Misc business services
Buckinghamshire Council,30.04.2022,02.04.2022,Communities,Communities - Trust Accounts,BOOKER LIMITED SLOUGH,219.7,0,219.7,Contract Catering,Caterers
Buckinghamshire Council,30.04.2022,02.04.2022,Communities,Communities - Trust Accounts,BOOKER LIMITED SLOUGH,817.73,0,817.73,Contract Catering,Caterers
Buckinghamshire Council,30.04.2022,02.04.2022,Children's Services,Education & Childrens Services - CS Dir,AMZNMKTPLACE,60.97,0,60.97,Activities & General Recreation,Miscellaneous retail
Buckinghamshire Council,30.04.2022,02.04.2022,Adults and Health,Health & Wellbeing - Adults & Health Dir,AMZNMKTPLACE,162.57,0,162.57,Activities & General Recreation,Miscellaneous retail
Buckinghamshire Council,30.04.2022,01.04.2022,"Planning, Growth & Sustainability",Planning & Regeneration - PGS,AMZNMktplace,48.99,0,48.99,Awaiting Coding,Miscellaneous retail
Buckinghamshire Council,30.04.2022,01.04.2022,Children's Services,Education & Childrens Services - CS Dir,AMAZON.CO.UK,31.61,0,31.61,Stationery & Office Supplies,Direct sales companies
Buckinghamshire Council,30.04.2022,01.04.2022,Children's Services,Education & Childrens Services - CS Dir,YELLOW CARS HW LTD,440,0,440,Sec 17: Financial Assistance,Taxicabs & limousines
Buckinghamshire Council,30.04.2022,01.04.2022,"Planning, Growth & Sustainability",Housing & Homelessness & Regulatory PGS,RNLI COLLEGE LTD,250,0,250,"Courses, Conference and Seminar Fees","Hotels, motels & resorts"
Buckinghamshire Council,30.04.2022,01.04.2022,Children's Services,Education & Childrens Services - CS Dir,GULLIVERS WORLD,280,0,280,"Exp of School, Club & College Activities",Amusement parks & circuses
Buckinghamshire Council,30.04.2022,01.04.2022,Children's Services,Education & Childrens Services - CS Dir,TESCO GIFT CARD,75,0,75,Awaiting Coding,Grocery stores
Buckinghamshire Council,30.04.2022,01.04.2022,Children's Services,Education & Childrens Services - CS Dir,WWW.STAFFORDBC.GOV.UK,"1,735.21",0,"1,735.21",Leaving Care  - Financial Assistance,Government services
Buckinghamshire Council,30.04.2022,01.04.2022,Children's Services,Education & Childrens Services - CS Dir,WWW.BUCKINGHAMSHIRE.GOV,"1,422.60",0,"1,422.60",Leaving Care  - Financial Assistance,Government services
Buckinghamshire Council,30.04.2022,01.04.2022,Children's Services,Education & Childrens Services - CS Dir,ARGOS LTD,109.45,0,109.45,Leaving Care - Grants for Care Leavers,Discount stores
Buckinghamshire Council,30.04.2022,01.04.2022,Children's Services,Education & Childrens Services - CS Dir,CURRYS ONLINE,"1,177.99",0,"1,177.99",Leaving Care - Grants for Care Leavers,Electronics shops
Buckinghamshire Council,30.04.2022,01.04.2022,Children's Services,Education & Childrens Services - CS Dir,SUBWAY 47357 AYLESBURY,39.13,0,39.13,General Provisions (Food),Fast food restaurants
Buckinghamshire Council,30.04.2022,01.04.2022,Children's Services,Education & Childrens Services - CS Dir,ODEON,21,0,21,Activities & General Recreation,Cinemas
Buckinghamshire Council,30.04.2022,01.04.2022,"Planning, Growth & Sustainability",Planning & Regeneration - PGS,TEXTANYWHERE,61.2,0,61.2,Miscellaneous (Other)  Expenses,Computer network information services
Buckinghamshire Council,30.04.2022,01.04.2022,"Planning, Growth & Sustainability",Planning & Regeneration - PGS,HM LAND REGISTRY - ONLINE,3,0,3,Miscellaneous (Other)  Expenses,Government services
Buckinghamshire Council,30.04.2022,01.04.2022,Communities,Culture & Leisure - Communities Dir,PAYPAL,14.85,2.97,17.82,"Workshop - Materials,Tools & Equipment",Misc. home furnishing
Buckinghamshire Council,30.04.2022,01.04.2022,Communities,Culture & Leisure - Communities Dir,POWERED BY BATTERIES LTD,147,29.4,176.4,"Workshop - Materials,Tools & Equipment",Electrical parts & equipment
Buckinghamshire Council,30.04.2022,01.04.2022,Communities,Culture & Leisure - Communities Dir,WWW.SIGN-HOLDERS.CO.UK,21.75,4.35,26.1,"Workshop - Materials,Tools & Equipment",Miscellaneous retail
Buckinghamshire Council,30.04.2022,01.04.2022,Communities,Culture & Leisure - Communities Dir,PAYPAL,117.18,23.44,140.62,Protective Clothing & Uniforms,Uniforms & commercial clothing
Buckinghamshire Council,30.04.2022,01.04.2022,Communities,Culture & Leisure - Communities Dir,EBAY O*09-08457-12616,12.2,0,12.2,"Workshop - Materials,Tools & Equipment",Department stores
Buckinghamshire Council,30.04.2022,01.04.2022,Children's Services,Education & Childrens Services - CS Dir,WWW.LEADANDLIGHT.CO.UK,90.7,0,90.7,Purchasing Card  - Disputed Transactions,Glassware & crystal shops
Buckinghamshire Council,30.04.2022,01.04.2022,Communities,Culture & Leisure - Communities Dir,AMZNMKTPLACE,12.98,0,12.98,Events Expenditure,Miscellaneous retail
Buckinghamshire Council,30.04.2022,01.04.2022,Communities,Culture & Leisure - Communities Dir,WH SMITH,5,0,5,Printing & Stationery,Newspapers / newsagents
Buckinghamshire Council,30.04.2022,01.04.2022,Communities,Culture & Leisure - Communities Dir,WF EDUCATION GROUP LTD,33.9,0,33.9,Medical Supplies & Services inc Vet'nary,"Laboratory, medical & hospital equipment"
